{"text_format":"1","workbook":"xlsx","n_sheets":10,"sheets":["Copyright","Cover","Instruction","All Result","Sheet1","FW nonmetal nonplant","FW nonmetal nonplant_WS","FW nonmetal plant","FW nonmetal plant_WS","Sheet2"],"not_rendered":{"charts":0,"images":0,"macros":1,"external_links":0,"defined_names":1,"comments":3,"pivot_tables":0},"unopened":[],"bounds":{"document_bytes":16777216,"sheet_cells":100000,"rows_first":2000,"rows_last":500,"rows_between":2000,"halvings":0,"cell_chars":16384,"cell_head_chars":4096},"cells_cut":0,"cells_raw":0,"read":"whole","date_system":"1900"}

{"sheet":"Copyright","index":0,"n_rows":0,"n_cols":0,"rows_kept":0,"cut":false,"hidden":false,"merged":[]}

{"sheet":"Cover","index":1,"n_rows":20,"n_cols":7,"rows_kept":20,"cut":false,"hidden":false,"merged":[[18,6,18,8],[14,6,14,8],[13,6,13,8],[4,4,4,10],[9,6,9,8],[12,6,12,8],[5,5,6,9]]}
[]
[]
[]
[]
[null,null,null,null,"Ecotoxicity Data Quality Assessment Method V2"]
[null,null,null,null,null,"To be used to assess the quality of data used for the Australian and New Zealand Guidelines for Fresh and Marine Water Quality (including sediment) and the Australian National Environment Protection (Assessment of Site Contamination) Measure"]
[]
[]
[]
[null,null,null,null,null,null,"Developed by "]
[]
[]
[null,null,null,null,null,null,"Zoe Zhang"]
[null,null,null,null,null,null,"   Dr. Michael Warne"]
[null,null,null,null,null,null,"Alison Vieritz "]
[]
[]
[]
[null,null,null,null,null,null,"Water Quality & Investigations "]
[null,null,null,null,null,"                 Department of Science,Information Technology and Innovation"]

{"sheet":"Instruction","index":2,"n_rows":21,"n_cols":10,"rows_kept":21,"cut":false,"hidden":false,"merged":[[27,6,27,16],[14,6,14,7],[5,4,5,7]]}
[]
[]
[null,"Click here to see \"All Result\" -->","All Result"]
[]
[]
[null,null,null,null,"Freshwater "]
[]
[null,"Tabs contain questionaries -->           ","Freshwater/metal/nonplant",null,"Freshwater/non-metal/non-plant ",null,null,"Freshwater/metal/plant",null,"Freshwater/non-metal/plant"]
[]
[]
[]
[null,"Tabs contain score of paper and short answers to questions -->","Freshwater/metal/nonplant Worksheet",null,"Freshwater/non-metal/non-plant Worksheet",null,null,"Freshwater/metal/plant Worksheet",null,"Freshwater/non-metal/plant/ Worksheet"]
[]
[]
[null,null,"Marine ",null,null,null,"Terrestrial",null,null,"Sediment "]
[]
[null,"Tab contain questionaries -->","Marine or estuarine/non-plant",null,"Marine or estuarine/Plant",null,null,"Terrestrial Data QA",null,"Sediment Data QA"]
[]
[]
[]
[null,"Tab Contains all scores of paper --> ","Marine or estuarine/non-Plant Worksheet",null,"Marine or estuarine/Plant_Worksheet",null,null,"Terrestrial Quality",null,"Sediment Quality"]

{"sheet":"All Result","index":3,"n_rows":80,"n_cols":21,"rows_kept":80,"cut":false,"hidden":false,"merged":[]}
["Chemical:","Dioxin"]
["Medium:","Freshwater"]
[]
[{"$f":"'FW nonmetal plant'!C2","v":"Category"},{"$f":"'FW nonmetal plant'!C3","v":"Paper and data unique identifier(eg. 1-1,10-150)"},{"$f":"'FW nonmetal plant'!C70","v":"Total score"},{"$f":"'FW nonmetal plant'!C72","v":"Quality Score"},"Comment ",{"$f":"'FW nonmetal plant'!G3","v":"Species (Scientific name)"},{"$f":"'FW nonmetal plant'!G4","v":"Lifestage"},{"$f":"'FW nonmetal plant'!G5","v":"Exposure duration"},{"$f":"'FW nonmetal plant'!G6","v":"Measure of toxicity"},{"$f":"'FW nonmetal plant'!G7","v":"Toxicity endpoint"},{"$f":"'FW nonmetal plant'!G8","v":"Toxicity value"},{"$f":"'FW nonmetal plant'!J2","v":"Taxonomic group"},{"$f":"'FW nonmetal plant'!J3","v":"Phylum"},{"$f":"'FW nonmetal plant'!J4","v":"Class"},{"$f":"'FW nonmetal plant'!J5","v":"Media"},{"$f":"'FW nonmetal plant'!J6","v":"Temperature "},{"$f":"'FW nonmetal plant'!J7","v":"Acute Or Chronic "},{"$f":"'FW nonmetal plant'!J8","v":"PH"},"Salinity","Citation","Citation No."]
["Freshwater/non-metal/plant","50-1",34,0.37362637362637363,"The highest possible grade for this datum is acceptable.","Oedogonium cardiacum","Not stated","33 d","NOEC","Growth (Weight gain - fresh weight)",1330,"Green algae","Chlorophyta","Chlorophyceae","Not stated","Not stated","Chronic","Not stated","N.A.","Isensee AR and Jones GE (1978). Distribution of 2,3,7,8-tetrachlorodibenzo-p-dioxin (TCDD) in aquatic model ecosystem. Environmental Science and Technology, 9, 668-672.","50"]
["Freshwater/non-metal/non- plant","51-1",51,0.56043956043956045,"Acute NOEC not acceptable","Daphnia magna","Neonate <24h old","2 d + 7 d observation in clean water","NOEC","Mortality",1030,"Crustacean","Arthropoda","Branchiopoda","Well water","21-23","Acute","6.8-7.7","N.A.","Adams WJ, de Graeve GM, Sabourin TD, Cooney JD and Mosher GM (1986). Toxicity and bioconcentration of 2,3,7,8-TCDD to fathead minnows (Pimephales promelas). Chemosphere, 15, 1503-1511.","51"]
["Freshwater/non-metal/non- plant","51-2",51,0.56043956043956045,"Acute NOEC not acceptable","Daphnia magna","7 d old","2 d + 7 d observation in clean water","NOEC","Mortality",1030,"Crustacean","Arthropoda","Branchiopoda","Well water","21-23","Acute","6.8-7.7","N.A.","Adams WJ, de Graeve GM, Sabourin TD, Cooney JD and Mosher GM (1986). Toxicity and bioconcentration of 2,3,7,8-TCDD to fathead minnows (Pimephales promelas). Chemosphere, 15, 1503-1511.","51"]
["Freshwater/non-metal/non- plant","51-3",51,0.56043956043956045,"Acute NOEC not acceptable","Daphnia magna","21 d old","2 d + 7 d observation in clean water","NOEC","Mortality",1030,"Crustacean","Arthropoda","Branchiopoda","Well water","21-23","Acute","6.8-7.7","N.A.","Adams WJ, de Graeve GM, Sabourin TD, Cooney JD and Mosher GM (1986). Toxicity and bioconcentration of 2,3,7,8-TCDD to fathead minnows (Pimephales promelas). Chemosphere, 15, 1503-1511.","51"]
["Freshwater/non-metal/non- plant","51-4",51,0.5714285714285714,"Acute NOEC not acceptable","Pimephales promelas","Juveniles 1 - 2 g","4 d + 60 d observation in clean water","NOEC","Mortality",0.70,"Fish","Chordata","Actinopteriygii","Well water","21-23","Acute","6.8-7.7","N.A.","Adams WJ, de Graeve GM, Sabourin TD, Cooney JD and Mosher GM (1986). Toxicity and bioconcentration of 2,3,7,8-TCDD to fathead minnows (Pimephales promelas). Chemosphere, 15, 1503-1511.","51"]
["Freshwater/non-metal/non- plant","51-5",51,0.5714285714285714,"Acute LOEC not acceptable","Pimephales promelas","Juveniles 1 - 2 g","4 d + 60 d observation in clean water","LOEC","Mortality",7.10,"Fish","Chordata","Actinopteriygii","Well water","21-23","Acute","6.8-7.7","N.A.","Adams WJ, de Graeve GM, Sabourin TD, Cooney JD and Mosher GM (1986). Toxicity and bioconcentration of 2,3,7,8-TCDD to fathead minnows (Pimephales promelas). Chemosphere, 15, 1503-1511.","51"]
["Freshwater/non-metal/non- plant","51-6",51,0.72527472527472525,"","Pimephales promelas","Juveniles 0.5 - 1g","28 d","LC53","Mortality",1.70,"Fish","Chordata","Actinopteriygii","Well water","21-23","Acute","6.8-7.7","N.A.","Adams WJ, de Graeve GM, Sabourin TD, Cooney JD and Mosher GM (1986). Toxicity and bioconcentration of 2,3,7,8-TCDD to fathead minnows (Pimephales promelas). Chemosphere, 15, 1503-1511.","51"]
["Freshwater/non-metal/non- plant","52-1",52,0.52747252747252749,"The highest possible grade for this datum is acceptable.","Paranais sp","Not stated","55 d","LOEC","Reproduction (biomass)",200,"Annelid","Annelida","Clitellata","Well water","23-27","Chronic",6.90,"N.A.","Miller RA, Norris LA and Hawkes CL (1973). Toxicity of 2,3,7,8-tetrachlorodibenzo-p-dioxin (TCDD) in aquatic organisms. Environmental Health Perspectives, 5, 177-186.","52"]
["Freshwater/non-metal/non- plant","52-2",48,0.52747252747252749,"The highest possible grade for this datum is acceptable.","Aedes aegypti","2nd instar","17 d","NOEC","Reproduction (biomass)",200,"Arthropod","Arthropoda","Insecta","Well water","23-27","Chronic",6.90,"N.A.","Miller RA, Norris LA and Hawkes CL (1973). Toxicity of 2,3,7,8-tetrachlorodibenzo-p-dioxin (TCDD) in aquatic organisms. Environmental Health Perspectives, 5, 177-186.","52"]
["Freshwater/non-metal/non- plant","52-3",48,0.52747252747252749,"The highest possible grade for this datum is acceptable.","Physa sp","adult","17 d","NOEC","Mortality",200,"Arthropod","Arthropoda","Mollusca","Well water","23-27","Chronic",6.90,"N.A.","Miller RA, Norris LA and Hawkes CL (1973). Toxicity of 2,3,7,8-tetrachlorodibenzo-p-dioxin (TCDD) in aquatic organisms. Environmental Health Perspectives, 5, 177-186.","52"]
["Freshwater/non-metal/non- plant","52-4",53,0.58241758241758246,"The highest possible grade for this datum is acceptable.","Physa sp","Eggs","36 d","LOEC","Reproduction - hatching",200,"Arthropod","Arthropoda","Mollusca","Well water","23-27","Chronic",6.90,"N.A.","Miller RA, Norris LA and Hawkes CL (1973). Toxicity of 2,3,7,8-tetrachlorodibenzo-p-dioxin (TCDD) in aquatic organisms. Environmental Health Perspectives, 5, 177-186.","52"]
["Freshwater/non-metal/non- plant","52-5",70,0.76923076923076927,"Acute NOEC not acceptable","Oncorhynchus kisutch","Juveniles","4 d + 60 d observation in clean water","LC12","Mortality",0.056000000000000001,"Fish","Chordata","Actionpterigyii","Well water","Between 12 & 18","Acute",6.90,"N.A.","Miller RA, Norris LA and Hawkes CL (1973). Toxicity of 2,3,7,8-tetrachlorodibenzo-p-dioxin (TCDD) in aquatic organisms. Environmental Health Perspectives, 5, 177-186.","52"]
["Freshwater/non-metal/non- plant","52-6",70,0.76923076923076927,"The highest possible grade for this datum is acceptable.","Oncorhynchus kisutch","Juveniles","4 d + 60 d observation in clean water","LC50","Mortality",0.56000000000000005,"Fish","Chordata","Actionpterigyii","Well water","Between 12 & 18","Acute",6.90,"N.A.","Miller RA, Norris LA and Hawkes CL (1973). Toxicity of 2,3,7,8-tetrachlorodibenzo-p-dioxin (TCDD) in aquatic organisms. Environmental Health Perspectives, 5, 177-186.","52"]
["Freshwater/non-metal/non- plant","52-7",65,0.7142857142857143,"Acute LOEC not acceptable","Oncorhynchus kisutch","Juveniles","2 d + 80 d observation in clean water","LOEC","Growth (body length)",53,"Fish","Chordata","Actionpterigyii","Well water","Between 12 & 18","Acute",6.90,"N.A.","Miller RA, Norris LA and Hawkes CL (1973). Toxicity of 2,3,7,8-tetrachlorodibenzo-p-dioxin (TCDD) in aquatic organisms. Environmental Health Perspectives, 5, 177-186.","52"]
["Freshwater/non-metal/non- plant","52-8",61,0.67032967032967028,"Acute LOEC not acceptable","Poecilia reticulata","Not stated","4 d + 30 d observation in clean water","LOEC","Loss of caudal fin - fin necrosis",100,"Fish","Chordata","Actionpterigyii","Well water",20,"Acute",6.90,"N.A.","Miller RA, Norris LA and Hawkes CL (1973). Toxicity of 2,3,7,8-tetrachlorodibenzo-p-dioxin (TCDD) in aquatic organisms. Environmental Health Perspectives, 5, 177-186.","52"]
["Freshwater/non-metal/non- plant","55-1",48,0.52747252747252749,"The highest possible grade for this datum is acceptable.","Cyprinus carpio","Adult - 1 year old","71 d + 61 d observation in clean water","LOEC","Mortality",0.06,"Fish","Chordata","Actionpterigyii","Lake Superior filterd",25,"Chronic","Not stated","N.A.","Cook, P. M., Kuehl, D. W., Walker, M. K., and Peterson, R. E. (1991). Bioaccumulation and toxicity of TCDD and related compounds in aquatic ecosystems. In: Gallo MA, Scheuplein RJ, van der Heijden CA (Eds), Biological Basis for Risk Assessment of Dioxins and Related Compounds. Banbury Report 35, pp. 143—167. Cold Spring Harbor Laboratory Press, Cold Spring Harbor, NY.","55"]
["Freshwater/non-metal/non- plant","56-1",57,0.62637362637362637,"Acute NOEC not acceptable","Danio rerio","Eggs","1 h + 10 d","NOEC","Mortality",35,"Fish","Chordata","Actionpterigyii","Not stated",28,"Acute","6.5-7.0","N.A.","Henry TR, Spitzbergen JM, Hornung MW, Abnet CC and Peterson RE (1997). Early life stage toxicity of 2,3,7,8- tetrachlorodibenzo-p-dioxin in zebrafish (Danio rerio). Toxicology and Applied Pharmacology, 142, 56-68.","55"]
["Freshwater/non-metal/non- plant","58-1",71,0.78021978021978022,"The highest possible grade for this datum is acceptable.","Esox lucius","Eggs","4 d + 10.5 d observation in clean water","EC23","Egg development - hatching delayed",0.10,"Fish","Chordata","Actionpterigyii","Dechlorinated tap water","14+/- 0.5","Acute",6.90,"N.A.","Helder Th (1980). Effects of 2,3,7,8-tetrachlorodibenzo-p-dioxin (TCDD) on early life stages of the pike (Esox lucius L.). The Science of the Total Environment, 14, 255-264.","58"]
["Freshwater/non-metal/non- plant","58-2",66,0.72527472527472525,"The highest possible grade for this datum is acceptable.","Esox lucius","Eggs","4 d + 11 d Observation","LOEC","Growth",0.10,"Fish","Chordata","Actionpterigyii","Dechlorinated tap water","14+/- 0.5","Acute",6.90,"N.A.","Helder Th (1980). Effects of 2,3,7,8-tetrachlorodibenzo-p-dioxin (TCDD) on early life stages of the pike (Esox lucius L.). The Science of the Total Environment, 14, 255-264.","58"]
["Freshwater/non-metal/non- plant","58-3",66,0.72527472527472525,"The highest possible grade for this datum is acceptable.","Esox lucius","Eggs","4 d + 21 d observation","LC49","Mortality",1,"Fish","Chordata","Actionpterigyii","Dechlorinated tap water","14+/- 0.5","Acute",6.90,"N.A.","Helder Th (1980). Effects of 2,3,7,8-tetrachlorodibenzo-p-dioxin (TCDD) on early life stages of the pike (Esox lucius L.). The Science of the Total Environment, 14, 255-264.","58"]
["Freshwater/non-metal/non- plant","59-1",54,0.59340659340659341,"Acute NOEC not acceptable","Oncorhynchus kisutch","Juvenile","4 d + 60 d observation","EC12","Growth",0.56000000000000005,"Fish","Chordata","Actionpterigyii","Well water","16 +/- 2","Acute",6.90,"N.A.","Miller RA, Norris LA and Loper BA (1979). The response of coho salmon and guppies to 2,3,7,8-tetrachlorodibenzo-p-dioxin (TCDD) in water. Transactions of the American Fisheries Society, 108, 401-407.","59"]
["Freshwater/non-metal/non- plant","59-2",54,0.59340659340659341,"The highest possible grade for this datum is acceptable.","Oncorhynchus kisutch","Juvenile","4 d + 60 d observation","EC55","Growth",5.60,"Fish","Chordata","Actionpterigyii","Well water","16 +/- 2","Acute",6.90,"N.A.","Miller RA, Norris LA and Loper BA (1979). The response of coho salmon and guppies to 2,3,7,8-tetrachlorodibenzo-p-dioxin (TCDD) in water. Transactions of the American Fisheries Society, 108, 401-407.","59"]
["Freshwater/non-metal/non- plant","59-3",54,0.59340659340659341,"Acute NOEC not acceptable","Oncorhynchus kisutch","Juvenile","4 d + 114 d observation","NOEC","Growth",1.05,"Fish","Chordata","Actionpterigyii","Well water","16 +/- 2","Acute",6.90,"N.A.","Miller RA, Norris LA and Loper BA (1979). The response of coho salmon and guppies to 2,3,7,8-tetrachlorodibenzo-p-dioxin (TCDD) in water. Transactions of the American Fisheries Society, 108, 401-407.","59"]
["Freshwater/non-metal/non- plant","59-4",54,0.59340659340659341,"Acute LOEC not acceptable","Oncorhynchus kisutch","Juvenile","4 d + 114 d observation","LOEC","Growth",10.50,"Fish","Chordata","Actionpterigyii","Well water","16 +/- 2","Acute",6.90,"N.A.","Miller RA, Norris LA and Loper BA (1979). The response of coho salmon and guppies to 2,3,7,8-tetrachlorodibenzo-p-dioxin (TCDD) in water. Transactions of the American Fisheries Society, 108, 401-407.","59"]
["Freshwater/non-metal/non- plant","59-5",54,0.59340659340659341,"Acute LOEC not acceptable","Oncorhynchus kisutch","Juvenile","4 d + 114 d observation","LOEC","Mortality",10.50,"Fish","Chordata","Actionpterigyii","Well water","16 +/- 2","Acute",6.90,"N.A.","Miller RA, Norris LA and Loper BA (1979). The response of coho salmon and guppies to 2,3,7,8-tetrachlorodibenzo-p-dioxin (TCDD) in water. Transactions of the American Fisheries Society, 108, 401-407.","59"]
["Freshwater/non-metal/non- plant","59-6",54,0.59340659340659341,"Acute NOEC not acceptable","Oncorhynchus kisutch","Juvenile","4 d + 114 d observation","NOEC","Mortality",1.05,"Fish","Chordata","Actionpterigyii","Well water","16 +/- 2","Acute",6.90,"N.A.","Miller RA, Norris LA and Loper BA (1979). The response of coho salmon and guppies to 2,3,7,8-tetrachlorodibenzo-p-dioxin (TCDD) in water. Transactions of the American Fisheries Society, 108, 401-407.","59"]
["Freshwater/non-metal/non- plant","59-7",54,0.59340659340659341,"Acute NOEC not acceptable","Oncorhynchus kisutch","Juvenile","4 d + 60 d observation","NOEC","Mortality",0.56000000000000005,"Fish","Chordata","Actionpterigyii","Well water","16 +/- 2","Acute",6.90,"N.A.","Miller RA, Norris LA and Loper BA (1979). The response of coho salmon and guppies to 2,3,7,8-tetrachlorodibenzo-p-dioxin (TCDD) in water. Transactions of the American Fisheries Society, 108, 401-407.","59"]
["Freshwater/non-metal/non- plant","59-8",54,0.59340659340659341,"Acute LOEC not acceptable","Oncorhynchus kisutch","Juvenile","4 d + 60 d observation","LOEC","Mortality",5.60,"Fish","Chordata","Actionpterigyii","Well water","16 +/- 2","Acute",6.90,"N.A.","Miller RA, Norris LA and Loper BA (1979). The response of coho salmon and guppies to 2,3,7,8-tetrachlorodibenzo-p-dioxin (TCDD) in water. Transactions of the American Fisheries Society, 108, 401-407.","59"]
["Freshwater/non-metal/non- plant","59-9",54,0.59340659340659341,"See text ","Poecilia reticulata","Juvenile","1 d + 42 d observation","NOEC","Fin necrosis","0.08 ng/g ww","Fish","Chordata","Actionpterigyii","Well water",20,"Acute",6.90,"N.A.","Miller RA, Norris LA and Loper BA (1979). The response of coho salmon and guppies to 2,3,7,8-tetrachlorodibenzo-p-dioxin (TCDD) in water. Transactions of the American Fisheries Society, 108, 401-407.","59"]
["Freshwater/non-metal/non- plant","59-10",54,0.59340659340659341,"See text ","Poecilia reticulata","Juvenile","1 d + 42 d observation","LOEC","Fin necrosis","0.8 ng/g ww","Fish","Chordata","Actionpterigyii","Well water",20,"Acute",6.90,"N.A.","Miller RA, Norris LA and Loper BA (1979). The response of coho salmon and guppies to 2,3,7,8-tetrachlorodibenzo-p-dioxin (TCDD) in water. Transactions of the American Fisheries Society, 108, 401-407.","59"]
["Freshwater/non-metal/non- plant","60-1",61,0.67032967032967028,"Acute NOEC not acceptable","Oncorhynchus mykiss","Eggs","4 d + 72 d observation","NOEC","Mortality",0.10,"Fish","Chordata","Actionpterigyii","Dechlorinated tap water","10 +/- 0.5","Acute",7.40,"N.A.","Helder Th (1981). Effects of 2,3,7,8-tetrachlorodibenzo-p-dioxin (TCDD) on early life stages of rainbow trout (Salmo gairdneri Richardson). Toxicology, 19, 101-112.","60"]
["Freshwater/non-metal/non- plant","60-2",61,0.67032967032967028,"Acute LOEC not acceptable","Oncorhynchus mykiss","Eggs","4 d + 72 d observation","LOEC","Mortality",1,"Fish","Chordata","Actionpterigyii","Dechlorinated tap water","10 +/- 0.5","Acute",7.40,"N.A.","Helder Th (1981). Effects of 2,3,7,8-tetrachlorodibenzo-p-dioxin (TCDD) on early life stages of rainbow trout (Salmo gairdneri Richardson). Toxicology, 19, 101-112.","60"]
["Freshwater/non-metal/non- plant","60-3",61,0.67032967032967028,"Acute LOEC not acceptable","Oncorhynchus mykiss","Eggs","4 d + 72 d observation","LOEC","Growth",1,"Fish","Chordata","Actionpterigyii","Dechlorinated tap water","10 +/- 0.5","Acute",7.40,"N.A.","Helder Th (1981). Effects of 2,3,7,8-tetrachlorodibenzo-p-dioxin (TCDD) on early life stages of rainbow trout (Salmo gairdneri Richardson). Toxicology, 19, 101-112.","60"]
["Freshwater/non-metal/non- plant","60-4",61,0.67032967032967028,"Acute LOEC not acceptable","Oncorhynchus mykiss","Yok-sac fry","4 d + 160 d observation","EC20","Growth (wet weight)",1,"Fish","Chordata","Actionpterigyii","Dechlorinated tap water","10 +/- 0.5","Acute",7.40,"N.A.","Helder Th (1981). Effects of 2,3,7,8-tetrachlorodibenzo-p-dioxin (TCDD) on early life stages of rainbow trout (Salmo gairdneri Richardson). Toxicology, 19, 101-112.","60"]
["Freshwater/non-metal/non- plant","60-5",66,0.72527472527472525,"Acute NOEC not acceptable","Oncorhynchus mykiss","Yolk-sac fry","4 d + 160 d observation","NOEC","Growth (wet weight)",1,"Fish","Chordata","Actionpterigyii","Dechlorinated tap water","10 +/- 0.5","Acute",7.40,"N.A.","Helder Th (1981). Effects of 2,3,7,8-tetrachlorodibenzo-p-dioxin (TCDD) on early life stages of rainbow trout (Salmo gairdneri Richardson). Toxicology, 19, 101-112.","60"]
["Freshwater/non-metal/non- plant","60-6",61,0.67032967032967028,"Acute LOEC not acceptable","Oncorhynchus mykiss","Juveniles","4 d + 160 d observation","LOEC","Growth (wet weight)",10,"Fish","Chordata","Actionpterigyii","Dechlorinated tap water","10 +/- 0.5","Acute",7.40,"N.A.","Helder Th (1981). Effects of 2,3,7,8-tetrachlorodibenzo-p-dioxin (TCDD) on early life stages of rainbow trout (Salmo gairdneri Richardson). Toxicology, 19, 101-112.","60"]
["Freshwater/non-metal/non- plant","60-6",61,0.67032967032967028,"Acute LOEC not acceptable","Oncorhynchus mykiss","Yolk-sac fry","4 d + 168 d","EC37","Growth (wet weight)",1,"Fish","Chordata","Actionpterigyii","Dechlorinated tap water","10 +/- 0.5","Acute",7.40,"N.A.","Helder Th (1981). Effects of 2,3,7,8-tetrachlorodibenzo-p-dioxin (TCDD) on early life stages of rainbow trout (Salmo gairdneri Richardson). Toxicology, 19, 101-112.","60"]
["Freshwater/non-metal/non- plant","61-1",67,0.73626373626373631,"Acute NOEC not acceptable","Oncorhynchus mykiss","Yolk-sac fry","4 d  + 21 d observation","NOEC","Mortality",1,"Fish","Chordata","Actionpterigyii","Dechlorinated tap water","11 +/- 2","Acute","7.7 +/- 0.2","N.A.","Bol J, van den Berg M and Seinen W (1989). Interactive effects of PCDD’s, PCDF’s and PCB’s as assessed by the E.L.S. – bioassay. Chemosphere, 19, 899-906.","61"]
["Freshwater/non-metal/non- plant","61-2",71,0.78021978021978022,"Acute LOEC not acceptable","Oncorhynchus mykiss","Yolk-sac fry","4 d  + 21 d observation","LC40","Mortality",1.65,"Fish","Chordata","Actionpterigyii","Dechlorinated tap water","11 +/- 2","Acute","7.7 +/- 0.2","N.A.","Bol J, van den Berg M and Seinen W (1989). Interactive effects of PCDD’s, PCDF’s and PCB’s as assessed by the E.L.S. – bioassay. Chemosphere, 19, 899-906.","61"]
["Freshwater/non-metal/non- plant","61-3",66,0.72527472527472525,"The highest possible grade for this datum is acceptable.","Oncorhynchus mykiss","Yolk-sac fry","4 d + 13 d observation","LC50","Mortality",2.72,"Fish","Chordata","Actionpterigyii","Dechlorinated tap water","11 +/- 2","Acute","7.7 +/- 0.2","N.A.","Bol J, van den Berg M and Seinen W (1989). Interactive effects of PCDD’s, PCDF’s and PCB’s as assessed by the E.L.S. – bioassay. Chemosphere, 19, 899-906.","61"]
["Freshwater/non-metal/non- plant","61-4",66,0.72527472527472525,"The highest possible grade for this datum is acceptable.","Oncorhynchus mykiss","Yolk-sac fry","4 d + 21 d observation","LC50","Mortality",1.83,"Fish","Chordata","Actionpterigyii","Dechlorinated tap water","11 +/- 2","Acute","7.7 +/- 0.2","N.A.","Bol J, van den Berg M and Seinen W (1989). Interactive effects of PCDD’s, PCDF’s and PCB’s as assessed by the E.L.S. – bioassay. Chemosphere, 19, 899-906.","61"]
["Freshwater/non-metal/non- plant","62-1",70,0.71399999999999997,"The highest possible grade for this datum is acceptable.","Oncorhynchus mykiss","Fry - swim up (0.38 +/- 0.09 g)",28,"NOEC","Mortality",0.079000000000000001,"Fish","Chordata","Actionpterigyii","Reconstituted water","11 +/- 2","Chronic","7.7 +/- 0.2","N.A.","Mehrle PM, Buckler DR, Little EE, Smith LM, Petty JD, Peterman PH, Stalling DL, de Graeve GM, Coyle JJ and Adams WJ (1988). Toxicity and bioconcentration of 2,3,7,8-tetrachlorodibenzodioxin and 2,3,7,8-tetrachlorodibenzofuran in rainbow trout. Environmental Toxicology and Chemistry, 7, 47-62.","62"]
["Freshwater/non-metal/non- plant","62-2",65,0.7142857142857143,"The highest possible grade for this datum is acceptable.","Oncorhynchus mykiss","Fry - swim up (0.38 +/- 0.09 g)",28,"LOEC","Growth (wet weight)",0.037999999999999999,"Fish","Chordata","Actionpterigyii","Reconstituted water","11 +/- 2","Chronic","7.7 +/- 0.2","N.A.","Mehrle PM, Buckler DR, Little EE, Smith LM, Petty JD, Peterman PH, Stalling DL, de Graeve GM, Coyle JJ and Adams WJ (1988). Toxicity and bioconcentration of 2,3,7,8-tetrachlorodibenzodioxin and 2,3,7,8-tetrachlorodibenzofuran in rainbow trout. Environmental Toxicology and Chemistry, 7, 47-62.","62"]
["Freshwater/non-metal/non- plant","62-3",65,0.7142857142857143,"The highest possible grade for this datum is acceptable.","Oncorhynchus mykiss","Fry - swim up (0.38 +/- 0.09 g)","28 d + 28 d observation","LOEC","Mortality",0.037999999999999999,"Fish","Chordata","Actionpterigyii","Reconstituted water","11 +/- 2","Chronic","7.7 +/- 0.2","N.A.","Mehrle PM, Buckler DR, Little EE, Smith LM, Petty JD, Peterman PH, Stalling DL, de Graeve GM, Coyle JJ and Adams WJ (1988). Toxicity and bioconcentration of 2,3,7,8-tetrachlorodibenzodioxin and 2,3,7,8-tetrachlorodibenzofuran in rainbow trout. Environmental Toxicology and Chemistry, 7, 47-62.","62"]
["Freshwater/non-metal/non- plant","62-4",70,0.76923076923076927,"The highest possible grade for this datum is acceptable.","Oncorhynchus mykiss","Fry - swim up (0.38 +/- 0.09 g)","28 d + 28 d observation","LC50","Mortality",0.045999999999999999,"Fish","Chordata","Actionpterigyii","Reconstituted water","11 +/- 2","Chronic","7.7 +/- 0.2","N.A.","Mehrle PM, Buckler DR, Little EE, Smith LM, Petty JD, Peterman PH, Stalling DL, de Graeve GM, Coyle JJ and Adams WJ (1988). Toxicity and bioconcentration of 2,3,7,8-tetrachlorodibenzodioxin and 2,3,7,8-tetrachlorodibenzofuran in rainbow trout. Environmental Toxicology and Chemistry, 7, 47-62.","62"]
["Freshwater/non-metal/non- plant","63-1",68,0.74725274725274726,"Acute LOEC not acceptable","Oncorhynchus mykiss","Eggs","2 d + 22 d observation in clean water","LOEC","Mortality",83,"Fish","Chordata","Actionpterigyii","Dechlorinated tap water","11 +/- 1","Acute",7.50,"N.A.","Walker MK, Hufnagle LC, Clayton MK and Peterson RE (1992). An egg injection method for assessing early life stage mortality of polychlorinated dibenzo-p-dioxin, dibenzofuran, and biphenyls in rainbow trout (Oncorhynchus mykiss). Aquatic Toxicology, 22, 15-38.","63"]
["Freshwater/non-metal/non- plant","64-1",74,0.81318681318681318,"The highest possible grade for this datum is acceptable.","Oncorhynchus mykiss","Sac fry","4 d + 20 d observation","NOEC","Mortality",1.60,"Fish","Chordata","Actionpterigyii","Dechlorinated tap water","10 +/- 0.5","Acute","7.4 +/- 0.05","N.A.","Helder Th and Seinen W (1985). Standardization and application of an E.L.S.-bioassay for PCDDs and PCDFs. Chemosphere, 14, 183-193.","64"]
["Freshwater/non-metal/non- plant","64-2",74,0.81318681318681318,"The highest possible grade for this datum is acceptable.","Oncorhynchus mykiss","Sac fry","4 d + 20 d observation","LC20","Mortality",2.70,"Fish","Chordata","Actionpterigyii","Dechlorinated tap water","10 +/- 0.5","Acute","7.4 +/- 0.05","N.A.","Helder Th and Seinen W (1985). Standardization and application of an E.L.S.-bioassay for PCDDs and PCDFs. Chemosphere, 14, 183-193.","64"]
["Freshwater/non-metal/non- plant","64-3",74,0.81318681318681318,"The highest possible grade for this datum is acceptable.","Oncorhynchus mykiss","Sac fry","4 d + 20 d observation","LC50","Mortality",4.50,"Fish","Chordata","Actionpterigyii","Dechlorinated tap water","10 +/- 0.5","Acute","7.4 +/- 0.05","N.A.","Helder Th and Seinen W (1985). Standardization and application of an E.L.S.-bioassay for PCDDs and PCDFs. Chemosphere, 14, 183-193.","64"]
["Freshwater/non-metal/non- plant","65-1",72,0.79120879120879117,"The highest possible grade for this datum is acceptable.","Oryzias latipes","Eggs",15.50,"LC50","Mortality to 3d post-hatch",9,"Fish","Chordata","Actionpterigyii","Reconstituted deionised water",25,"Chronic","Not stated","N.A.","Wisk JD and Cooper KR (1990). The stage specific toxicity of 2,3,7,8-tetrachlorodibenzo-p-dioxin in embryos of the Japanese medaka (Oryzias latipes). Environmental Toxicology and Chemistry, 9, 1159-1169.","65"]
["Freshwater/non-metal/non- plant","65-2",72,0.79120879120879117,"The highest possible grade for this datum is acceptable.","Oryzias latipes","Eggs",15.50,"EC50","Reproduction - Prevention of hatch",14,"Fish","Chordata","Actionpterigyii","Reconstituted deionised water",25,"Chronic","Not stated","N.A.","Wisk JD and Cooper KR (1990). The stage specific toxicity of 2,3,7,8-tetrachlorodibenzo-p-dioxin in embryos of the Japanese medaka (Oryzias latipes). Environmental Toxicology and Chemistry, 9, 1159-1169.","65"]
["Freshwater/non-metal/non- plant","65-3",72,0.79120879120879117,"The highest possible grade for this datum is acceptable.","Oryzias latipes","Eggs",15.50,"EC50","Life-threatening lesions",14,"Fish","Chordata","Actionpterigyii","Reconstituted deionised water",25,"Chronic","Not stated","N.A.","Wisk JD and Cooper KR (1990). The stage specific toxicity of 2,3,7,8-tetrachlorodibenzo-p-dioxin in embryos of the Japanese medaka (Oryzias latipes). Environmental Toxicology and Chemistry, 9, 1159-1169.","65"]
["Freshwater/non-metal/non- plant","66-1",72,0.79120879120879117,"The highest possible grade for this datum is acceptable.","Oryzias latipes","Eggs","15.5 d","LC50","Mortality",8.10,"Fish","Chordata","Actionpterigyii","Reconstituted deionised water","25 +/- 0.5","Chronic","Not stated","N.A.","Kim Y and Cooper KR (1999). Toxicity of 2,3,7,8-tetrachlorodibenzo-p-dioxin (TCDD) and polychlorinated biphenyls (PCBs) in the embryos and newly hatched larvae of the Japanese medaka (Oryzias latipes). Chemosphere, 39, 527-538.","66"]
["Freshwater/non-metal/non- plant","66-2",72,0.79120879120879117,"The highest possible grade for this datum is acceptable.","Oryzias latipes","Eggs","15.5 d","LC50","Mortality",8.10,"Fish","Chordata","Actionpterigyii","Reconstituted deionised water","25 +/- 0.5","Chronic","Not stated","N.A.","Kim Y and Cooper KR (1999). Toxicity of 2,3,7,8-tetrachlorodibenzo-p-dioxin (TCDD) and polychlorinated biphenyls (PCBs) in the embryos and newly hatched larvae of the Japanese medaka (Oryzias latipes). Chemosphere, 39, 527-538.","66"]
["Freshwater/non-metal/non- plant","66-3",72,0.79120879120879117,"The highest possible grade for this datum is acceptable.","Oryzias latipes","Eggs","15.5 d","EC50","Non hatch",12.50,"Fish","Chordata","Actionpterigyii","Reconstituted deionised water","25 +/- 0.5","Chronic","Not stated","N.A.","Kim Y and Cooper KR (1999). Toxicity of 2,3,7,8-tetrachlorodibenzo-p-dioxin (TCDD) and polychlorinated biphenyls (PCBs) in the embryos and newly hatched larvae of the Japanese medaka (Oryzias latipes). Chemosphere, 39, 527-538.","66"]
["Freshwater/non-metal/non- plant","66-5",63,0.69230769230769229,"The highest possible grade for this datum is acceptable.","Oryzias latipes","Eggs","15.5 d","NOEC","Mortality",2.50,"Fish","Chordata","Actionpterigyii","Reconstituted deionised water","25 +/- 0.5","Chronic","Not stated","N.A.","Kim Y and Cooper KR (1999). Toxicity of 2,3,7,8-tetrachlorodibenzo-p-dioxin (TCDD) and polychlorinated biphenyls (PCBs) in the embryos and newly hatched larvae of the Japanese medaka (Oryzias latipes). Chemosphere, 39, 527-538.","66"]
["Freshwater/non-metal/non- plant","66-6",63,0.69230769230769229,"","Oryzias latipes","Eggs","15.5 d","LOEC","Mortality",5.60,"Fish","Chordata","Actionpterigyii","Reconstituted deionised water","25 +/- 0.5","Chronic","Not stated","N.A.","Kim Y and Cooper KR (1999). Toxicity of 2,3,7,8-tetrachlorodibenzo-p-dioxin (TCDD) and polychlorinated biphenyls (PCBs) in the embryos and newly hatched larvae of the Japanese medaka (Oryzias latipes). Chemosphere, 39, 527-538.","66"]
["Freshwater/non-metal/non- plant","67-1",58,0.63736263736263732,"The highest possible grade for this datum is acceptable.","Pimephales promelas","Embryos","7 d","LC50","Mortality",10.199999999999999,"Fish","Chordata","Actionpterigyii","Reconstituted deionised water","23 +/- 0.5","Chronic","Not stated","N.A.","Olivieri CE and Cooper KR (1997). Toxicity of 2,3,7,8-tetrachlorodibenzo-p-dioxin (TCDD) in embryos and larvae of the fathead minnow (Pimephales promelas). Chemosphere, 34, 1139-1150.","67"]
["Freshwater/non-metal/non- plant","67-2",62,0.68131868131868134,"The highest possible grade for this datum is acceptable.","Pimephales promelas","Embryos","7 d","NOEC","Mortality",0.59,"Fish","Chordata","Actionpterigyii","Reconstituted deionised water","23 +/- 0.5","Chronic","Not stated","N.A.","Olivieri CE and Cooper KR (1997). Toxicity of 2,3,7,8-tetrachlorodibenzo-p-dioxin (TCDD) in embryos and larvae of the fathead minnow (Pimephales promelas). Chemosphere, 34, 1139-1150.","67"]
["Freshwater/non-metal/non- plant","67-3",62,0.68131868131868134,"The highest possible grade for this datum is acceptable.","Pimephales promelas","Embryos","7 d","LOEC","Mortality",1.20,"Fish","Chordata","Actionpterigyii","Reconstituted deionised water","23 +/- 0.5","Chronic","Not stated","N.A.","Olivieri CE and Cooper KR (1997). Toxicity of 2,3,7,8-tetrachlorodibenzo-p-dioxin (TCDD) in embryos and larvae of the fathead minnow (Pimephales promelas). Chemosphere, 34, 1139-1150.","67"]
["Freshwater/non-metal/non- plant","67-4",72,0.79120879120879117,"The highest possible grade for this datum is acceptable.","Pimephales promelas","Larvae - 1 mo old","1 d + 64 d observation","EC56","Growth",40,"Fish","Chordata","Actionpterigyii","Reconstituted deionised water","23 +/- 0.5","Chronic","Not stated","N.A.","Olivieri CE and Cooper KR (1997). Toxicity of 2,3,7,8-tetrachlorodibenzo-p-dioxin (TCDD) in embryos and larvae of the fathead minnow (Pimephales promelas). Chemosphere, 34, 1139-1150.","67"]
["Freshwater/non-metal/non- plant","67-5",67,0.73626373626373631,"The highest possible grade for this datum is acceptable.","Pimephales promelas","Larvae - 1 mo old","1 d + 64 d observation","NOEC","Growth",3.80,"Fish","Chordata","Actionpterigyii","Reconstituted deionised water","23 +/- 0.5","Acute","Not stated","N.A.","Olivieri CE and Cooper KR (1997). Toxicity of 2,3,7,8-tetrachlorodibenzo-p-dioxin (TCDD) in embryos and larvae of the fathead minnow (Pimephales promelas). Chemosphere, 34, 1139-1150.","67"]
["Freshwater/non-metal/non- plant","68-1",67,0.73626373626373631,"The highest possible grade for this datum is acceptable.","Salvelinus fontinalis","Eggs 2h post fertilisation","2 d + 80 d observation","LC50","Mortality",9,"Fish","Chordata","Actionpterigyii","Not stated","7 +/- 1","Acute","Not stated","N.A.","Walker MK and Peterson RE (1994). Toxicity of 2,3,7,8-tetrachlorodibenzo-p-dioxin (TCDD) to brook trout (Salvelinus fontinalis) during early development. Environmental Toxicology and Chemistry, 13, 817-820.","68"]
["Freshwater/non-metal/non- plant","68-2",67,0.73626373626373631,"Acute NOEC not acceptable","Salvelinus fontinalis","Eggs 2h post fertilisation","2 d + 80 d observation","NOEC","Mortality",6,"Fish","Chordata","Actionpterigyii","Not stated","7 +/- 1","Acute","Not stated","N.A.","Walker MK and Peterson RE (1994). Toxicity of 2,3,7,8-tetrachlorodibenzo-p-dioxin (TCDD) to brook trout (Salvelinus fontinalis) during early development. Environmental Toxicology and Chemistry, 13, 817-820.","68"]
["Freshwater/non-metal/non- plant","70-1",78,0.8571428571428571,"The highest possible grade for this datum is acceptable.","Salvelinus namaycush","Eggs 4h post fertilisation","2 d + 119 d observation","LC50","Mortality",21,"Fish","Chordata","Actionpterigyii","Dechlorinated tap water","8 +/- 0.5","Acute",7.50,"N.A.","Walker MK, Spitzbergen JM, Olson JR and Peterson RE (1991). 2,3,7,8-Tetrachlorodibenzo-p-dioxin (TCDD) toxicity during early life stage development of lake trout (Salvelinus namaycush). Canadian Journal of Fisheries and Aquatic Sciences, 48, 875-883.","70"]
["Freshwater/non-metal/non- plant","70-2",73,0.80219780219780223,"Acute NOEC not acceptable","Salvelinus namaycush","Eggs 4h post fertilisation","2 d + 119 d observation","NOEC","Mortality",10,"Fish","Chordata","Actionpterigyii","Dechlorinated tap water","8 +/- 0.5","Acute",7.50,"N.A.","Walker MK, Spitzbergen JM, Olson JR and Peterson RE (1991). 2,3,7,8-Tetrachlorodibenzo-p-dioxin (TCDD) toxicity during early life stage development of lake trout (Salvelinus namaycush). Canadian Journal of Fisheries and Aquatic Sciences, 48, 875-883.","70"]
["Freshwater/non-metal/non- plant","70-3",73,0.80219780219780223,"Acute LOEC not acceptable","Salvelinus namaycush","Eggs 4h post fertilisation","2 d + 119 d observation","LOEC","Mortality",20,"Fish","Chordata","Actionpterigyii","Dechlorinated tap water","8 +/- 0.5","Acute",7.50,"N.A.","Walker MK, Spitzbergen JM, Olson JR and Peterson RE (1991). 2,3,7,8-Tetrachlorodibenzo-p-dioxin (TCDD) toxicity during early life stage development of lake trout (Salvelinus namaycush). Canadian Journal of Fisheries and Aquatic Sciences, 48, 875-883.","70"]
["Freshwater/non-metal/non- plant","71-1",61,0.67032967032967028,"Acute NOEC not acceptable","Salvelinus namaycush","Eggs 4-7h post fertilisation","2 d  + 95 d observation","NOEC","Mortality",1,"Fish","Chordata","Actionpterigyii","Lake Superior water","7 +/- 0.5","Acute",7.40,"N.A.","Spitzbergen  JM, Walker MK, Olson JR and Peterson RE (1991). Pathological alterations in the early life stages of lake trout, Salvelinus namaycush, exposed to 2,3,7,8-tetrachlorodibenzo-p-dioxin as fertilized eggs. Aquatic Toxicology, 19, 41-72.","71"]
["Freshwater/non-metal/non- plant","71-2",61,0.67032967032967028,"Acute LOEC not acceptable","Salvelinus namaycush","Eggs 4-7h post fertilisation","2 d  + 95 d observation","LC22.5","Mortality",10,"Fish","Chordata","Actionpterigyii","Lake Superior water","7 +/- 0.5","Acute",7.40,"N.A.","Spitzbergen  JM, Walker MK, Olson JR and Peterson RE (1991). Pathological alterations in the early life stages of lake trout, Salvelinus namaycush, exposed to 2,3,7,8-tetrachlorodibenzo-p-dioxin as fertilized eggs. Aquatic Toxicology, 19, 41-72.","71"]
["Freshwater/non-metal/non- plant","69-1",61,0.67032967032967028,"Acute NOEC not acceptable","Salvelinus namaycush","Eggs <12h post fertilisation","1 d + 33 d observation","NOEC","Mortality",5,"Fish","Chordata","Actionpterigyii","Dechlorinated tap water","7 +/-1","Acute",7.50,"N.A.","Walker, M.K., P.M. Cook PM, Butterworth BC. Zabel  EW and Peterson RE (1996). Potency of a complex mixture of polychlorinated dibenzo-p-dioxin, dibenzofuran, and biphenyl congeners compared to 2,3,7,8-tetrachlorodibenzo-p-dioxin in causing fish early life stage mortality. Fundamental and Applied Toxicology, 30, 178-186.","69"]
["Freshwater/non-metal/non- plant","69-2",61,0.67032967032967028,"Acute LOEC not acceptable","Salvelinus namaycush","Eggs <12h post fertilisation","1 d + 90 d observation","LOEC","Mortality",7.50,"Fish","Chordata","Actionpterigyii","Dechlorinated tap water","7 +/-1","Acute",7.50,"N.A.","Walker, M.K., P.M. Cook PM, Butterworth BC. Zabel  EW and Peterson RE (1996). Potency of a complex mixture of polychlorinated dibenzo-p-dioxin, dibenzofuran, and biphenyl congeners compared to 2,3,7,8-tetrachlorodibenzo-p-dioxin in causing fish early life stage mortality. Fundamental and Applied Toxicology, 30, 178-186.","69"]
["Freshwater/non-metal/non- plant","69-3",66,0.72527472527472525,"The highest possible grade for this datum is acceptable.","Salvelinus namaycush","Eggs <12h post fertilisation","1 d + 90 d observation","LC50","Mortality",7.50,"Fish","Chordata","Actionpterigyii","Dechlorinated tap water","7 +/-1","Acute",7.50,"N.A.","Walker, M.K., P.M. Cook PM, Butterworth BC. Zabel  EW and Peterson RE (1996). Potency of a complex mixture of polychlorinated dibenzo-p-dioxin, dibenzofuran, and biphenyl congeners compared to 2,3,7,8-tetrachlorodibenzo-p-dioxin in causing fish early life stage mortality. Fundamental and Applied Toxicology, 30, 178-186.","69"]
["Freshwater/non-metal/non- plant","72-1",55,0.60439560439560436,"Acute NOEC not acceptable","Bufo americanus","Eggs <12h post fertilisation","1 d + 67 d observation","NOEC","Mortality",">30","Amphibian","Chordata","Amphibia","Dechlorinated tap water","20-23","Acute",7.70,"N.A.","Jung KE and Walker MK (1997). Effects of 2,3,7,8-tetrachlorodibenzo-p-dioxin (TCDD) on development of anuran amphibians. Environmental Toxicology and Chemistry, 16, 230-240. ","72"]
["Freshwater/non-metal/non- plant","72-2",55,0.60439560439560436,"Acute LOEC not acceptable","Rana pipiens","Eggs 9h post fertilisation","1d + 28d observation","LC20","Mortality",2.50,"Amphibian","Chordata","Amphibia","Dechlorinated tap water","20-23","Acute",7.70,"N.A.","Jung KE and Walker MK (1997). Effects of 2,3,7,8-tetrachlorodibenzo-p-dioxin (TCDD) on development of anuran amphibians. Environmental Toxicology and Chemistry, 16, 230-240. ","72"]
["Freshwater/non-metal/non- plant","72-3",50,0.5494505494505495,"Acute NOEC not acceptable","Rana clamitans","Eggs","1d + 48 d observation","NOEC","Mortality",100,"Amphibian","Chordata","Amphibia","Dechlorinated tap water","23-23.4","Acute",7.70,"N.A.","Jung KE and Walker MK (1997). Effects of 2,3,7,8-tetrachlorodibenzo-p-dioxin (TCDD) on development of anuran amphibians. Environmental Toxicology and Chemistry, 16, 230-240. ","72"]
["Freshwater/non-metal/non- plant","73-1",58,0.63736263736263732,"The highest possible grade for this datum is acceptable.","Xenopus laevis","Tadpoles stage 48-55","30d + 21d observation","LOEC","Growth",100,"Amphibian","Chordata","Amphibia","Well water","20 +/- 1","Chronic","Not stated","N.A.","McKinney JD, Fawkes J, Jordan S, Chae K, Oatley S, Coleman RE and Brinert W (1985). 2,3,7,8-Tetrachlorodibenzo-p-dioxin (TCDD) as a potent and persistent thyroxine agonist: A mechanistic model for toxicity based on molecular reactivity. Environmental Health Perspectives, 61, 41-53.","73"]

{"sheet":"Sheet1","index":4,"n_rows":70,"n_cols":29,"rows_kept":70,"cut":false,"hidden":true,"merged":[]}
[]
[{"$f":"#REF!","v":{"$error":"#REF!"}},{"$f":"#REF!","v":{"$error":"#REF!"}},{"$f":"#REF!","v":{"$error":"#REF!"}},{"$f":"#REF!","v":{"$error":"#REF!"}},{"$f":"#REF!","v":{"$error":"#REF!"}},{"$f":"#REF!","v":{"$error":"#REF!"}},{"$f":"#REF!","v":{"$error":"#REF!"}},{"$f":"#REF!","v":{"$error":"#REF!"}},{"$f":"#REF!","v":{"$error":"#REF!"}},{"$f":"#REF!","v":{"$error":"#REF!"}},{"$f":"#REF!","v":{"$error":"#REF!"}},{"$f":"#REF!","v":{"$error":"#REF!"}},{"$f":"#REF!","v":{"$error":"#REF!"}},{"$f":"#REF!","v":{"$error":"#REF!"}},{"$f":"#REF!","v":{"$error":"#REF!"}},{"$f":"#REF!","v":{"$error":"#REF!"}},{"$f":"#REF!","v":{"$error":"#REF!"}},{"$f":"#REF!","v":{"$error":"#REF!"}},{"$f":"#REF!","v":{"$error":"#REF!"}},{"$f":"#REF!","v":{"$error":"#REF!"}},{"$f":"#REF!","v":{"$error":"#REF!"}},{"$f":"#REF!","v":{"$error":"#REF!"}},{"$f":"#REF!","v":{"$error":"#REF!"}},{"$f":"#REF!","v":{"$error":"#REF!"}},{"$f":"#REF!","v":{"$error":"#REF!"}},{"$f":"#REF!","v":{"$error":"#REF!"}}]
[{"$f":"#REF!","v":{"$error":"#REF!"}},{"$f":"#REF!","v":{"$error":"#REF!"}},{"$f":"#REF!","v":{"$error":"#REF!"}},{"$f":"#REF!","v":{"$error":"#REF!"}}]
[{"$f":"#REF!","v":{"$error":"#REF!"}},{"$f":"#REF!","v":{"$error":"#REF!"}},{"$f":"#REF!","v":{"$error":"#REF!"}},{"$f":"#REF!","v":{"$error":"#REF!"}},{"$f":"#REF!","v":{"$error":"#REF!"}},{"$f":"#REF!","v":{"$error":"#REF!"}},{"$f":"#REF!","v":{"$error":"#REF!"}},{"$f":"#REF!","v":{"$error":"#REF!"}},{"$f":"#REF!","v":{"$error":"#REF!"}},{"$f":"#REF!","v":{"$error":"#REF!"}},{"$f":"#REF!","v":{"$error":"#REF!"}},{"$f":"#REF!","v":{"$error":"#REF!"}},{"$f":"#REF!","v":{"$error":"#REF!"}},{"$f":"#REF!","v":{"$error":"#REF!"}},{"$f":"#REF!","v":{"$error":"#REF!"}},{"$f":"#REF!","v":{"$error":"#REF!"}},{"$f":"#REF!","v":{"$error":"#REF!"}},{"$f":"#REF!","v":{"$error":"#REF!"}},{"$f":"#REF!","v":{"$error":"#REF!"}},{"$f":"#REF!","v":{"$error":"#REF!"}},{"$f":"#REF!","v":{"$error":"#REF!"}},{"$f":"#REF!","v":{"$error":"#REF!"}},{"$f":"#REF!","v":{"$error":"#REF!"}},{"$f":"#REF!","v":{"$error":"#REF!"}},{"$f":"#REF!","v":{"$error":"#REF!"}},{"$f":"#REF!","v":{"$error":"#REF!"}}]
["Answers",{"$f":"IF(#REF!=0,\"\",#REF!)","v":{"$error":"#REF!"}},{"$f":"IF(#REF!=0,\"\",#REF!)","v":{"$error":"#REF!"}},{"$f":"IF(#REF!=0,\"\",#REF!)","v":{"$error":"#REF!"}},{"$f":"IF(#REF!=0,\"\",#REF!)","v":{"$error":"#REF!"}},{"$f":"IF(#REF!=0,\"\",#REF!)","v":{"$error":"#REF!"}},{"$f":"IF(#REF!=0,\"\",#REF!)","v":{"$error":"#REF!"}},{"$f":"IF(#REF!=0,\"\",#REF!)","v":{"$error":"#REF!"}},{"$f":"IF(#REF!=0,\"\",#REF!)","v":{"$error":"#REF!"}},{"$f":"IF(#REF!=0,\"\",#REF!)","v":{"$error":"#REF!"}},{"$f":"IF(#REF!=0,\"\",#REF!)","v":{"$error":"#REF!"}},{"$f":"IF(#REF!=0,\"\",#REF!)","v":{"$error":"#REF!"}},{"$f":"IF(#REF!=0,\"\",#REF!)","v":{"$error":"#REF!"}},{"$f":"IF(#REF!=0,\"\",#REF!)","v":{"$error":"#REF!"}},{"$f":"IF(#REF!=0,\"\",#REF!)","v":{"$error":"#REF!"}},{"$f":"IF(#REF!=0,\"\",#REF!)","v":{"$error":"#REF!"}},{"$f":"IF(#REF!=0,\"\",#REF!)","v":{"$error":"#REF!"}},{"$f":"IF(#REF!=0,\"\",#REF!)","v":{"$error":"#REF!"}},{"$f":"IF(#REF!=0,\"\",#REF!)","v":{"$error":"#REF!"}},{"$f":"IF(#REF!=0,\"\",#REF!)","v":{"$error":"#REF!"}},{"$f":"IF(#REF!=0,\"\",#REF!)","v":{"$error":"#REF!"}},{"$f":"IF(#REF!=0,\"\",#REF!)","v":{"$error":"#REF!"}},{"$f":"IF(#REF!=0,\"\",#REF!)","v":{"$error":"#REF!"}},{"$f":"IF(#REF!=0,\"\",#REF!)","v":{"$error":"#REF!"}}]
[{"$f":"#REF!","v":{"$error":"#REF!"}},{"$f":"#REF!","v":{"$error":"#REF!"}},{"$f":"#REF!","v":{"$error":"#REF!"}},{"$f":"#REF!","v":{"$error":"#REF!"}},{"$f":"#REF!","v":{"$error":"#REF!"}},{"$f":"#REF!","v":{"$error":"#REF!"}},{"$f":"#REF!","v":{"$error":"#REF!"}},{"$f":"#REF!","v":{"$error":"#REF!"}}]
[{"$f":"#REF!","v":{"$error":"#REF!"}},{"$f":"#REF!","v":{"$error":"#REF!"}},{"$f":"#REF!","v":{"$error":"#REF!"}},{"$f":"#REF!","v":{"$error":"#REF!"}},{"$f":"#REF!","v":{"$error":"#REF!"}},{"$f":"IF(#REF!=0,\"\",#REF!)","v":{"$error":"#REF!"}},{"$f":"IF(#REF!=0,\"\",#REF!)","v":{"$error":"#REF!"}},{"$f":"IF(#REF!=0,\"\",#REF!)","v":{"$error":"#REF!"}}]
[]
[]
[]
[{"$f":"#REF!","v":{"$error":"#REF!"}},{"$f":"#REF!","v":{"$error":"#REF!"}},{"$f":"#REF!","v":{"$error":"#REF!"}},{"$f":"#REF!","v":{"$error":"#REF!"}},{"$f":"#REF!","v":{"$error":"#REF!"}},{"$f":"#REF!","v":{"$error":"#REF!"}},{"$f":"#REF!","v":{"$error":"#REF!"}},{"$f":"#REF!","v":{"$error":"#REF!"}},{"$f":"#REF!","v":{"$error":"#REF!"}},{"$f":"#REF!","v":{"$error":"#REF!"}},{"$f":"#REF!","v":{"$error":"#REF!"}},{"$f":"#REF!","v":{"$error":"#REF!"}},{"$f":"#REF!","v":{"$error":"#REF!"}},{"$f":"#REF!","v":{"$error":"#REF!"}},{"$f":"#REF!","v":{"$error":"#REF!"}},{"$f":"#REF!","v":{"$error":"#REF!"}},{"$f":"#REF!","v":{"$error":"#REF!"}},{"$f":"#REF!","v":{"$error":"#REF!"}},{"$f":"#REF!","v":{"$error":"#REF!"}},{"$f":"#REF!","v":{"$error":"#REF!"}},{"$f":"#REF!","v":{"$error":"#REF!"}},{"$f":"#REF!","v":{"$error":"#REF!"}},{"$f":"#REF!","v":{"$error":"#REF!"}},{"$f":"#REF!","v":{"$error":"#REF!"}},{"$f":"#REF!","v":{"$error":"#REF!"}},{"$f":"#REF!","v":{"$error":"#REF!"}},{"$f":"#REF!","v":{"$error":"#REF!"}}]
[{"$f":"#REF!","v":{"$error":"#REF!"}},{"$f":"#REF!","v":{"$error":"#REF!"}},{"$f":"#REF!","v":{"$error":"#REF!"}},{"$f":"#REF!","v":{"$error":"#REF!"}}]
[{"$f":"#REF!","v":{"$error":"#REF!"}},{"$f":"#REF!","v":{"$error":"#REF!"}},{"$f":"#REF!","v":{"$error":"#REF!"}},{"$f":"#REF!","v":{"$error":"#REF!"}},{"$f":"#REF!","v":{"$error":"#REF!"}},{"$f":"#REF!","v":{"$error":"#REF!"}},{"$f":"#REF!","v":{"$error":"#REF!"}},{"$f":"#REF!","v":{"$error":"#REF!"}},{"$f":"#REF!","v":{"$error":"#REF!"}},{"$f":"#REF!","v":{"$error":"#REF!"}},{"$f":"#REF!","v":{"$error":"#REF!"}},{"$f":"#REF!","v":{"$error":"#REF!"}},{"$f":"#REF!","v":{"$error":"#REF!"}},{"$f":"#REF!","v":{"$error":"#REF!"}},{"$f":"#REF!","v":{"$error":"#REF!"}},{"$f":"#REF!","v":{"$error":"#REF!"}},{"$f":"#REF!","v":{"$error":"#REF!"}},{"$f":"#REF!","v":{"$error":"#REF!"}},{"$f":"#REF!","v":{"$error":"#REF!"}},{"$f":"#REF!","v":{"$error":"#REF!"}},{"$f":"#REF!","v":{"$error":"#REF!"}},{"$f":"#REF!","v":{"$error":"#REF!"}},{"$f":"#REF!","v":{"$error":"#REF!"}},{"$f":"#REF!","v":{"$error":"#REF!"}},{"$f":"#REF!","v":{"$error":"#REF!"}},{"$f":"#REF!","v":{"$error":"#REF!"}},{"$f":"#REF!","v":{"$error":"#REF!"}}]
[{"$f":"#REF!","v":{"$error":"#REF!"}},{"$f":"IF(#REF!=0,\"\",#REF!)","v":{"$error":"#REF!"}},{"$f":"IF(#REF!=0,\"\",#REF!)","v":{"$error":"#REF!"}},{"$f":"IF(#REF!=0,\"\",#REF!)","v":{"$error":"#REF!"}},{"$f":"IF(#REF!=0,\"\",#REF!)","v":{"$error":"#REF!"}},null,{"$f":"IF(#REF!=0,\"\",#REF!)","v":{"$error":"#REF!"}},{"$f":"IF(#REF!=0,\"\",#REF!)","v":{"$error":"#REF!"}},{"$f":"IF(#REF!=0,\"\",#REF!)","v":{"$error":"#REF!"}},{"$f":"IF(#REF!=0,\"\",#REF!)","v":{"$error":"#REF!"}},{"$f":"IF(#REF!=0,\"\",#REF!)","v":{"$error":"#REF!"}},{"$f":"IF(#REF!=0,\"\",#REF!)","v":{"$error":"#REF!"}},{"$f":"IF(#REF!=0,\"\",#REF!)","v":{"$error":"#REF!"}},{"$f":"IF(#REF!=0,\"\",#REF!)","v":{"$error":"#REF!"}},{"$f":"IF(#REF!=0,\"\",#REF!)","v":{"$error":"#REF!"}},{"$f":"IF(#REF!=0,\"\",#REF!)","v":{"$error":"#REF!"}},{"$f":"IF(#REF!=0,\"\",#REF!)","v":{"$error":"#REF!"}},{"$f":"IF(#REF!=0,\"\",#REF!)","v":{"$error":"#REF!"}},{"$f":"IF(#REF!=0,\"\",#REF!)","v":{"$error":"#REF!"}},{"$f":"IF(#REF!=0,\"\",#REF!)","v":{"$error":"#REF!"}},{"$f":"IF(#REF!=0,\"\",#REF!)","v":{"$error":"#REF!"}},{"$f":"IF(#REF!=0,\"\",#REF!)","v":{"$error":"#REF!"}},{"$f":"IF(#REF!=0,\"\",#REF!)","v":{"$error":"#REF!"}},{"$f":"IF(#REF!=0,\"\",#REF!)","v":{"$error":"#REF!"}},{"$f":"IF(#REF!=0,\"\",#REF!)","v":{"$error":"#REF!"}}]
[{"$f":"#REF!","v":{"$error":"#REF!"}},{"$f":"#REF!","v":{"$error":"#REF!"}},{"$f":"#REF!","v":{"$error":"#REF!"}},{"$f":"#REF!","v":{"$error":"#REF!"}},{"$f":"#REF!","v":{"$error":"#REF!"}},{"$f":"#REF!","v":{"$error":"#REF!"}},{"$f":"#REF!","v":{"$error":"#REF!"}},{"$f":"#REF!","v":{"$error":"#REF!"}}]
[{"$f":"#REF!","v":{"$error":"#REF!"}},{"$f":"#REF!","v":{"$error":"#REF!"}},{"$f":"#REF!","v":{"$error":"#REF!"}},{"$f":"#REF!","v":{"$error":"#REF!"}},{"$f":"#REF!","v":{"$error":"#REF!"}},{"$f":"IF(#REF!=0,\"\",#REF!)","v":{"$error":"#REF!"}},{"$f":"IF(#REF!=0,\"\",#REF!)","v":{"$error":"#REF!"}},{"$f":"IF(#REF!=0,\"\",#REF!)","v":{"$error":"#REF!"}}]
[]
[]
[]
[{"$f":"#REF!","v":{"$error":"#REF!"}},{"$f":"#REF!","v":{"$error":"#REF!"}},{"$f":"#REF!","v":{"$error":"#REF!"}},{"$f":"#REF!","v":{"$error":"#REF!"}},{"$f":"#REF!","v":{"$error":"#REF!"}},{"$f":"#REF!","v":{"$error":"#REF!"}},{"$f":"#REF!","v":{"$error":"#REF!"}},{"$f":"#REF!","v":{"$error":"#REF!"}},{"$f":"#REF!","v":{"$error":"#REF!"}},{"$f":"#REF!","v":{"$error":"#REF!"}},{"$f":"#REF!","v":{"$error":"#REF!"}},{"$f":"#REF!","v":{"$error":"#REF!"}},{"$f":"#REF!","v":{"$error":"#REF!"}},{"$f":"#REF!","v":{"$error":"#REF!"}},{"$f":"#REF!","v":{"$error":"#REF!"}},{"$f":"#REF!","v":{"$error":"#REF!"}},{"$f":"#REF!","v":{"$error":"#REF!"}},{"$f":"#REF!","v":{"$error":"#REF!"}},{"$f":"#REF!","v":{"$error":"#REF!"}},{"$f":"#REF!","v":{"$error":"#REF!"}},{"$f":"#REF!","v":{"$error":"#REF!"}},{"$f":"#REF!","v":{"$error":"#REF!"}},{"$f":"#REF!","v":{"$error":"#REF!"}},{"$f":"#REF!","v":{"$error":"#REF!"}},{"$f":"#REF!","v":{"$error":"#REF!"}},{"$f":"#REF!","v":{"$error":"#REF!"}}]
[{"$f":"#REF!","v":{"$error":"#REF!"}},{"$f":"#REF!","v":{"$error":"#REF!"}},{"$f":"#REF!","v":{"$error":"#REF!"}},{"$f":"#REF!","v":{"$error":"#REF!"}}]
[{"$f":"#REF!","v":{"$error":"#REF!"}},{"$f":"#REF!","v":{"$error":"#REF!"}},{"$f":"#REF!","v":{"$error":"#REF!"}},{"$f":"#REF!","v":{"$error":"#REF!"}},{"$f":"#REF!","v":{"$error":"#REF!"}},{"$f":"#REF!","v":{"$error":"#REF!"}},{"$f":"#REF!","v":{"$error":"#REF!"}},{"$f":"#REF!","v":{"$error":"#REF!"}},{"$f":"#REF!","v":{"$error":"#REF!"}},{"$f":"#REF!","v":{"$error":"#REF!"}},{"$f":"#REF!","v":{"$error":"#REF!"}},{"$f":"#REF!","v":{"$error":"#REF!"}},{"$f":"#REF!","v":{"$error":"#REF!"}},{"$f":"#REF!","v":{"$error":"#REF!"}},{"$f":"#REF!","v":{"$error":"#REF!"}},{"$f":"#REF!","v":{"$error":"#REF!"}},{"$f":"#REF!","v":{"$error":"#REF!"}},{"$f":"#REF!","v":{"$error":"#REF!"}},{"$f":"#REF!","v":{"$error":"#REF!"}},{"$f":"#REF!","v":{"$error":"#REF!"}},{"$f":"#REF!","v":{"$error":"#REF!"}},{"$f":"#REF!","v":{"$error":"#REF!"}},{"$f":"#REF!","v":{"$error":"#REF!"}},{"$f":"#REF!","v":{"$error":"#REF!"}},{"$f":"#REF!","v":{"$error":"#REF!"}},{"$f":"#REF!","v":{"$error":"#REF!"}}]
[{"$f":"#REF!","v":{"$error":"#REF!"}},{"$f":"IF(#REF!=0,\"\",#REF!)","v":{"$error":"#REF!"}},{"$f":"IF(#REF!=0,\"\",#REF!)","v":{"$error":"#REF!"}},{"$f":"IF(#REF!=0,\"\",#REF!)","v":{"$error":"#REF!"}},{"$f":"IF(#REF!=0,\"\",#REF!)","v":{"$error":"#REF!"}},{"$f":"IF(#REF!=0,\"\",#REF!)","v":{"$error":"#REF!"}},{"$f":"IF(#REF!=0,\"\",#REF!)","v":{"$error":"#REF!"}},{"$f":"IF(#REF!=0,\"\",#REF!)","v":{"$error":"#REF!"}},{"$f":"IF(#REF!=0,\"\",#REF!)","v":{"$error":"#REF!"}},{"$f":"IF(#REF!=0,\"\",#REF!)","v":{"$error":"#REF!"}},{"$f":"IF(#REF!=0,\"\",#REF!)","v":{"$error":"#REF!"}},{"$f":"IF(#REF!=0,\"\",#REF!)","v":{"$error":"#REF!"}},{"$f":"IF(#REF!=0,\"\",#REF!)","v":{"$error":"#REF!"}},{"$f":"IF(#REF!=0,\"\",#REF!)","v":{"$error":"#REF!"}},{"$f":"IF(#REF!=0,\"\",#REF!)","v":{"$error":"#REF!"}},{"$f":"IF(#REF!=0,\"\",#REF!)","v":{"$error":"#REF!"}},{"$f":"IF(#REF!=0,\"\",#REF!)","v":{"$error":"#REF!"}},{"$f":"IF(#REF!=0,\"\",#REF!)","v":{"$error":"#REF!"}},{"$f":"IF(#REF!=0,\"\",#REF!)","v":{"$error":"#REF!"}},{"$f":"IF(#REF!=0,\"\",#REF!)","v":{"$error":"#REF!"}},{"$f":"IF(#REF!=0,\"\",#REF!)","v":{"$error":"#REF!"}},{"$f":"IF(#REF!=0,\"\",#REF!)","v":{"$error":"#REF!"}},{"$f":"IF(#REF!=0,\"\",#REF!)","v":{"$error":"#REF!"}},{"$f":"IF(#REF!=0,\"\",#REF!)","v":{"$error":"#REF!"}}]
[{"$f":"#REF!","v":{"$error":"#REF!"}},{"$f":"#REF!","v":{"$error":"#REF!"}},{"$f":"#REF!","v":{"$error":"#REF!"}},{"$f":"#REF!","v":{"$error":"#REF!"}},{"$f":"#REF!","v":{"$error":"#REF!"}},{"$f":"#REF!","v":{"$error":"#REF!"}},{"$f":"#REF!","v":{"$error":"#REF!"}},{"$f":"#REF!","v":{"$error":"#REF!"}}]
[{"$f":"#REF!","v":{"$error":"#REF!"}},{"$f":"#REF!","v":{"$error":"#REF!"}},{"$f":"#REF!","v":{"$error":"#REF!"}},{"$f":"#REF!","v":{"$error":"#REF!"}},{"$f":"#REF!","v":{"$error":"#REF!"}},{"$f":"IF(#REF!=0,\"\",#REF!)","v":{"$error":"#REF!"}},{"$f":"IF(#REF!=0,\"\",#REF!)","v":{"$error":"#REF!"}},{"$f":"IF(#REF!=0,\"\",#REF!)","v":{"$error":"#REF!"}}]
[]
[]
[]
[{"$f":"#REF!","v":{"$error":"#REF!"}},{"$f":"#REF!","v":{"$error":"#REF!"}},{"$f":"#REF!","v":{"$error":"#REF!"}},{"$f":"#REF!","v":{"$error":"#REF!"}},{"$f":"#REF!","v":{"$error":"#REF!"}},{"$f":"#REF!","v":{"$error":"#REF!"}},{"$f":"#REF!","v":{"$error":"#REF!"}},{"$f":"#REF!","v":{"$error":"#REF!"}},{"$f":"#REF!","v":{"$error":"#REF!"}},{"$f":"#REF!","v":{"$error":"#REF!"}},{"$f":"#REF!","v":{"$error":"#REF!"}},{"$f":"#REF!","v":{"$error":"#REF!"}},{"$f":"#REF!","v":{"$error":"#REF!"}},{"$f":"#REF!","v":{"$error":"#REF!"}},{"$f":"#REF!","v":{"$error":"#REF!"}},{"$f":"#REF!","v":{"$error":"#REF!"}},{"$f":"#REF!","v":{"$error":"#REF!"}},{"$f":"#REF!","v":{"$error":"#REF!"}},{"$f":"#REF!","v":{"$error":"#REF!"}},{"$f":"#REF!","v":{"$error":"#REF!"}},{"$f":"#REF!","v":{"$error":"#REF!"}},{"$f":"#REF!","v":{"$error":"#REF!"}},{"$f":"#REF!","v":{"$error":"#REF!"}},{"$f":"#REF!","v":{"$error":"#REF!"}},{"$f":"#REF!","v":{"$error":"#REF!"}},{"$f":"#REF!","v":{"$error":"#REF!"}},{"$f":"#REF!","v":{"$error":"#REF!"}},{"$f":"#REF!","v":{"$error":"#REF!"}},{"$f":"#REF!","v":{"$error":"#REF!"}}]
[{"$f":"#REF!","v":{"$error":"#REF!"}},{"$f":"#REF!","v":{"$error":"#REF!"}},{"$f":"#REF!","v":{"$error":"#REF!"}},{"$f":"#REF!","v":{"$error":"#REF!"}}]
[{"$f":"#REF!","v":{"$error":"#REF!"}},{"$f":"#REF!","v":{"$error":"#REF!"}},{"$f":"#REF!","v":{"$error":"#REF!"}},{"$f":"#REF!","v":{"$error":"#REF!"}},{"$f":"#REF!","v":{"$error":"#REF!"}},{"$f":"#REF!","v":{"$error":"#REF!"}},{"$f":"#REF!","v":{"$error":"#REF!"}},{"$f":"#REF!","v":{"$error":"#REF!"}},{"$f":"#REF!","v":{"$error":"#REF!"}},{"$f":"#REF!","v":{"$error":"#REF!"}},{"$f":"#REF!","v":{"$error":"#REF!"}},{"$f":"#REF!","v":{"$error":"#REF!"}},{"$f":"#REF!","v":{"$error":"#REF!"}},{"$f":"#REF!","v":{"$error":"#REF!"}},{"$f":"#REF!","v":{"$error":"#REF!"}},{"$f":"#REF!","v":{"$error":"#REF!"}},{"$f":"#REF!","v":{"$error":"#REF!"}},{"$f":"#REF!","v":{"$error":"#REF!"}},{"$f":"#REF!","v":{"$error":"#REF!"}},{"$f":"#REF!","v":{"$error":"#REF!"}},{"$f":"#REF!","v":{"$error":"#REF!"}},{"$f":"#REF!","v":{"$error":"#REF!"}},{"$f":"#REF!","v":{"$error":"#REF!"}},{"$f":"#REF!","v":{"$error":"#REF!"}},{"$f":"#REF!","v":{"$error":"#REF!"}},{"$f":"#REF!","v":{"$error":"#REF!"}},{"$f":"#REF!","v":{"$error":"#REF!"}},{"$f":"#REF!","v":{"$error":"#REF!"}},{"$f":"#REF!","v":{"$error":"#REF!"}}]
[{"$f":"#REF!","v":{"$error":"#REF!"}},{"$f":"IF(#REF!=\"\",\"\",#REF!)","v":{"$error":"#REF!"}},{"$f":"IF(#REF!=\"\",\"\",#REF!)","v":{"$error":"#REF!"}},{"$f":"IF(#REF!=\"\",\"\",#REF!)","v":{"$error":"#REF!"}},{"$f":"IF(#REF!=\"\",\"\",#REF!)","v":{"$error":"#REF!"}},{"$f":"IF(#REF!=\"\",\"\",#REF!)","v":{"$error":"#REF!"}},{"$f":"IF(#REF!=\"\",\"\",#REF!)","v":{"$error":"#REF!"}},{"$f":"IF(#REF!=\"\",\"\",#REF!)","v":{"$error":"#REF!"}},{"$f":"IF(#REF!=\"\",\"\",#REF!)","v":{"$error":"#REF!"}},{"$f":"IF(#REF!=\"\",\"\",#REF!)","v":{"$error":"#REF!"}},{"$f":"IF(#REF!=\"\",\"\",#REF!)","v":{"$error":"#REF!"}},{"$f":"IF(#REF!=\"\",\"\",#REF!)","v":{"$error":"#REF!"}},{"$f":"IF(#REF!=\"\",\"\",#REF!)","v":{"$error":"#REF!"}},{"$f":"IF(#REF!=\"\",\"\",#REF!)","v":{"$error":"#REF!"}},{"$f":"IF(#REF!=\"\",\"\",#REF!)","v":{"$error":"#REF!"}},{"$f":"IF(#REF!=\"\",\"\",#REF!)","v":{"$error":"#REF!"}},{"$f":"IF(#REF!=\"\",\"\",#REF!)","v":{"$error":"#REF!"}},{"$f":"IF(#REF!=\"\",\"\",#REF!)","v":{"$error":"#REF!"}},{"$f":"IF(#REF!=\"\",\"\",#REF!)","v":{"$error":"#REF!"}},{"$f":"IF(#REF!=\"\",\"\",#REF!)","v":{"$error":"#REF!"}},{"$f":"IF(#REF!=\"\",\"\",#REF!)","v":{"$error":"#REF!"}},{"$f":"IF(#REF!=\"\",\"\",#REF!)","v":{"$error":"#REF!"}},{"$f":"IF(#REF!=\"\",\"\",#REF!)","v":{"$error":"#REF!"}},{"$f":"IF(#REF!=\"\",\"\",#REF!)","v":{"$error":"#REF!"}},{"$f":"IF(#REF!=\"\",\"\",#REF!)","v":{"$error":"#REF!"}},{"$f":"IF(#REF!=\"\",\"\",#REF!)","v":{"$error":"#REF!"}},{"$f":"IF(#REF!=\"\",\"\",#REF!)","v":{"$error":"#REF!"}}]
[{"$f":"#REF!","v":{"$error":"#REF!"}},{"$f":"#REF!","v":{"$error":"#REF!"}},{"$f":"#REF!","v":{"$error":"#REF!"}},{"$f":"#REF!","v":{"$error":"#REF!"}},{"$f":"#REF!","v":{"$error":"#REF!"}},{"$f":"#REF!","v":{"$error":"#REF!"}},{"$f":"#REF!","v":{"$error":"#REF!"}},{"$f":"#REF!","v":{"$error":"#REF!"}}]
[{"$f":"#REF!","v":{"$error":"#REF!"}},{"$f":"#REF!","v":{"$error":"#REF!"}},{"$f":"#REF!","v":{"$error":"#REF!"}},{"$f":"#REF!","v":{"$error":"#REF!"}},{"$f":"#REF!","v":{"$error":"#REF!"}},{"$f":"IF(#REF!=\"\",\"\",#REF!)","v":{"$error":"#REF!"}},{"$f":"IF(#REF!=\"\",\"\",#REF!)","v":{"$error":"#REF!"}},{"$f":"IF(#REF!=\"\",\"\",#REF!)","v":{"$error":"#REF!"}}]
[{"$f":"'FW nonmetal plant'!B11","v":"No."},{"$f":"'FW nonmetal plant'!B13","v":1},{"$f":"'FW nonmetal plant'!B16","v":2},{"$f":"'FW nonmetal plant'!B19","v":3},{"$f":"'FW nonmetal plant'!B21","v":4},{"$f":"'FW nonmetal plant'!B23","v":5},{"$f":"'FW nonmetal plant'!B26","v":6},{"$f":"'FW nonmetal plant'!B29","v":7},{"$f":"'FW nonmetal plant'!B32","v":8},{"$f":"'FW nonmetal plant'!B35","v":9},{"$f":"'FW nonmetal plant'!B39","v":10},{"$f":"'FW nonmetal plant'!B42","v":11},{"$f":"'FW nonmetal plant'!B45","v":12},{"$f":"'FW nonmetal plant'!B48","v":13},{"$f":"'FW nonmetal plant'!B51","v":14},{"$f":"'FW nonmetal plant'!B53","v":15},{"$f":"'FW nonmetal plant'!B58","v":16.10},{"$f":"'FW nonmetal plant'!B62","v":17},{"$f":"'FW nonmetal plant'!B65","v":18},{"$f":"'FW nonmetal plant'!C70","v":"Total score"},{"$f":"'FW nonmetal plant'!C72","v":"Quality Score"}]
[{"$f":"'FW nonmetal plant'!C2","v":"Category"},{"$f":"'FW nonmetal plant'!E2","v":"Freshwater/non-metal/plant"},{"$f":"'FW nonmetal plant'!C3","v":"Paper and data unique identifier(eg. 1-1,10-150)"},{"$f":"'FW nonmetal plant'!E3","v":"50-1"}]
[{"$f":"'FW nonmetal plant'!G11","v":"Scores"},{"$f":"'FW nonmetal plant'!G12","v":10},{"$f":"'FW nonmetal plant'!G15","v":0},{"$f":"'FW nonmetal plant'!G18","v":5},{"$f":"'FW nonmetal plant'!G21","v":0},{"$f":"'FW nonmetal plant'!G23","v":5},{"$f":"'FW nonmetal plant'!G26","v":5},{"$f":"'FW nonmetal plant'!G29","v":0},{"$f":"'FW nonmetal plant'!G32","v":0},{"$f":"'FW nonmetal plant'!G35","v":0},{"$f":"'FW nonmetal plant'!G38","v":0},{"$f":"'FW nonmetal plant'!G41","v":4},{"$f":"'FW nonmetal plant'!G44","v":0},{"$f":"'FW nonmetal plant'!G47","v":0},{"$f":"'FW nonmetal plant'!G50","v":0},{"$f":"'FW nonmetal plant'!G53","v":4},{"$f":"'FW nonmetal plant'!G57","v":0},{"$f":"'FW nonmetal plant'!G61","v":0},{"$f":"'FW nonmetal plant'!G64","v":3},{"$f":"'FW nonmetal plant'!G70","v":36},{"$f":"'FW nonmetal plant'!G72","v":0.40909090909090912},{"$f":"'FW nonmetal plant'!H72","v":""}]
[{"$f":"'FW nonmetal plant'!H11","v":"Answers"},{"$f":"IF('FW nonmetal plant'!H12=\"\",\"\",'FW nonmetal plant'!H12)","v":"33 d"},{"$f":"IF('FW nonmetal plant'!H15=\"\",\"\",'FW nonmetal plant'!H15)","v":"Only stated that 'all organisms prospered' imdicating no effects"},{"$f":"IF('FW nonmetal plant'!H18=\"\",\"\",'FW nonmetal plant'!H18)","v":"NOEC"},{"$f":"IF('FW nonmetal plant'!H21=\"\",\"\",'FW nonmetal plant'!H21)","v":"Not quantified"},{"$f":"IF('FW nonmetal plant'!H23=\"\",\"\",'FW nonmetal plant'!H23)","v":"Control - no dioxin"},{"$f":"IF('FW nonmetal plant'!H26=\"\",\"\",'FW nonmetal plant'!H26)","v":"2-3 replicates"},{"$f":"IF('FW nonmetal plant'!H29=\"\",\"\",'FW nonmetal plant'!H29)","v":"Not provided"},{"$f":"IF('FW nonmetal plant'!H32=\"\",\"\",'FW nonmetal plant'!H32)","v":"Just added strands of algae"},{"$f":"IF('FW nonmetal plant'!H35=\"\",\"\",'FW nonmetal plant'!H35)","v":"Not provided"},{"$f":"IF('FW nonmetal plant'!H38=\"\",\"\",'FW nonmetal plant'!H38)","v":"Inferred (static)"},{"$f":"IF('FW nonmetal plant'!H41=\"\",\"\",'FW nonmetal plant'!H41)","v":"Measured"},{"$f":"IF('FW nonmetal plant'!H44=\"\",\"\",'FW nonmetal plant'!H44)","v":"No ref tox"},{"$f":"IF('FW nonmetal plant'!H47=\"\",\"\",'FW nonmetal plant'!H47)","v":"Inferred"},{"$f":"IF('FW nonmetal plant'!H53=\"\",\"\",'FW nonmetal plant'!H53)","v":"95% CL (550-582)"},{"$f":"IF('FW nonmetal plant'!H53=\"\",\"\",'FW nonmetal plant'!H53)","v":"95% CL (550-582)"},{"$f":"IF('FW nonmetal plant'!H57=\"\",\"\",'FW nonmetal plant'!H57)","v":"Ref to USEPA method"},{"$f":"IF('FW nonmetal plant'!H61=\"\",\"\",'FW nonmetal plant'!H61)","v":"Ref to USEPA method"},{"$f":"IF('FW nonmetal plant'!H64=\"\",\"\",'FW nonmetal plant'!H64)","v":"reagent grade chemical(Cr chloride)"}]
[{"$f":"'FW nonmetal plant'!G3","v":"Species (Scientific name)"},{"$f":"'FW nonmetal plant'!G4","v":"Lifestage"},{"$f":"'FW nonmetal plant'!G5","v":"Exposure duration"},{"$f":"'FW nonmetal plant'!G6","v":"Measure of toxicity"},{"$f":"'FW nonmetal plant'!G7","v":"Toxicity endpoint"},{"$f":"'FW nonmetal plant'!G8","v":"Toxicity value"},{"$f":"'FW nonmetal plant'!J2","v":"Taxonomic group"},{"$f":"'FW nonmetal plant'!J3","v":"Phylum"},{"$f":"'FW nonmetal plant'!J4","v":"Class"},{"$f":"'FW nonmetal plant'!J5","v":"Media"},{"$f":"'FW nonmetal plant'!J6","v":"Temperature "},{"$f":"'FW nonmetal plant'!J7","v":"Acute Or Chronic "},{"$f":"'FW nonmetal plant'!J8","v":"PH"},{"$f":"'FW nonmetal plant'!J9","v":"Salinity/Conductivity"},{"$f":"'FW nonmetal plant'!C4","v":"Citation"},{"$f":"'FW nonmetal plant'!G2","v":"Citation No."}]
[{"$f":"'FW nonmetal plant'!Q3","v":"Oedogonium cardiacum"},{"$f":"'FW nonmetal plant'!T3","v":"Not stated"},{"$f":"'FW nonmetal plant'!W3","v":"33 d"},{"$f":"'FW nonmetal plant'!Z3","v":"NOEC"},{"$f":"'FW nonmetal plant'!AC3","v":"Growth (fresh weight)"},{"$f":"IF('FW nonmetal plant'!H8=\"\",\"\",'FW nonmetal plant'!H8)","v":1330},{"$f":"'FW nonmetal plant'!AF3","v":"Green algae"},{"$f":"'FW nonmetal plant'!AI3","v":"Chlorophyta"},{"$f":"'FW nonmetal plant'!AO3","v":"Not stated"},{"$f":"'FW nonmetal plant'!AR3","v":"Not stated"},{"$f":"'FW nonmetal plant'!AR3","v":"Not stated"},{"$f":"'FW nonmetal plant'!AU3","v":"Chronic"},{"$f":"'FW nonmetal plant'!AX3","v":7.50},{"$f":"'FW nonmetal plant'!BA3","v":"N.A."},{"$f":"IF('FW nonmetal plant'!#REF!=\"\",\"\",'FW nonmetal plant'!#REF!)","v":{"$error":"#REF!"}},{"$f":"IF('FW nonmetal plant'!H2=\"\",\"\",'FW nonmetal plant'!H2)","v":"50"}]
[{"$f":"#REF!","v":{"$error":"#REF!"}},{"$f":"#REF!","v":{"$error":"#REF!"}},{"$f":"#REF!","v":{"$error":"#REF!"}},{"$f":"#REF!","v":{"$error":"#REF!"}},{"$f":"#REF!","v":{"$error":"#REF!"}},{"$f":"#REF!","v":{"$error":"#REF!"}},{"$f":"#REF!","v":{"$error":"#REF!"}},{"$f":"#REF!","v":{"$error":"#REF!"}},{"$f":"#REF!","v":{"$error":"#REF!"}},{"$f":"#REF!","v":{"$error":"#REF!"}},{"$f":"#REF!","v":{"$error":"#REF!"}},{"$f":"#REF!","v":{"$error":"#REF!"}},{"$f":"#REF!","v":{"$error":"#REF!"}},{"$f":"#REF!","v":{"$error":"#REF!"}},{"$f":"#REF!","v":{"$error":"#REF!"}},{"$f":"#REF!","v":{"$error":"#REF!"}},{"$f":"#REF!","v":{"$error":"#REF!"}},{"$f":"#REF!","v":{"$error":"#REF!"}},{"$f":"#REF!","v":{"$error":"#REF!"}},{"$f":"#REF!","v":{"$error":"#REF!"}},{"$f":"#REF!","v":{"$error":"#REF!"}},{"$f":"#REF!","v":{"$error":"#REF!"}},{"$f":"#REF!","v":{"$error":"#REF!"}},{"$f":"#REF!","v":{"$error":"#REF!"}}]
[{"$f":"#REF!","v":{"$error":"#REF!"}},{"$f":"#REF!","v":{"$error":"#REF!"}},{"$f":"#REF!","v":{"$error":"#REF!"}},{"$f":"#REF!","v":{"$error":"#REF!"}}]
[{"$f":"#REF!","v":{"$error":"#REF!"}},{"$f":"#REF!","v":{"$error":"#REF!"}},{"$f":"#REF!","v":{"$error":"#REF!"}},{"$f":"#REF!","v":{"$error":"#REF!"}},{"$f":"#REF!","v":{"$error":"#REF!"}},{"$f":"#REF!","v":{"$error":"#REF!"}},{"$f":"#REF!","v":{"$error":"#REF!"}},{"$f":"#REF!","v":{"$error":"#REF!"}},{"$f":"#REF!","v":{"$error":"#REF!"}},{"$f":"#REF!","v":{"$error":"#REF!"}},{"$f":"#REF!","v":{"$error":"#REF!"}},{"$f":"#REF!","v":{"$error":"#REF!"}},{"$f":"#REF!","v":{"$error":"#REF!"}},{"$f":"#REF!","v":{"$error":"#REF!"}},{"$f":"#REF!","v":{"$error":"#REF!"}},{"$f":"#REF!","v":{"$error":"#REF!"}},{"$f":"#REF!","v":{"$error":"#REF!"}},{"$f":"#REF!","v":{"$error":"#REF!"}},{"$f":"#REF!","v":{"$error":"#REF!"}},{"$f":"#REF!","v":{"$error":"#REF!"}},{"$f":"#REF!","v":{"$error":"#REF!"}},{"$f":"#REF!","v":{"$error":"#REF!"}},{"$f":"#REF!","v":{"$error":"#REF!"}},{"$f":"#REF!","v":{"$error":"#REF!"}},{"$f":"#REF!","v":{"$error":"#REF!"}}]
[{"$f":"#REF!","v":{"$error":"#REF!"}},{"$f":"IF(#REF!=\"\",\"\",#REF!)","v":{"$error":"#REF!"}},{"$f":"IF(#REF!=\"\",\"\",#REF!)","v":{"$error":"#REF!"}},{"$f":"IF(#REF!=\"\",\"\",#REF!)","v":{"$error":"#REF!"}},{"$f":"IF(#REF!=\"\",\"\",#REF!)","v":{"$error":"#REF!"}},{"$f":"IF(#REF!=\"\",\"\",#REF!)","v":{"$error":"#REF!"}},{"$f":"IF(#REF!=\"\",\"\",#REF!)","v":{"$error":"#REF!"}},{"$f":"IF(#REF!=\"\",\"\",#REF!)","v":{"$error":"#REF!"}},{"$f":"IF(#REF!=\"\",\"\",#REF!)","v":{"$error":"#REF!"}},{"$f":"IF(#REF!=\"\",\"\",#REF!)","v":{"$error":"#REF!"}},{"$f":"IF(#REF!=\"\",\"\",#REF!)","v":{"$error":"#REF!"}},{"$f":"IF(#REF!=\"\",\"\",#REF!)","v":{"$error":"#REF!"}},{"$f":"IF(#REF!=\"\",\"\",#REF!)","v":{"$error":"#REF!"}},{"$f":"IF(#REF!=\"\",\"\",#REF!)","v":{"$error":"#REF!"}},{"$f":"IF(#REF!=\"\",\"\",#REF!)","v":{"$error":"#REF!"}},{"$f":"IF(#REF!=\"\",\"\",#REF!)","v":{"$error":"#REF!"}},{"$f":"IF(#REF!=\"\",\"\",#REF!)","v":{"$error":"#REF!"}},{"$f":"IF(#REF!=\"\",\"\",#REF!)","v":{"$error":"#REF!"}},{"$f":"IF(#REF!=\"\",\"\",#REF!)","v":{"$error":"#REF!"}},{"$f":"IF(#REF!=\"\",\"\",#REF!)","v":{"$error":"#REF!"}},{"$f":"IF(#REF!=\"\",\"\",#REF!)","v":{"$error":"#REF!"}},{"$f":"IF(#REF!=\"\",\"\",#REF!)","v":{"$error":"#REF!"}}]
[{"$f":"#REF!","v":{"$error":"#REF!"}},{"$f":"#REF!","v":{"$error":"#REF!"}},{"$f":"#REF!","v":{"$error":"#REF!"}},{"$f":"#REF!","v":{"$error":"#REF!"}},{"$f":"#REF!","v":{"$error":"#REF!"}},{"$f":"#REF!","v":{"$error":"#REF!"}},{"$f":"#REF!","v":{"$error":"#REF!"}},{"$f":"#REF!","v":{"$error":"#REF!"}},{"$f":"#REF!","v":{"$error":"#REF!"}},{"$f":"#REF!","v":{"$error":"#REF!"}},{"$f":"#REF!","v":{"$error":"#REF!"}},{"$f":"#REF!","v":{"$error":"#REF!"}},{"$f":"#REF!","v":{"$error":"#REF!"}},{"$f":"#REF!","v":{"$error":"#REF!"}},{"$f":"#REF!","v":{"$error":"#REF!"}},{"$f":"#REF!","v":{"$error":"#REF!"}}]
[{"$f":"#REF!","v":{"$error":"#REF!"}},{"$f":"#REF!","v":{"$error":"#REF!"}},{"$f":"#REF!","v":{"$error":"#REF!"}},{"$f":"#REF!","v":{"$error":"#REF!"}},{"$f":"#REF!","v":{"$error":"#REF!"}},{"$f":"IF(#REF!=\"\",\"\",#REF!)","v":{"$error":"#REF!"}},{"$f":"#REF!","v":{"$error":"#REF!"}},{"$f":"#REF!","v":{"$error":"#REF!"}},{"$f":"#REF!","v":{"$error":"#REF!"}},{"$f":"#REF!","v":{"$error":"#REF!"}},{"$f":"#REF!","v":{"$error":"#REF!"}},{"$f":"#REF!","v":{"$error":"#REF!"}},{"$f":"#REF!","v":{"$error":"#REF!"}},{"$f":"#REF!","v":{"$error":"#REF!"}},{"$f":"IF(#REF!=\"\",\"\",#REF!)","v":{"$error":"#REF!"}},{"$f":"IF(#REF!=\"\",\"\",#REF!)","v":{"$error":"#REF!"}}]
[{"$f":"'FW nonmetal nonplant'!B11","v":"No."},{"$f":"'FW nonmetal nonplant'!B13","v":1},{"$f":"'FW nonmetal nonplant'!B16","v":2},{"$f":"'FW nonmetal nonplant'!B19","v":3},{"$f":"'FW nonmetal nonplant'!B21","v":4},{"$f":"'FW nonmetal nonplant'!B23","v":5},{"$f":"'FW nonmetal nonplant'!B26","v":6},{"$f":"'FW nonmetal nonplant'!B29","v":7},{"$f":"'FW nonmetal nonplant'!B32","v":8},{"$f":"'FW nonmetal nonplant'!B35","v":9},{"$f":"'FW nonmetal nonplant'!B39","v":10},{"$f":"'FW nonmetal nonplant'!B42","v":11},{"$f":"'FW nonmetal nonplant'!B45","v":12},{"$f":"'FW nonmetal nonplant'!B48","v":13},{"$f":"'FW nonmetal nonplant'!B51","v":14},{"$f":"'FW nonmetal nonplant'!B53","v":15},{"$f":"'FW nonmetal nonplant'!B58","v":16.10},{"$f":"'FW nonmetal nonplant'!B61","v":16.20},{"$f":"'FW nonmetal nonplant'!B64","v":17},{"$f":"'FW nonmetal nonplant'!B67","v":18},{"$f":"'FW nonmetal nonplant'!C72","v":"Total score"},{"$f":"'FW nonmetal nonplant'!C74","v":"Quality Score"}]
[{"$f":"'FW nonmetal nonplant'!C2","v":"Category"},{"$f":"'FW nonmetal nonplant'!E2","v":"Freshwater/non-metal/non- plant"},{"$f":"'FW nonmetal nonplant'!C3","v":"Paper and data unique identifier(eg. 1-1,10-150)"},{"$f":"'FW nonmetal nonplant'!E3","v":"73-1"}]
[{"$f":"'FW nonmetal nonplant'!G11","v":"Scores"},{"$f":"'FW nonmetal nonplant'!G12","v":10},{"$f":"'FW nonmetal nonplant'!G15","v":5},{"$f":"'FW nonmetal nonplant'!G18","v":5},{"$f":"'FW nonmetal nonplant'!G21","v":0},{"$f":"'FW nonmetal nonplant'!G23","v":5},{"$f":"'FW nonmetal nonplant'!G26","v":5},{"$f":"'FW nonmetal nonplant'!G29","v":0},{"$f":"'FW nonmetal nonplant'!G32","v":5},{"$f":"'FW nonmetal nonplant'!G35","v":5},{"$f":"'FW nonmetal nonplant'!G38","v":4},{"$f":"'FW nonmetal nonplant'!G41","v":0},{"$f":"'FW nonmetal nonplant'!G44","v":0},{"$f":"'FW nonmetal nonplant'!G47","v":4},{"$f":"'FW nonmetal nonplant'!G50","v":4},{"$f":"'FW nonmetal nonplant'!G53","v":0},{"$f":"'FW nonmetal nonplant'!G57","v":0},{"$f":"'FW nonmetal nonplant'!G60","v":0},{"$f":"'FW nonmetal nonplant'!G63","v":3},{"$f":"'FW nonmetal nonplant'!G66","v":3},{"$f":"'FW nonmetal nonplant'!G72","v":58},{"$f":"'FW nonmetal nonplant'!G74","v":0.63736263736263732},null,{"$f":"'FW nonmetal nonplant'!H74","v":"The highest possible grade for this datum is acceptable."}]
[{"$f":"'FW nonmetal nonplant'!H11","v":"Answers"},{"$f":"IF('FW nonmetal nonplant'!H12=\"\",\"\",'FW nonmetal nonplant'!H12)","v":"20 d + 21 d observation in clean water"},{"$f":"IF('FW nonmetal nonplant'!H15=\"\",\"\",'FW nonmetal nonplant'!H15)","v":"Mortality at metamorphosis"},{"$f":"IF('FW nonmetal nonplant'!H18=\"\",\"\",'FW nonmetal nonplant'!H18)","v":"LOEC"},{"$f":"IF('FW nonmetal nonplant'!H21=\"\",\"\",'FW nonmetal nonplant'!H21)","v":"No details"},{"$f":"IF('FW nonmetal nonplant'!H23=\"\",\"\",'FW nonmetal nonplant'!H23)","v":"Control + corn-oil solvent control (no dioxin)"},{"$f":"IF('FW nonmetal nonplant'!H26=\"\",\"\",'FW nonmetal nonplant'!H26)","v":"Duplicated"},{"$f":"IF('FW nonmetal nonplant'!H29=\"\",\"\",'FW nonmetal nonplant'!H29)","v":"Not provided"},{"$f":"IF('FW nonmetal nonplant'!H32=\"\",\"\",'FW nonmetal nonplant'!H32)","v":"Tadpoles stage 48-55"},{"$f":"IF('FW nonmetal nonplant'!H35=\"\",\"\",'FW nonmetal nonplant'!H35)","v":"Well water"},{"$f":"IF('FW nonmetal nonplant'!H38=\"\",\"\",'FW nonmetal nonplant'!H38)","v":"Static "},{"$f":"IF('FW nonmetal nonplant'!H41=\"\",\"\",'FW nonmetal nonplant'!H41)","v":"Nominal "},{"$f":"IF('FW nonmetal nonplant'!H44=\"\",\"\",'FW nonmetal nonplant'!H44)","v":"Not conducted"},{"$f":"IF('FW nonmetal nonplant'!H47=\"\",\"\",'FW nonmetal nonplant'!H47)","v":"Effects at all concentrations"},{"$f":"IF('FW nonmetal nonplant'!H50=\"\",\"\",'FW nonmetal nonplant'!H50)","v":"Linear regression, ANOVA & T-tests"},{"$f":"IF('FW nonmetal nonplant'!H53=\"\",\"\",'FW nonmetal nonplant'!H53)","v":"Not stated"},{"$f":"IF('FW nonmetal nonplant'!H57=\"\",\"\",'FW nonmetal nonplant'!H57)","v":"Not stated"},{"$f":"IF('FW nonmetal nonplant'!H60=\"\",\"\",'FW nonmetal nonplant'!H60)","v":"Not stated"},{"$f":"IF('FW nonmetal nonplant'!H63=\"\",\"\",'FW nonmetal nonplant'!H63)","v":"20 degrees"},{"$f":"IF('FW nonmetal nonplant'!H66=\"\",\"\",'FW nonmetal nonplant'!H66)","v":">99% "}]
[{"$f":"'FW nonmetal nonplant'!G3","v":"Species (Scientific name)"},{"$f":"'FW nonmetal nonplant'!G4","v":"Lifestage"},{"$f":"'FW nonmetal nonplant'!G5","v":"Exposure duration"},{"$f":"'FW nonmetal nonplant'!G6","v":"Measure of toxicity"},{"$f":"'FW nonmetal nonplant'!G7","v":"Toxicity endpoint"},{"$f":"'FW nonmetal nonplant'!G8","v":"Toxicity value"},{"$f":"'FW nonmetal nonplant'!J2","v":"Taxonomic group"},{"$f":"'FW nonmetal nonplant'!J3","v":"Phylum"},{"$f":"'FW nonmetal nonplant'!J4","v":"Class"},{"$f":"'FW nonmetal nonplant'!J5","v":"Media"},{"$f":"'FW nonmetal nonplant'!J6","v":"Temperature "},{"$f":"'FW nonmetal nonplant'!J7","v":"Acute Or Chronic "},{"$f":"'FW nonmetal nonplant'!J8","v":"PH"},{"$f":"'FW nonmetal nonplant'!J9","v":"Salinity/Conductivity"},{"$f":"'FW nonmetal nonplant'!C4","v":"Citation"},{"$f":"'FW nonmetal nonplant'!G2","v":"Citation No."}]
[{"$f":"'FW nonmetal nonplant'!Q3","v":"Xenopus laevis"},{"$f":"'FW nonmetal nonplant'!T3","v":"Tadpoles stage 48-55"},{"$f":"'FW nonmetal nonplant'!W3","v":"30d + 21d observation"},{"$f":"'FW nonmetal nonplant'!Z3","v":"LC20"},{"$f":"'FW nonmetal nonplant'!AC3","v":"Mortality"},{"$f":"IF('FW nonmetal nonplant'!H8=\"\",\"\",'FW nonmetal nonplant'!H8)","v":100},{"$f":"'FW nonmetal nonplant'!AF3","v":"Amphibian"},{"$f":"'FW nonmetal nonplant'!AI3","v":"Chordata"},{"$f":"'FW nonmetal nonplant'!AL3","v":"Amphibia"},{"$f":"'FW nonmetal nonplant'!AO3","v":"Well water"},{"$f":"'FW nonmetal nonplant'!AR3","v":"20 +/- 1"},{"$f":"'FW nonmetal nonplant'!AU3","v":"Chronic"},{"$f":"'FW nonmetal nonplant'!AX3","v":"Not stated"},{"$f":"'FW nonmetal nonplant'!BA3","v":"N.A."},{"$f":"IF('FW nonmetal plant'!E4=\"\",\"\",'FW nonmetal plant'!E4)","v":"Isensee AR and Jones GE (1978). Distribution of 2,3,7,8-tetrachlorodibenzo-p-dioxin (TCDD) in aquatic model ecosystem. Environmental Science and Technology, 9, 668-672."},{"$f":"IF('FW nonmetal nonplant'!H2=\"\",\"\",'FW nonmetal nonplant'!H2)","v":"73"}]
[{"$f":"#REF!","v":{"$error":"#REF!"}},{"$f":"#REF!","v":{"$error":"#REF!"}},{"$f":"#REF!","v":{"$error":"#REF!"}},{"$f":"#REF!","v":{"$error":"#REF!"}},{"$f":"#REF!","v":{"$error":"#REF!"}},{"$f":"#REF!","v":{"$error":"#REF!"}},{"$f":"#REF!","v":{"$error":"#REF!"}},{"$f":"#REF!","v":{"$error":"#REF!"}},{"$f":"#REF!","v":{"$error":"#REF!"}},{"$f":"#REF!","v":{"$error":"#REF!"}},{"$f":"#REF!","v":{"$error":"#REF!"}},{"$f":"#REF!","v":{"$error":"#REF!"}},{"$f":"#REF!","v":{"$error":"#REF!"}},{"$f":"#REF!","v":{"$error":"#REF!"}},{"$f":"#REF!","v":{"$error":"#REF!"}},{"$f":"#REF!","v":{"$error":"#REF!"}},{"$f":"#REF!","v":{"$error":"#REF!"}},{"$f":"#REF!","v":{"$error":"#REF!"}},{"$f":"#REF!","v":{"$error":"#REF!"}},{"$f":"#REF!","v":{"$error":"#REF!"}},{"$f":"#REF!","v":{"$error":"#REF!"}},{"$f":"#REF!","v":{"$error":"#REF!"}},{"$f":"#REF!","v":{"$error":"#REF!"}},{"$f":"#REF!","v":{"$error":"#REF!"}},{"$f":"#REF!","v":{"$error":"#REF!"}}]
[{"$f":"#REF!","v":{"$error":"#REF!"}},{"$f":"#REF!","v":{"$error":"#REF!"}},{"$f":"#REF!","v":{"$error":"#REF!"}},{"$f":"#REF!","v":{"$error":"#REF!"}}]
[{"$f":"#REF!","v":{"$error":"#REF!"}},{"$f":"#REF!","v":{"$error":"#REF!"}},{"$f":"#REF!","v":{"$error":"#REF!"}},{"$f":"#REF!","v":{"$error":"#REF!"}},{"$f":"#REF!","v":{"$error":"#REF!"}},{"$f":"#REF!","v":{"$error":"#REF!"}},{"$f":"#REF!","v":{"$error":"#REF!"}},{"$f":"#REF!","v":{"$error":"#REF!"}},{"$f":"#REF!","v":{"$error":"#REF!"}},{"$f":"#REF!","v":{"$error":"#REF!"}},{"$f":"#REF!","v":{"$error":"#REF!"}},{"$f":"#REF!","v":{"$error":"#REF!"}},{"$f":"#REF!","v":{"$error":"#REF!"}},{"$f":"#REF!","v":{"$error":"#REF!"}},{"$f":"#REF!","v":{"$error":"#REF!"}},{"$f":"#REF!","v":{"$error":"#REF!"}},{"$f":"#REF!","v":{"$error":"#REF!"}},{"$f":"#REF!","v":{"$error":"#REF!"}},{"$f":"#REF!","v":{"$error":"#REF!"}},{"$f":"#REF!","v":{"$error":"#REF!"}},{"$f":"#REF!","v":{"$error":"#REF!"}},{"$f":"#REF!","v":{"$error":"#REF!"}},{"$f":"#REF!","v":{"$error":"#REF!"}},{"$f":"#REF!","v":{"$error":"#REF!"}},{"$f":"#REF!","v":{"$error":"#REF!"}},{"$f":"#REF!","v":{"$error":"#REF!"}}]
[{"$f":"#REF!","v":{"$error":"#REF!"}},{"$f":"IF(#REF!=\"\",\"\",#REF!)","v":{"$error":"#REF!"}},{"$f":"IF(#REF!=\"\",\"\",#REF!)","v":{"$error":"#REF!"}},{"$f":"IF(#REF!=\"\",\"\",#REF!)","v":{"$error":"#REF!"}},{"$f":"IF(#REF!=\"\",\"\",#REF!)","v":{"$error":"#REF!"}},{"$f":"IF(#REF!=\"\",\"\",#REF!)","v":{"$error":"#REF!"}},{"$f":"IF(#REF!=\"\",\"\",#REF!)","v":{"$error":"#REF!"}},{"$f":"IF(#REF!=\"\",\"\",#REF!)","v":{"$error":"#REF!"}},{"$f":"IF(#REF!=\"\",\"\",#REF!)","v":{"$error":"#REF!"}},{"$f":"IF(#REF!=\"\",\"\",#REF!)","v":{"$error":"#REF!"}},{"$f":"IF(#REF!=\"\",\"\",#REF!)","v":{"$error":"#REF!"}},{"$f":"IF(#REF!=\"\",\"\",#REF!)","v":{"$error":"#REF!"}},{"$f":"IF(#REF!=\"\",\"\",#REF!)","v":{"$error":"#REF!"}},{"$f":"IF(#REF!=\"\",\"\",#REF!)","v":{"$error":"#REF!"}},{"$f":"IF(#REF!=\"\",\"\",#REF!)","v":{"$error":"#REF!"}},{"$f":"IF(#REF!=\"\",\"\",#REF!)","v":{"$error":"#REF!"}},{"$f":"IF(#REF!=\"\",\"\",#REF!)","v":{"$error":"#REF!"}},{"$f":"IF(#REF!=\"\",\"\",#REF!)","v":{"$error":"#REF!"}},{"$f":"IF(#REF!=\"\",\"\",#REF!)","v":{"$error":"#REF!"}},{"$f":"IF(#REF!=\"\",\"\",#REF!)","v":{"$error":"#REF!"}},{"$f":"IF(#REF!=\"\",\"\",#REF!)","v":{"$error":"#REF!"}},{"$f":"IF(#REF!=\"\",\"\",#REF!)","v":{"$error":"#REF!"}},{"$f":"IF(#REF!=\"\",\"\",#REF!)","v":{"$error":"#REF!"}}]
[{"$f":"#REF!","v":{"$error":"#REF!"}},{"$f":"#REF!","v":{"$error":"#REF!"}},{"$f":"#REF!","v":{"$error":"#REF!"}},{"$f":"#REF!","v":{"$error":"#REF!"}},{"$f":"#REF!","v":{"$error":"#REF!"}},{"$f":"#REF!","v":{"$error":"#REF!"}},{"$f":"#REF!","v":{"$error":"#REF!"}},{"$f":"#REF!","v":{"$error":"#REF!"}},{"$f":"#REF!","v":{"$error":"#REF!"}},{"$f":"#REF!","v":{"$error":"#REF!"}},{"$f":"#REF!","v":{"$error":"#REF!"}},{"$f":"#REF!","v":{"$error":"#REF!"}},{"$f":"#REF!","v":{"$error":"#REF!"}},{"$f":"#REF!","v":{"$error":"#REF!"}},{"$f":"#REF!","v":{"$error":"#REF!"}},{"$f":"#REF!","v":{"$error":"#REF!"}}]
[{"$f":"#REF!","v":{"$error":"#REF!"}},{"$f":"#REF!","v":{"$error":"#REF!"}},{"$f":"#REF!","v":{"$error":"#REF!"}},{"$f":"#REF!","v":{"$error":"#REF!"}},{"$f":"#REF!","v":{"$error":"#REF!"}},{"$f":"IF(#REF!=\"\",\"\",#REF!)","v":{"$error":"#REF!"}},{"$f":"#REF!","v":{"$error":"#REF!"}},{"$f":"#REF!","v":{"$error":"#REF!"}},{"$f":"#REF!","v":{"$error":"#REF!"}},{"$f":"#REF!","v":{"$error":"#REF!"}},{"$f":"#REF!","v":{"$error":"#REF!"}},{"$f":"#REF!","v":{"$error":"#REF!"}},{"$f":"#REF!","v":{"$error":"#REF!"}},{"$f":"#REF!","v":{"$error":"#REF!"}},{"$f":"IF(#REF!=\"\",\"\",#REF!)","v":{"$error":"#REF!"}},{"$f":"IF(#REF!=\"\",\"\",#REF!)","v":{"$error":"#REF!"}}]
[{"$f":"#REF!","v":{"$error":"#REF!"}},{"$f":"#REF!","v":{"$error":"#REF!"}},{"$f":"#REF!","v":{"$error":"#REF!"}},{"$f":"#REF!","v":{"$error":"#REF!"}},{"$f":"#REF!","v":{"$error":"#REF!"}},{"$f":"#REF!","v":{"$error":"#REF!"}},{"$f":"#REF!","v":{"$error":"#REF!"}},{"$f":"#REF!","v":{"$error":"#REF!"}},{"$f":"#REF!","v":{"$error":"#REF!"}},{"$f":"#REF!","v":{"$error":"#REF!"}},{"$f":"#REF!","v":{"$error":"#REF!"}},{"$f":"#REF!","v":{"$error":"#REF!"}},{"$f":"#REF!","v":{"$error":"#REF!"}},{"$f":"#REF!","v":{"$error":"#REF!"}},{"$f":"#REF!","v":{"$error":"#REF!"}},{"$f":"#REF!","v":{"$error":"#REF!"}},{"$f":"#REF!","v":{"$error":"#REF!"}},{"$f":"#REF!","v":{"$error":"#REF!"}},{"$f":"#REF!","v":{"$error":"#REF!"}},{"$f":"#REF!","v":{"$error":"#REF!"}},{"$f":"#REF!","v":{"$error":"#REF!"}},{"$f":"#REF!","v":{"$error":"#REF!"}},{"$f":"#REF!","v":{"$error":"#REF!"}}]
[{"$f":"#REF!","v":{"$error":"#REF!"}},{"$f":"#REF!","v":{"$error":"#REF!"}},{"$f":"#REF!","v":{"$error":"#REF!"}},{"$f":"#REF!","v":{"$error":"#REF!"}}]
[{"$f":"#REF!","v":{"$error":"#REF!"}},{"$f":"#REF!","v":{"$error":"#REF!"}},{"$f":"#REF!","v":{"$error":"#REF!"}},{"$f":"#REF!","v":{"$error":"#REF!"}},{"$f":"#REF!","v":{"$error":"#REF!"}},{"$f":"#REF!","v":{"$error":"#REF!"}},{"$f":"#REF!","v":{"$error":"#REF!"}},{"$f":"#REF!","v":{"$error":"#REF!"}},{"$f":"#REF!","v":{"$error":"#REF!"}},{"$f":"#REF!","v":{"$error":"#REF!"}},{"$f":"#REF!","v":{"$error":"#REF!"}},{"$f":"#REF!","v":{"$error":"#REF!"}},{"$f":"#REF!","v":{"$error":"#REF!"}},{"$f":"#REF!","v":{"$error":"#REF!"}},{"$f":"#REF!","v":{"$error":"#REF!"}},{"$f":"#REF!","v":{"$error":"#REF!"}},{"$f":"#REF!","v":{"$error":"#REF!"}},{"$f":"#REF!","v":{"$error":"#REF!"}},{"$f":"#REF!","v":{"$error":"#REF!"}},{"$f":"#REF!","v":{"$error":"#REF!"}},{"$f":"#REF!","v":{"$error":"#REF!"}},{"$f":"#REF!","v":{"$error":"#REF!"}},{"$f":"#REF!","v":{"$error":"#REF!"}},{"$f":"#REF!","v":{"$error":"#REF!"}}]
[{"$f":"#REF!","v":{"$error":"#REF!"}},{"$f":"IF(#REF!=\"\",\"\",#REF!)","v":{"$error":"#REF!"}},{"$f":"IF(#REF!=\"\",\"\",#REF!)","v":{"$error":"#REF!"}},{"$f":"IF(#REF!=\"\",\"\",#REF!)","v":{"$error":"#REF!"}},{"$f":"IF(#REF!=\"\",\"\",#REF!)","v":{"$error":"#REF!"}},{"$f":"IF(#REF!=\"\",\"\",#REF!)","v":{"$error":"#REF!"}},{"$f":"IF(#REF!=\"\",\"\",#REF!)","v":{"$error":"#REF!"}},{"$f":"IF(#REF!=\"\",\"\",#REF!)","v":{"$error":"#REF!"}},{"$f":"IF(#REF!=\"\",\"\",#REF!)","v":{"$error":"#REF!"}},{"$f":"IF(#REF!=\"\",\"\",#REF!)","v":{"$error":"#REF!"}},{"$f":"IF(#REF!=\"\",\"\",#REF!)","v":{"$error":"#REF!"}},{"$f":"IF(#REF!=\"\",\"\",#REF!)","v":{"$error":"#REF!"}},{"$f":"IF(#REF!=\"\",\"\",#REF!)","v":{"$error":"#REF!"}},{"$f":"IF(#REF!=\"\",\"\",#REF!)","v":{"$error":"#REF!"}},{"$f":"IF(#REF!=\"\",\"\",#REF!)","v":{"$error":"#REF!"}},{"$f":"IF(#REF!=\"\",\"\",#REF!)","v":{"$error":"#REF!"}},{"$f":"IF(#REF!=\"\",\"\",#REF!)","v":{"$error":"#REF!"}},{"$f":"IF(#REF!=\"\",\"\",#REF!)","v":{"$error":"#REF!"}},{"$f":"IF(#REF!=\"\",\"\",#REF!)","v":{"$error":"#REF!"}},{"$f":"IF(#REF!=\"\",\"\",#REF!)","v":{"$error":"#REF!"}},{"$f":"IF(#REF!=\"\",\"\",#REF!)","v":{"$error":"#REF!"}}]
[{"$f":"#REF!","v":{"$error":"#REF!"}},{"$f":"#REF!","v":{"$error":"#REF!"}},{"$f":"#REF!","v":{"$error":"#REF!"}},{"$f":"#REF!","v":{"$error":"#REF!"}},{"$f":"#REF!","v":{"$error":"#REF!"}},{"$f":"#REF!","v":{"$error":"#REF!"}},{"$f":"#REF!","v":{"$error":"#REF!"}},{"$f":"#REF!","v":{"$error":"#REF!"}},{"$f":"#REF!","v":{"$error":"#REF!"}},{"$f":"#REF!","v":{"$error":"#REF!"}},{"$f":"#REF!","v":{"$error":"#REF!"}},{"$f":"#REF!","v":{"$error":"#REF!"}},{"$f":"#REF!","v":{"$error":"#REF!"}},{"$f":"#REF!","v":{"$error":"#REF!"}},{"$f":"#REF!","v":{"$error":"#REF!"}},{"$f":"#REF!","v":{"$error":"#REF!"}}]
[{"$f":"#REF!","v":{"$error":"#REF!"}},{"$f":"#REF!","v":{"$error":"#REF!"}},{"$f":"#REF!","v":{"$error":"#REF!"}},{"$f":"#REF!","v":{"$error":"#REF!"}},{"$f":"#REF!","v":{"$error":"#REF!"}},{"$f":"IF(#REF!=\"\",\"\",#REF!)","v":{"$error":"#REF!"}},{"$f":"#REF!","v":{"$error":"#REF!"}},{"$f":"#REF!","v":{"$error":"#REF!"}},{"$f":"#REF!","v":{"$error":"#REF!"}},{"$f":"#REF!","v":{"$error":"#REF!"}},{"$f":"#REF!","v":{"$error":"#REF!"}},{"$f":"#REF!","v":{"$error":"#REF!"}},{"$f":"#REF!","v":{"$error":"#REF!"}},{"$f":"#REF!","v":{"$error":"#REF!"}},{"$f":"IF(#REF!=\"\",\"\",#REF!)","v":{"$error":"#REF!"}},{"$f":"IF(#REF!=\"\",\"\",#REF!)","v":{"$error":"#REF!"}}]
[{"$f":"#REF!","v":{"$error":"#REF!"}},{"$f":"#REF!","v":{"$error":"#REF!"}},{"$f":"#REF!","v":{"$error":"#REF!"}},{"$f":"#REF!","v":{"$error":"#REF!"}},{"$f":"#REF!","v":{"$error":"#REF!"}},{"$f":"#REF!","v":{"$error":"#REF!"}},{"$f":"#REF!","v":{"$error":"#REF!"}},{"$f":"#REF!","v":{"$error":"#REF!"}},{"$f":"#REF!","v":{"$error":"#REF!"}},{"$f":"#REF!","v":{"$error":"#REF!"}},{"$f":"#REF!","v":{"$error":"#REF!"}},{"$f":"#REF!","v":{"$error":"#REF!"}},{"$f":"#REF!","v":{"$error":"#REF!"}},{"$f":"#REF!","v":{"$error":"#REF!"}},{"$f":"#REF!","v":{"$error":"#REF!"}},{"$f":"#REF!","v":{"$error":"#REF!"}},{"$f":"#REF!","v":{"$error":"#REF!"}},{"$f":"#REF!","v":{"$error":"#REF!"}},{"$f":"#REF!","v":{"$error":"#REF!"}},{"$f":"#REF!","v":{"$error":"#REF!"}},{"$f":"#REF!","v":{"$error":"#REF!"}},{"$f":"#REF!","v":{"$error":"#REF!"}}]
[{"$f":"#REF!","v":{"$error":"#REF!"}},{"$f":"#REF!","v":{"$error":"#REF!"}},{"$f":"#REF!","v":{"$error":"#REF!"}},{"$f":"#REF!","v":{"$error":"#REF!"}}]
[{"$f":"#REF!","v":{"$error":"#REF!"}},{"$f":"#REF!","v":{"$error":"#REF!"}},{"$f":"#REF!","v":{"$error":"#REF!"}},{"$f":"#REF!","v":{"$error":"#REF!"}},{"$f":"#REF!","v":{"$error":"#REF!"}},{"$f":"#REF!","v":{"$error":"#REF!"}},{"$f":"#REF!","v":{"$error":"#REF!"}},{"$f":"#REF!","v":{"$error":"#REF!"}},{"$f":"#REF!","v":{"$error":"#REF!"}},{"$f":"#REF!","v":{"$error":"#REF!"}},{"$f":"#REF!","v":{"$error":"#REF!"}},{"$f":"#REF!","v":{"$error":"#REF!"}},{"$f":"#REF!","v":{"$error":"#REF!"}},{"$f":"#REF!","v":{"$error":"#REF!"}},{"$f":"#REF!","v":{"$error":"#REF!"}},{"$f":"#REF!","v":{"$error":"#REF!"}},{"$f":"#REF!","v":{"$error":"#REF!"}},{"$f":"#REF!","v":{"$error":"#REF!"}},{"$f":"#REF!","v":{"$error":"#REF!"}},{"$f":"#REF!","v":{"$error":"#REF!"}},{"$f":"#REF!","v":{"$error":"#REF!"}},{"$f":"#REF!","v":{"$error":"#REF!"}},{"$f":"#REF!","v":{"$error":"#REF!"}}]
[{"$f":"#REF!","v":{"$error":"#REF!"}},{"$f":"IF(#REF!=\"\",\"\",#REF!)","v":{"$error":"#REF!"}},{"$f":"IF(#REF!=\"\",\"\",#REF!)","v":{"$error":"#REF!"}},{"$f":"IF(#REF!=\"\",\"\",#REF!)","v":{"$error":"#REF!"}},{"$f":"IF(#REF!=\"\",\"\",#REF!)","v":{"$error":"#REF!"}},{"$f":"IF(#REF!=\"\",\"\",#REF!)","v":{"$error":"#REF!"}},{"$f":"IF(#REF!=\"\",\"\",#REF!)","v":{"$error":"#REF!"}},{"$f":"IF(#REF!=\"\",\"\",#REF!)","v":{"$error":"#REF!"}},{"$f":"IF(#REF!=\"\",\"\",#REF!)","v":{"$error":"#REF!"}},{"$f":"IF(#REF!=\"\",\"\",#REF!)","v":{"$error":"#REF!"}},{"$f":"IF(#REF!=\"\",\"\",#REF!)","v":{"$error":"#REF!"}},{"$f":"IF(#REF!=\"\",\"\",#REF!)","v":{"$error":"#REF!"}},{"$f":"IF(#REF!=\"\",\"\",#REF!)","v":{"$error":"#REF!"}},{"$f":"IF(#REF!=\"\",\"\",#REF!)","v":{"$error":"#REF!"}},{"$f":"IF(#REF!=\"\",\"\",#REF!)","v":{"$error":"#REF!"}},{"$f":"IF(#REF!=\"\",\"\",#REF!)","v":{"$error":"#REF!"}},{"$f":"IF(#REF!=\"\",\"\",#REF!)","v":{"$error":"#REF!"}},{"$f":"IF(#REF!=\"\",\"\",#REF!)","v":{"$error":"#REF!"}},{"$f":"IF(#REF!=\"\",\"\",#REF!)","v":{"$error":"#REF!"}},{"$f":"IF(#REF!=\"\",\"\",#REF!)","v":{"$error":"#REF!"}}]
[{"$f":"#REF!","v":{"$error":"#REF!"}},{"$f":"#REF!","v":{"$error":"#REF!"}},{"$f":"#REF!","v":{"$error":"#REF!"}},{"$f":"#REF!","v":{"$error":"#REF!"}},{"$f":"#REF!","v":{"$error":"#REF!"}},{"$f":"#REF!","v":{"$error":"#REF!"}},{"$f":"#REF!","v":{"$error":"#REF!"}},{"$f":"#REF!","v":{"$error":"#REF!"}},{"$f":"#REF!","v":{"$error":"#REF!"}},{"$f":"#REF!","v":{"$error":"#REF!"}},{"$f":"#REF!","v":{"$error":"#REF!"}},{"$f":"#REF!","v":{"$error":"#REF!"}},{"$f":"#REF!","v":{"$error":"#REF!"}},{"$f":"#REF!","v":{"$error":"#REF!"}},{"$f":"#REF!","v":{"$error":"#REF!"}},{"$f":"#REF!","v":{"$error":"#REF!"}}]
[{"$f":"#REF!","v":{"$error":"#REF!"}},{"$f":"#REF!","v":{"$error":"#REF!"}},{"$f":"#REF!","v":{"$error":"#REF!"}},{"$f":"#REF!","v":{"$error":"#REF!"}},{"$f":"#REF!","v":{"$error":"#REF!"}},{"$f":"IF(#REF!=\"\",\"\",#REF!)","v":{"$error":"#REF!"}},{"$f":"#REF!","v":{"$error":"#REF!"}},{"$f":"#REF!","v":{"$error":"#REF!"}},{"$f":"#REF!","v":{"$error":"#REF!"}},{"$f":"#REF!","v":{"$error":"#REF!"}},{"$f":"#REF!","v":{"$error":"#REF!"}},{"$f":"#REF!","v":{"$error":"#REF!"}},{"$f":"#REF!","v":{"$error":"#REF!"}},{"$f":"#REF!","v":{"$error":"#REF!"}},{"$f":"IF(#REF!=\"\",\"\",#REF!)","v":{"$error":"#REF!"}},{"$f":"IF(#REF!=\"\",\"\",#REF!)","v":{"$error":"#REF!"}}]

{"sheet":"FW nonmetal nonplant","index":5,"n_rows":81,"n_cols":53,"rows_kept":81,"cut":false,"hidden":false,"merged":[[9,2,9,4],[11,2,13,2],[11,7,13,7],[14,2,16,2],[14,7,16,7],[17,2,19,2],[17,7,19,7],[20,2,21,2],[20,7,21,7],[22,2,24,2],[22,7,24,7],[25,2,27,2],[25,7,27,7],[28,2,30,2],[28,7,30,7],[31,2,33,2],[31,7,33,7],[34,2,36,2],[34,7,36,7],[37,2,39,2],[37,7,39,7],[40,2,42,2],[40,7,42,7],[43,2,45,2],[43,7,45,7],[46,2,48,2],[46,7,48,7],[49,2,51,2],[49,7,51,7],[65,2,68,2],[65,7,68,7],[59,7,61,7],[52,2,54,2],[52,7,54,7],[56,7,58,7],[62,2,64,2],[62,7,64,7]]}
[null,1,"Fill in the blank cells below, based on information provided in the paper being assessed. You can either pick an option from the dropdown list or add the appropriate detail using the 'Add to list' button. ",null,null,null,null,null,null,null,null,null,null,null,"* All the text in RED are used for drop down list ,make changes with caution."]
[null,null,"Category",{"$f":"IF(AF3=\"\",0,1)","v":1},"Freshwater/non-metal/non- plant",{"$f":"IF(E3=\"\",0,1)","v":1},"Citation No.",{"$f":"IF(ISERROR(FIND(\"-\",E3)),E3,LEFT(E3,FIND(\"-\",E3)-1))","v":"73"},null,"Taxonomic group",null,null,null,null,"Species",null,null,"Lifestage",null,null,"Exposure duration",null,null,"Measure of toxicity",null,null,"Toxicity endpoint",null,null,"Taxonomic group",null,null,"Phylum",null,null,"Class",null,null,"Media",null,null,"Temperature ",null,null,"Acute Or Chronic",null,null,"PH",null,null,"Salinity/Comdictivity"]
[null,null,"Paper and data unique identifier(eg. 1-1,10-150)",{"$f":"IF(AI3=\"\",0,1)","v":1},"73-1",{"$f":"IF('FW nonmetal plant'!E4=\"\",0,1)","v":1},"Species (Scientific name)",null,null,"Phylum",null,null,null,null,"Aedes albopictus",27,{"$f":"IF(P3=0,\"\",INDEX(O3:O102,P3))","v":"Xenopus laevis"},"1 month",42,{"$f":"IF(S3=0,\"\",INDEX(R3:R102,S3))","v":"Tadpoles stage 48-55"},"11 hour",52,{"$f":"IF(V3=0,\"\",INDEX(U3:U102,V3))","v":"30d + 21d observation"},"LC50",46,{"$f":"IF(Y3=0,\"\",INDEX(X3:X102,Y3))","v":"LC20"},"Mortality",35,{"$f":"IF(AB3=0,\"\",INDEX(AA3:AA102,AB3))","v":"Mortality"},"Fish",13,{"$f":"IF(AE3=0,\"\",INDEX(AD3:AD102,AE3))","v":"Amphibian"},"Chlorophyta",11,{"$f":"IF(AH3=0,\"\",INDEX(AG3:AG102,AH3))","v":"Chordata"},"Branchiopoda",12,{"$f":"IF(AK3=0,\"\",INDEX(AJ3:AJ102,AK3))","v":"Amphibia"},"Freshwater",18,{"$f":"IF(AN3=0,\"\",INDEX(AM3:AM102,AN3))","v":"Well water"},"15°C",33,{"$f":"IF(AQ3=0,\"\",INDEX(AP3:AP102,AQ3))","v":"20 +/- 1"},"Acute ",11,{"$f":"IF(AT3=0,\"\",INDEX(AS3:AS102,AT3))","v":"Chronic"},"N.A.",20,{"$f":"IF(AW3=0,\"\",INDEX(AV3:AV102,AW3))","v":"Not stated"},null,null,"N.A."]
[null,null,"Citation",{"$f":"IF(AL3=\"\",0,1)","v":1},"Adams WJ, de Graeve GM, Sabourin TD, Cooney JD and Mosher GM (1986). Toxicity and bioconcentration of 2,3,7,8-TCDD to fathead minnows (Pimephales promelas). Chemosphere, 15, 1503-1511.",{"$f":"IF(H8=\"\",0,1)","v":1},"Lifestage",null,null,"Class",null,null,null,null,"Australian Bass",null,null,"1 year old",null,null,"13 days",null,null,"N.A.",null,null,"N.A.",null,null,"Microalga",null,null,"N.A.",null,null,"Chlorophyceae  ",null,null,"Marinewater",null,null,"25°C",null,null,"Chronic",null,null,"PH11"]
[null,null,null,{"$f":"IF(AO3=\"\",0,1)","v":1},null,{"$f":"IF(W3=\"\",0,1)","v":1},"Exposure duration",null,null,"Media",null,null,null,null,"N.A.",null,null,"N.A.",null,null,"N.A.",null,null,"NOEC",null,null,"Reproduction",null,null,"N.A.",null,null,"Tracheophyta",null,null,"N.A.",null,null,"N.A.",null,null,"N.A.",null,null,"N.A.",null,null,"PH7.0"]
[null,null,null,{"$f":"IF(AR3=\"\",0,1)","v":1},null,{"$f":"IF(Q3=\"\",0,1)","v":1},"Measure of toxicity",null,null,"Temperature ",null,null,null,null,"Oedogonium cardiacum",null,null,"Not stated",null,null,"33 d",null,null,"NOEC",null,null,"Growth (Weight gain - fresh weight)",null,null,"Green algae",null,null,"Chlorophyta",null,null,"Chlorophyceae",null,null,"Not stated",null,null,"Not stated",null,null,"Acute",null,null,"Not stated"]
[null,null,null,{"$f":"IF(AU3=\"\",0,1)","v":1},null,{"$f":"IF(T3=\"\",0,1)","v":1},"Toxicity endpoint",null,null,"Acute Or Chronic ",null,null,null,null,"Daphnia magna",null,null,"Neonate <24 h old",null,null,"2 d + 7 d observation",null,null,"NOEC + LOEC",null,null,"Mortality",null,null,"Crustacean",null,null,"Arthropoda",null,null,"Branchiopoda",null,null,"Well water",null,null,"21-23",null,null,"Chronic",null,null,"6.8-7.7"]
[null,null,null,null,null,{"$f":"IF(W3=\"\",0,1)","v":1},"Toxicity value",100,null,"PH",null,null,null,null,"Pimephales promelas",null,null,"Juveniles 0.5 - 1.0 g",null,null,"4 d + 60 d observation",null,null,"NOEC",null,null,"Reproduction (biomass)",null,null,"Fish",null,null,"Chordata",null,null,"Actinopterigyii",null,null,"Lake Superior filterd",null,null,"23-27",null,null,"Acute",null,null,6.90]
[null,2,"Select the appropriate answer option to each question. Comments can be added to the cells in column H.",null,null,{"$f":"IF(Z3=\"\",0,1)","v":1},null,null,null,"Salinity/Conductivity","N.A.",null,null,null,"Daphnia magna",null,null,"Neonate <24h old",null,null,"2 d + 7 d observation in clean water",null,null,"LOEC",null,null,"Mortality",null,null,"Crustacean",null,null,"Arthropoda",null,null,"Branchiopoda",null,null,"Not stated",null,null,"2015-12-18",null,null,"Chronic",null,null,"Not stated"]
[null,"*","If the selected answer option does not work try clicking on any other cell first and then click back on the answer option again.",null,null,{"$f":"IF(AC3=\"\",0,1)","v":1},null,null,null,null,null,null,null,null,"Pimephales promelas",null,null,"7 d old",null,null,"4 d + 60 d observation in clean water",null,null,"LC53",null,null,"Reproduction - hatching",null,null,"Fish",null,null,"Chordata",null,null,"Actinopteriygii",null,null,"Dechlorinated tap water",null,null,"2015-12-18",null,null,"Acute",null,null,"6.5-7.0"]
[null,"No.","Question","Marks Awarded","Answer Options","Option References","Scores","Answers",null,null,null,null,null,null,"Paranais sp",null,null,"21 d old",null,null,"28 d",null,null,"NOEC",null,null,"Mortality",null,null,"Annelid",null,null,"Annelida",null,null,"Clitellata",null,null,"Well water",null,null,"Between 12 & 18",null,null,"Chronic",null,null,6.90]
[null,null,"Was the duration of the exposure stated (e.g. 48 or 96 h)?",10,null,1,{"$f":"IF(F12=0,0,INDEX($D12:$D13,F12,1))","v":10},"20 d + 21 d observation in clean water",null,null,null,null,null,null,"Aedes aegypti",null,null,"Juvenil 0.5 - 1.0 g",null,null,"55 d",null,null,"LOEC",null,null,"Growth (body length)",null,null,"Insect",null,null,"Arthropoda",null,null,"Insecta",null,null,"Dechlorinated tap water",null,null,20,null,null,"Acute",null,null,7.40]
[null,1,null,0,null,null,null,null,null,null,null,null,null,null,"Physa sp",null,null,"Juvenile 0.5-1.0 g",null,null,"17 d",null,null,"LC53",null,null,"Loss of caudal fin - fin necrosis",null,null,"Arthropod",null,null,"Chordata",null,null,"Actionpterigyii",null,null,"Reconstituted water",null,null,25,null,null,"Chronic",null,null,"7.7 +/- 0.2"]
[null,null,null,null,null,null,null,null,null,null,null,null,null,null,"Oncorhynchus kisutch",null,null,"Juveniles 1 - 2 g",null,null,"36 d",null,null,"LOEC",null,null,"Mortality",null,null,"Fish",null,null,null,null,null,"Amphibia",null,null,"Dechlorinated tap water",null,null,28,null,null,null,null,null,7.50]
[null,null,"Was the biological endpoint (e.g. immobilization or population growth) stated and defined (10 marks)? Award 5 marks if the biological endpoint is only stated.",10,null,2,{"$f":"IF(F15=0,0,INDEX($D15:$D17,F15,1))","v":5},"Mortality at metamorphosis",null,null,null,null,null,null,"Poecilia reticulate",null,null,"Juveniles 0.5 - 1g",null,null,"4 d + 60 d observation in clean water",null,null,"NOEC",null,null,"NOEC",null,null,"Amphibian",null,null,null,null,null,null,null,null,"Reconstituted deionised water",null,null,"14+/- 0.5",null,null,null,null,null,"Not stated"]
[null,2,null,5,null,null,null,null,null,null,null,null,null,null,"Cyprinus carpio",null,null,"Not stated",null,null,"2 d + 80 d observation in clean water",null,null,"LOEC",null,null,"Mortality",null,null,null,null,null,null,null,null,null,null,null,"Not stated",null,null,"16 +/- 2",null,null,null,null,null,"7.4 +/- 0.05"]
[null,null,null,0,null,null,null,null,null,null,null,null,null,null,"Danio rerio",null,null,"2nd instar",null,null,"4 d + 30 d observation in clean water",null,null,"LC12",null,null,"Mesencephalic blood flow",null,null,null,null,null,null,null,null,null,null,null,"Dechlorinated tap water",null,null,20,null,null,null,null,null,"Not stated"]
[null,null,"Was the biological effect stated (e.g. LC or NOEC)?",5,null,1,{"$f":"IF(F18=0,0,INDEX($D18:$D19,F18,1))","v":5},"LOEC",null,null,null,null,null,null,"Esox lucius",null,null,"adult",null,null,"71 d + 61 d observation in clean water",null,null,"LC50",null,null,"Egg development - hatching delayed",null,null,null,null,null,null,null,null,null,null,null,"Lake Superior water",null,null,10.50,null,null,null,null,null,7.50]
[null,3,null,0,null,null,null,null,null,null,null,null,null,null,"Oncorhynchus mykiss",null,null,"Eggs",null,null,"1 h",null,null,"LOEC",null,null,"Growth",null,null,null,null,null,null,null,null,null,null,null,"Dechlorinated tap water",null,null,"10 +/- 0.5",null,null,null,null,null,7.40]
[null,null,null,null,null,null,null,null,null,null,null,null,null,null,"Poecilia reticulata",null,null,"Juveniles",null,null,"1 h + 10 d",null,null,"LC17",null,null,"Mortality",null,null,null,null,null,null,null,null,null,null,null,"Well water",null,null,"11 +/- 2",null,null,null,null,null,7.50]
[null,4,"Was the biological effect quantified (e.g. 50% effect, 25% effect)? \nNote: The effect for NOEC and LOEC data must be quantified.",5,null,2,{"$f":"IF(F21=0,0,INDEX($D21:$D22,F21,1))","v":0},"No details",null,null,null,null,null,null,"Oncorhynchus mykiss",null,null,"Not stated",null,null,"2 d",null,null,"NOEC",null,null,"Growth",null,null,null,null,null,null,null,null,null,null,null,null,null,null,"11 +/- 1",null,null,null,null,null,7.70]
[null,null,null,0,null,null,null,null,null,null,null,null,null,null,"Oryzias latipes",null,null,"Adult - 1 year old",null,null,"4 d + 10.5 d observation in clean water",null,null,"LOEC",null,null,"Mortality",null,null,null,null,null,null,null,null,null,null,null,null,null,null,"Not stated",null,null,null,null,null,"Not stated"]
[null,5,"Were appropriate controls (e.g. a no-toxicant control and/or solvent control) used?",5,null,1,{"$f":"IF(F23=0,0,INDEX($D23:$D24,F23,1))","v":5},"Control + corn-oil solvent control (no dioxin)",null,null,null,null,null,null,"Pimephales promelas",null,null,"Eggs",null,null,"4 d + 11 d Observation",null,null,"EC23",null,null,"Fin necrosis",null,null,null,null,null,null,null,null,null,null,null,null,null,null,"10 +/- 0.5"]
[null,null,null,0,null,null,null,null,null,null,null,null,null,null,"Salvelinus fontinalis",null,null,"Embryos",null,null,"4 d + 21 d observation",null,null,"LOEC",null,null,"Mortality",null,null,null,null,null,null,null,null,null,null,null,null,null,null,25]
[null,null,null,null,null,null,null,null,null,null,null,null,null,null,"Salvelinus namaycush",null,null,"Eggs",null,null,"4 d + 60 d observation",null,null,"LC49",null,null,"Growth",null,null,null,null,null,null,null,null,null,null,null,null,null,null,"25 +/- 0.5"]
[null,6,"Was each control and contaminant concentration at least duplicated?",5,null,1,{"$f":"IF(F26=0,0,INDEX($D26:$D27,F26,1))","v":5},"Duplicated",null,null,null,null,null,null,"Bufo americanus",null,null,"Juvenile",null,null,"4 d + 114 d observation",null,null,"EC12",null,null,"Growth (wet weight)",null,null,null,null,null,null,null,null,null,null,null,null,null,null,"23 +/- 0.5"]
[null,null,null,0,null,null,null,null,null,null,null,null,null,null,"Rana pipiens",null,null,"Eggs",null,null,"4 d + 60 d observation",null,null,"EC55",null,null,"Mortality",null,null,null,null,null,null,null,null,null,null,null,null,null,null,"7 +/- 1"]
[null,null,null,null,null,null,null,null,null,null,null,null,null,null,"Rana clamitans",null,null,"Yolk-sac fry",null,null,"1 d + 42 d observation",null,null,"NOEC",null,null,"Growth (wet weight)",null,null,null,null,null,null,null,null,null,null,null,null,null,null,"8+/-0.5"]
[null,7,"Were test acceptability criteria stated (e.g. mortality in controls must not exceed a certain percentage) (5 marks)?\nOR Were test acceptability criteria inferred (e.g. test method used [USEPA, OECD, ASTM etc.]) (award 2 marks). \nNote: Data that fail the acceptability criteria are automatically deemed to be of unacceptable quality and must not be used. ",5,null,3,{"$f":"IF(F29=0,0,INDEX($D29:$D31,F29,1))","v":0},"Not provided",null,null,null,null,null,null,"Xenopus laevis",null,null,"Juveniles",null,null,"4 d + 72 d observation",null,null,"LOEC",null,null,"Mortality",null,null,null,null,null,null,null,null,null,null,null,null,null,null,7.50]
[null,null,null,2,null,null,null,null,null,null,null,null,null,null,null,null,null,"Yolk-sac fry",null,null,"4 d + 160 d observation",null,null,"NOEC",null,null,"Mortality to 3d post-hatch",null,null,null,null,null,null,null,null,null,null,null,null,null,null,"8 +/- 0.5"]
[null,null,null,0,null,null,null,null,null,null,null,null,null,null,null,null,null,"Fry - swim up",null,null,"4 d + 168 d",null,null,"LOEC",null,null,"Reproduction - Prevention of hatch",null,null,null,null,null,null,null,null,null,null,null,null,null,null,"7 +/- 0.5"]
[null,8,"Were the characteristics of the test organism (e.g. length, mass, age) stated?",5,null,1,{"$f":"IF(F32=0,0,INDEX($D32:$D34,F32,1))","v":5},"Tadpoles stage 48-55",null,null,null,null,null,null,null,null,null,"Fry - swim up (0.38 +/- 0.09 g)",null,null,"4 d  + 21 d observation",null,null,"NOEC",null,null,"Life-threatening lesions",null,null,null,null,null,null,null,null,null,null,null,null,null,null,"7 +/-1"]
[null,null,null,0,null,null,null,null,null,null,null,null,null,null,null,null,null,"Eggs",null,null,"LC50",null,null,"LOEC",null,null,"Mortality",null,null,null,null,null,null,null,null,null,null,null,null,null,null,"20-23"]
[null,null,null,null,null,null,null,null,null,null,null,null,null,null,null,null,null,"Sac fry",null,null,"4 d + 13 d observation",null,null,"NOEC",null,null,"Non hatch",null,null,null,null,null,null,null,null,null,null,null,null,null,null,"23-23.4"]
[null,9,"Was the type of test media used stated?",5,null,1,{"$f":"IF(F35=0,0,INDEX($D35:$D37,F35,1))","v":5},"Well water",null,null,null,null,null,null,null,null,null,"Eggs",null,null,"4 d + 21 d observation",null,null,"LOEC",null,null,"Mortality",null,null,null,null,null,null,null,null,null,null,null,null,null,null,"20 +/- 1"]
[null,null,null,0,null,null,null,null,null,null,null,null,null,null,null,null,null,"Embryos",null,null,28,null,null,"EC20",null,null,"Growth"]
[null,null,null,null,null,null,null,null,null,null,null,null,null,null,null,null,null,"Larvae - 1 mo old",null,null,"28 d + 28 d observation",null,null,"NOEC",null,null,"Mortality"]
[null,null,"Was the type of exposure (e.g. static, flow through) stated? ",4,null,1,{"$f":"IF(F38=0,0,INDEX($D38:$D40,F38,1))","v":4},"Static ",null,null,null,null,null,null,null,null,null,"Eggs 2h post fertilisation",null,null,"2 d + 22 d observation in clean water",null,null,"LOEC"]
[null,10,null,0,null,null,null,null,null,null,null,null,null,null,null,null,null,"Eggs 4h post fertilisation",null,null,"4 d + 20 d observation",null,null,"EC37"]
[null,null,null,null,null,null,null,null,null,null,null,null,null,null,null,null,null,"Eggs 4-7h post fertilisation",null,null,"11 d",null,null,"NOEC"]
[null,null,"Were the contaminant concentrations measured at the beginning and end of the exposure (4 marks)? Award 2 marks if they were measured only once during the test.\nNote: If the concentrations were not measured then automatically the data cannot be high quality. ",4,null,3,{"$f":"IF(F41=0,0,INDEX($D41:$D43,F41,1))","v":0},"Nominal ",null,null,null,null,null,null,null,null,null,"Eggs <12h post fertilisation",null,null,15.50,null,null,"LC40"]
[null,11,null,2,null,null,null,null,null,null,null,null,null,null,null,null,null,"Eggs 9h post fertilisation",null,null,15.50,null,null,"LC50"]
[null,null,null,0,null,null,null,null,null,null,null,null,null,null,null,null,null,"Eggs",null,null,"15.5 d",null,null,"NOEC"]
[null,null,"Were parallel reference toxicant toxicity tests conducted?",4,null,2,{"$f":"IF(F44=0,0,INDEX($D44:$D46,F44,1))","v":0},"Not conducted",null,null,null,null,null,null,null,null,null,"Tadpoles stage 48-55",null,null,"7 d",null,null,"LOEC"]
[null,12,null,0,null,null,null,null,null,null,null,null,null,null,null,null,null,null,null,null,"1 d + 64 d observation",null,null,"LC50"]
[null,null,null,null,null,null,null,null,null,null,null,null,null,null,null,null,null,null,null,null,"2 d + 80 d observation",null,null,"LOEC"]
[null,null,"Was there a concentration–response relationship either observable or stated?",4,null,1,{"$f":"IF(F47=0,0,INDEX($D47:$D49,F47,1))","v":4},"Effects at all concentrations",null,null,null,null,null,null,null,null,null,null,null,null,"2 d + 119 d observation",null,null,"NOEC"]
[null,13,null,0,null,null,null,null,null,null,null,null,null,null,null,null,null,null,null,null,"2 d  + 95 d observation",null,null,"LC20"]
[null,null,null,null,null,null,null,null,null,null,null,null,null,null,null,null,null,null,null,null,"1 d + 33 d observation",null,null,"LC50"]
[null,null,"Was an appropriate statistical method or model used to determine the toxicity?\nNote: They should be accepted by a recognised national or international regulatory body (e.g. USEPA, OECD, ASTM). ",4,null,1,{"$f":"IF(F50=0,0,INDEX($D50:$D52,F50,1))","v":4},"Linear regression, ANOVA & T-tests",null,null,null,null,null,null,null,null,null,null,null,null,"1 d + 67 d observation",null,null,"Mortality at 3d post-hatch"]
[null,14,null,0,null,null,null,null,null,null,null,null,null,null,null,null,null,null,null,null,"1d + 28d observation",null,null,"LC50"]
[null,null,null,null,null,null,null,null,null,null,null,null,null,null,null,null,null,null,null,null,"1d + 48 d observation",null,null,"EC50"]
[null,15,"For LC/EC/BEC data was an estimate of variability provided? \nOR \nFor NO EC/LOEC data was the significance level 0.05 or less?  \n\n",4,null,2,{"$f":"IF(F53=0,0,INDEX($D53:$D55,F53,1))","v":0},"Not stated",null,null,null,null,null,null,null,null,null,null,null,null,"30d + 21d observation",null,null,"LC50"]
[null,null,null,0,null,null,null,null,null,null,null,null,null,null,null,null,null,null,null,null,"30d + 21d observation",null,null,"LC10"]
[null,null,null,null,null,null,null,null,null,null,null,null,null,null,null,null,null,null,null,null,null,null,null,"LC10"]
[null,16,"Were the following parameters measured and stated? (3 marks if measured and stated, 1 mark if just measured).",null,null,null,null,null,null,null,null,null,null,null,null,null,null,null,null,null,null,null,null,"LC10"]
[null,null,null,3,null,3,{"$f":"IF(F57=0,0,INDEX($D57:$D59,F57,1))","v":0},"Not stated",null,null,null,null,null,null,null,null,null,null,null,null,null,null,null,"LC10"]
[null,16.10,"pH",1,null,null,null,null,null,null,null,null,null,null,null,null,null,null,null,null,null,null,null,"LC10"]
[null,null,null,0,null,null,null,null,null,null,null,null,null,null,null,null,null,null,null,null,null,null,null,"LC10"]
[null,null,null,3,null,3,{"$f":"IF(F60=0,0,INDEX($D60:$D62,F60,1))","v":0},"Not stated",null,null,null,null,null,null,null,null,null,null,null,null,null,null,null,"EC56"]
[null,16.20,"Dissolved Oxygen",1,null,null,null,null,null,null,null,null,null,null,null,null,null,null,null,null,null,null,null,"EC56"]
[null,null,null,0,null,null,null,null,null,null,null,null,null,null,null,null,null,null,null,null,null,null,null,"LOEC"]
[null,null,"Was the temperature measured and stated (3 marks)? Award 1 mark if the temperature was measured but not stated or if only the temperature settings of the room or chamber are stated.",3,null,1,{"$f":"IF(F63=0,0,INDEX(D63:D65,F63,1))","v":3},"20 degrees",null,null,null,null,null,null,null,null,null,null,null,null,null,null,null,"LOEC"]
[null,17,null,1,null,null,null,null,null,null,null,null,null,null,null,null,null,null,null,null,null,null,null,"LOEC"]
[null,null,null,0,null,null,null,null,null,null,null,null,null,null,null,null,null,null,null,null,null,null,null,"LC50"]
[null,null,"Were test solutions, blanks and/or controls tested for contamination OR were analytical reagent grade chemicals used or the highest possible purity chemicals used for the experiment? (3 marks).",3,null,1,{"$f":"IF(F66=0,0,INDEX($D66:$D67,F66,1))","v":3},">99% ",null,null,null,null,null,null,null,null,null,null,null,null,null,null,null,"LOEC"]
[null,18,null,0,null,null,null,null,null,null,null,null,null,null,null,null,null,null,null,null,null,null,null,"LC22.5"]
[]
[null,null,null,null,null,null,null,null,{"$f":"(COUNTIF(F12:F67,\"=0\"))+COUNTIF(F2:F10,\"=0\")+COUNTIF(D2:D7,\"=0\")","v":0}]
[]
[]
[null,null,"Total score",null,null,null,{"$f":"IF(SUM(G12:G66)=0,\"\",SUM(G12:G66))","v":58}]
[null,null,"Total Max. possible score for the various types of data and contaminants ",null,{"$f":"D12+D15+D18+D21+D23+D26+D29+D32+D35+D38+D41+D44+D47+D50+D53+D57+D60+D63+D66","v":91}]
[null,null,"Quality Score",null,{"$f":"\"= [Total score / Total possible score] * 100 = \"","v":"= [Total score / Total possible score] * 100 = "},null,{"$f":"IF(ISERROR(G72/E73),#N/A,G72/E73)","v":0.63736263736263732},{"$f":"IF(F41=3,\"The highest possible grade for this datum is acceptable.\",\"\")","v":"The highest possible grade for this datum is acceptable."}]
[]
[null,null,"H = high quality                           Quality score ≥ 80%      "]
[null,null,"A = acceptable quality         > 50% Quality score < 80%        "]
[null,null,"U = unacceptable quality              Quality score ≤ 50%  "]
[]
[3,null,"Click the 'Save & Update' button to save and export the answers to the 'All results' worksheet. "]
[null,null,"Select the 'Reset Answers' button if you wish to clear all answers."]

{"sheet":"FW nonmetal nonplant_WS","index":6,"n_rows":252,"n_cols":24,"rows_kept":252,"cut":false,"hidden":false,"merged":[]}
[]
["Question No.",1,2,3,4,5,6,7,8,9,10,11,12,13,14,15,16.10,16.60,17,18,"Total Score","Quality Score",null,"Comment "]
["Short Questions","Duration of the exposure ","Biological endpoint","Biological effect stated or not","Biological effect quantified or not","Appropriate controls","Control & contaminant concentration","Test acceptability criteria","Characteristics of the test organism"," Type of test media","Type of exposure","Contaminant concentrations","Parallel reference toxicant toxicity tests","Concentration–response relationship","Determine the toxicity","NOEC/LOEC or LC/EC/BEC","pH","Dissolved oxygen","Temperature","Grade or purity"]
["Category","Freshwater/non-metal/non- plant","Paper and data unique identifier(eg. 1-1,10-150)","50-1"]
["Scores",10,0,5,0,5,5,0,0,0,0,4,0,4,0,0,1,0,0,0,34,0.37362637362637363,null,""]
["Answers","33 d","Not provided","NOEC","Not provided","Control (no dioxin)","2-3 replicates","Not provided","Not provided","Not provided","Inferred static","Maximum concentration 1330 ng/L","Not conducted","Concentration-response for bioaccumulation but no effect at highest concentration","Not provided","Not provided","Details provided in Isensee et al (1973) Environ. Sci. Technol. 7: 841.","Not provided","Not provided","No details given"]
["Category","Freshwater/non-metal/non- plant","Paper and data unique identifier(eg. 1-1,10-150)","51.1"]
["Scores",10,5,5,0,5,0,5,5,5,4,4,0,0,0,0,1,1,1,0,51,0.56043956043956045,null,""]
["Answers","2 d + 7 d observation in clean water","\"mortality\" stated","NOEC","No details provided","Control (no dioxin)","2 replicates","Not provided","<24h neonates","Well water & pH, temperature, hardness, DO measured","Static but changed every 2 days","No mortality at maximum concentration 1030 ng/L","Not conducted","no effect at highest concentration","Not provided","Not provided","6.8-7.7","4.5-8.3 mg/L","21-23","No details given - apart from tritiated TCDD, where purity is inferred"]
["Category",null,"Paper and data unique identifier(eg. 1-1,10-150)"]
["Scores",null,null,null,null,null,null,null,null,null,null,null,null,null,null,null,null,null,null,null,null,null,null,""]
["Answers"]
["Category","Freshwater/non-metal/non- plant","Paper and data unique identifier(eg. 1-1,10-150)","51-2"]
["Scores",10,5,5,0,5,0,5,5,5,4,4,0,0,0,0,1,1,1,0,51,0.56043956043956045,null,""]
["Answers","2 d + 7 d observation in clean water","\"mortality\" stated","NOEC","No details provided","Control (no dioxin)","2 replicates","Not provided","<24h neonates","Well water & pH, temperature, hardness, DO measured","Static but changed every 2 days","No mortality at maximum concentration 1030 ng/L","Not conducted","no effect at highest concentration","Not provided","Not provided","6.8-7.7","4.5-8.3 mg/L","21-23","No details given - apart from tritiated TCDD, where purity is inferred"]
["Category","Freshwater/non-metal/non- plant","Paper and data unique identifier(eg. 1-1,10-150)","51-2"]
["Scores",10,5,5,0,5,0,5,5,5,4,4,0,0,0,0,1,1,1,0,51,0.56043956043956045,null,""]
["Answers","2 d + 7 d observation in clean water","\"mortality\" stated","NOEC","No details provided","Control (no dioxin)","2 replicates","Not provided","<24h neonates","Well water & pH, temperature, hardness, DO measured","Static but changed every 2 days","No mortality at maximum concentration 1030 ng/L","Not conducted","no effect at highest concentration","Not provided","Not provided","6.8-7.7","4.5-8.3 mg/L","21-23","No details given - apart from tritiated TCDD, where purity is inferred"]
["Category","Freshwater/non-metal/non- plant","Paper and data unique identifier(eg. 1-1,10-150)","51-4"]
["Scores",10,5,5,0,5,0,5,5,5,4,4,0,0,0,0,1,1,1,0,51,0.56043956043956045,null,""]
["Answers","2 d + 7 d observation in clean water","\"mortality\" stated","NOEC","No details provided","Control (no dioxin)","2 replicates","Not provided","<24h neonates","Well water & pH, temperature, hardness, DO measured","Static but changed every 2 days","No mortality at maximum concentration 1030 ng/L","Not conducted","no effect at highest concentration","Not provided","Not provided","6.8-7.7","4.5-8.3 mg/L","21-23","No details given - apart from tritiated TCDD, where purity is inferred"]
["Category","Freshwater/non-metal/non- plant","Paper and data unique identifier(eg. 1-1,10-150)","51-1"]
["Scores",10,5,5,0,5,0,5,5,5,4,4,0,0,0,0,1,1,1,0,51,0.56043956043956045,null,""]
["Answers","2 d + 7 d observation in clean water","\"mortality\" stated","NOEC","No details provided","Control (no dioxin)","2 replicates","Not provided","<24h neonates","Well water & pH, temperature, hardness, DO measured","Static but changed every 2 days","No mortality at maximum concentration 1030 ng/L","Not conducted","no effect at highest concentration","Not provided","Not provided","6.8-7.7","4.5-8.3 mg/L","21-23","No details given - apart from tritiated TCDD, where purity is inferred"]
["Category","Freshwater/non-metal/non- plant","Paper and data unique identifier(eg. 1-1,10-150)","51-2"]
["Scores",10,5,5,0,5,0,5,5,5,4,4,0,0,0,0,1,1,1,0,51,0.56043956043956045,null,""]
["Answers","2 d + 7 d observation in clean water","\"mortality\" stated","NOEC","No details provided","Control (no dioxin)","2 replicates","Not provided","<24h neonates","Well water & pH, temperature, hardness, DO measured","Static but changed every 2 days","No mortality at maximum concentration 1030 ng/L","Not conducted","no effect at highest concentration","Not provided","Not provided","6.8-7.7","4.5-8.3 mg/L","21-23","No details given - apart from tritiated TCDD, where purity is inferred"]
["Category","Freshwater/non-metal/non- plant","Paper and data unique identifier(eg. 1-1,10-150)","51-3"]
["Scores",10,5,5,0,5,0,5,5,5,4,4,0,0,0,0,1,1,1,0,51,0.56043956043956045,null,""]
["Answers","2 d + 7 d observation in clean water","\"mortality\" stated","NOEC","No details provided","Control (no dioxin)","2 replicates","Not provided","<24h neonates","Well water & pH, temperature, hardness, DO measured","Static but changed every 2 days","No mortality at maximum concentration 1030 ng/L","Not conducted","no effect at highest concentration","Not provided","Not provided","6.8-7.7","4.5-8.3 mg/L","21-23","No details given - apart from tritiated TCDD, where purity is inferred"]
["Category","Freshwater/non-metal/non- plant","Paper and data unique identifier(eg. 1-1,10-150)","51-3"]
["Scores",10,5,5,0,5,0,0,5,5,4,4,0,0,0,0,3,3,3,0,52,0.5714285714285714,null,""]
["Answers","4 d + 60 d observation in clean water","\"mortality\" stated","NOEC","No details provided","Control (no dioxin)","2 replicates","","Juveniles 1-2 g","Well water & pH, temperature, hardness, DO measured","Static - renewal every 4 days","No mortality at maximum concentration 1030 ng/L","Not conducted","no effect at highest concentration","Not provided","Not provided","6.8-7.7","4.5-8.3 mg/L","21-23","No details given - apart from tritiated TCDD, where purity is inferred"]
["Category","Freshwater/non-metal/non- plant","Paper and data unique identifier(eg. 1-1,10-150)","51-5"]
["Scores",10,5,5,0,5,0,0,5,5,4,4,0,0,0,0,3,3,3,0,52,0.5714285714285714,null,""]
["Answers","4 d + 60 d observation in clean water","\"mortality\" stated","NOEC","No details provided","Control (no dioxin)","2 replicates","","Juveniles 1-2 g","Well water & pH, temperature, hardness, DO measured","Static - renewal every 4 days","No mortality at maximum concentration 1030 ng/L","Not conducted","no effect at highest concentration","Not provided","Not provided","6.8-7.7","4.5-8.3 mg/L","21-23","No details given - apart from tritiated TCDD, where purity is inferred"]
["Category","Freshwater/non-metal/non- plant","Paper and data unique identifier(eg. 1-1,10-150)","51-6"]
["Scores",10,10,5,5,5,0,0,5,5,4,4,0,4,0,0,3,3,3,0,66,0.72527472527472525,null,""]
["Answers","28 d","Actual 53% mortality noted","LC53",0.53,"Control (no dioxin)","No replicates","Not stated","Juveniles 0.5 - 1 g","Well water & pH, temperature, hardness, DO measured","Static - renewal every 4 days","at 1d & 4d","Not conducted","Yes","Not provided","Not provided","6.8-7.7","4.5-8.3 mg/L","21-23","No details given - apart from tritiated TCDD, where purity is inferred"]
["Category","Freshwater/non-metal/non- plant","Paper and data unique identifier(eg. 1-1,10-150)","52-1"]
["Scores",10,5,5,0,5,0,0,5,5,4,0,0,0,0,0,3,0,3,3,48,0.52747252747252749,null,"The highest possible grade for this datum is acceptable."]
["Answers","55 d","Biomass - dry wt","LOEC","Not stated","Control (no dioxin)","No replicates","Not provided","Adult","Well water & ions measured","Static ","Nominal","Not conducted","Single concentration","Not provided","Not provided",6.90,"Not stated","23-27","98.7% from Dow Chemicals"]
["Category","Freshwater/non-metal/non- plant","Paper and data unique identifier(eg. 1-1,10-150)","52-2"]
["Scores",10,5,5,0,5,0,0,5,5,4,0,0,0,0,0,3,0,3,3,48,0.52747252747252749,null,"The highest possible grade for this datum is acceptable."]
["Answers","17 d","Pupation","NOEC","Not stated","Control (no dioxin)","No replicates","Not provided","Adult","Well water & ions measured","Static ","Nominal","Not conducted","Single concentration","Not provided","Not provided",6.90,"Not stated","23-27","98.7% from Dow Chemicals"]
["Category","Freshwater/non-metal/non- plant","Paper and data unique identifier(eg. 1-1,10-150)","52-3"]
["Scores",10,5,5,0,5,0,0,5,5,4,0,0,0,0,0,3,0,3,3,48,0.52747252747252749,null,"The highest possible grade for this datum is acceptable."]
["Answers","36 d","Mortality - count","NOEC","Not stated","Control (no dioxin)","No replicates","Not provided","Adult","Well water & ions measured","Static ","Nominal","Not conducted","Single concentration","Not provided","Not provided",6.90,"Not stated","23-27","98.7% from Dow Chemicals"]
["Category","Freshwater/non-metal/non- plant","Paper and data unique identifier(eg. 1-1,10-150)","52-4"]
["Scores",10,10,5,0,5,0,0,5,5,4,0,0,0,0,0,3,0,3,3,53,0.58241758241758246,null,"The highest possible grade for this datum is acceptable."]
["Answers","36 d","Reproduction - hatching success, counts & significance test","LOEC","Not stated","Control (no dioxin)","No replicates","Not provided","Adult","Well water & ions measured","Static ","Nominal","Not conducted","Single concentration","Not provided - except T test","Not provided",6.90,"Not stated","23-27","98.7% from Dow Chemicals"]
["Category","Freshwater/non-metal/non- plant","Paper and data unique identifier(eg. 1-1,10-150)","52-5"]
["Scores",10,10,5,5,5,0,0,5,5,4,4,0,4,4,0,3,0,3,3,70,0.76923076923076927,null,""]
["Answers","4 d + 60 d observation","Mortality - clearly described","LC12 (i.e. 12% mortality and distinct from controls","12 percent","Control + acetone solvent control (no dioxin)","Replicates inferred only","Not provided","Juveniles - 3.51 g","Well water & ions measured","Flow through","measured at 1, 2 & 4d","Not conducted","4 concentrations + controls","Multivariate analysis","Not provided",6.90,"Not stated","12 to 18","98.7% from Dow Chemicals"]
["Category","Freshwater/non-metal/non- plant","Paper and data unique identifier(eg. 1-1,10-150)","52-6"]
["Scores",10,10,5,5,5,0,0,5,5,4,4,0,4,4,0,3,0,3,3,70,0.76923076923076927,null,""]
["Answers","4 d + 60 d observation","Mortality - clearly described","LC50","50 percent","Control + acetone solvent control (no dioxin)","Replicates inferred only","Not provided","Juveniles - 3.51 g","Well water & ions measured","Flow through","measured at 1, 2 & 4d","Not conducted","4 concentrations + controls","Multivariate analysis","Not provided",6.90,"Not stated","12 to 18","98.7% from Dow Chemicals"]
["Category","Freshwater/non-metal/non- plant","Paper and data unique identifier(eg. 1-1,10-150)","52-7"]
["Scores",10,10,5,0,5,0,0,5,5,4,4,0,4,4,0,3,0,3,3,65,0.7142857142857143,null,""]
["Answers","4 d + 80 d observation","Growth - body length measured & photographed","LOEC","","Control + acetone solvent control (no dioxin)","Replicates inferred only","Not provided","Juveniles - 3.51 g","Well water & ions measured","Flow through","measured at 1, 2 & 4d","Not conducted","4 concentrations + controls","Multivariate analysis","Not provided",6.90,"Not stated","12 to 18","98.7% from Dow Chemicals"]
["Category","Freshwater/non-metal/non- plant","Paper and data unique identifier(eg. 1-1,10-150)","52-8"]
["Scores",10,10,5,0,5,0,0,5,5,4,4,0,4,0,0,3,0,3,3,61,0.67032967032967028,null,""]
["Answers","4 d + 80 d observation","Loss of caudal fin","LOEC","Not provided","Control + acetone solvent control (no dioxin)","Replicates inferred only","Not provided","Adult - 10-40mm","Well water & ions measured","Static","measured at 1, 2 & 4d","Not conducted","3 concentrations + controls","No details","Not provided",6.90,"Not stated","20 degrees","98.7% from Dow Chemicals"]
["Category","Freshwater/non-metal/non- plant","Paper and data unique identifier(eg. 1-1,10-150)","55-1"]
["Scores",10,5,5,0,5,0,0,5,5,4,4,0,0,0,0,1,0,1,3,48,0.52747252747252749,null,""]
["Answers","71 d + 61 d observation","Mortality","LC17","17 percent","Control + acetone solvent control (no dioxin)","Replicates inferred only","Not provided","Adult ","Lake Superior water - described in many other papers","Flow through","Approx every 10d","Not conducted","1 concentrations + controls","No details","Not provided",6.90,"Not stated","20 degrees","98.7% from Dow Chemicals"]
["Category","Freshwater/non-metal/non- plant","Paper and data unique identifier(eg. 1-1,10-150)","55-1"]
["Scores",10,5,5,0,5,5,0,5,0,4,2,0,4,0,0,3,3,3,3,57,0.62637362637362637,null,""]
["Answers","1 h + 10 d observation in clean water","Mortality","NOEC","No details","Control + acetone solvent control (no dioxin)","Duplicates","Not provided","Eggs - 5h","Not stated","Static - daily renewal","At 24 h","Not conducted","Graded concentrations. Dose response stated","No effect at lowest concentration. Other concentrations expressed as egg TCDD concs","Not provided","6.5 - 7.0","7.0 - 7.1","28 degrees",">99% [3H] radioactiveTCDD"]
["Category","Freshwater/non-metal/non- plant","Paper and data unique identifier(eg. 1-1,10-150)","58-1"]
["Scores",10,10,5,5,5,5,0,5,5,4,0,0,0,4,0,3,0,3,3,71,0.68100000000000005,null,"The highest possible grade for this datum is acceptable."]
["Answers","4 d + 10.5 d observation","Hatching delayed","EC23","23 percent","Control + acetone solvent control (no dioxin)","Duplicates","Not provided","Eggs - 5 min post fertilisation","Dechlorinated tap water","Static -2d renewal then 24 h","Not measured","Not conducted","Graded concentrations. However, marginal effects on growth and longer exposure annulled any differences (23 d)d","P value determined","Not provided",6.90,"7.0 - 7.1","14 degrees","98.6% Dow Chemicals"]
["Category","Freshwater/non-metal/non- plant","Paper and data unique identifier(eg. 1-1,10-150)","58-2"]
["Scores",10,10,5,0,5,5,0,5,5,4,0,0,4,4,0,3,0,3,3,66,0.72527472527472525,null,"The highest possible grade for this datum is acceptable."]
["Answers","4 d + 11 d observation","Growth","LOEC","Not detailed","Control + acetone solvent control (no dioxin)","Duplicates","Not provided","Eggs - 5 min post fertilisation","Dechlorinated tap water","Static -2d renewal then 24 h","Not measured","Not conducted","Graded concentrations. Dose response stated","P value determined","Not provided",6.90,"7.0 - 7.1","14 degrees","98.6% Dow Chemicals"]
["Category","Freshwater/non-metal/non- plant","Paper and data unique identifier(eg. 1-1,10-150)","58-4"]
["Scores",10,10,5,0,5,5,0,5,5,4,0,0,4,4,0,3,0,3,3,66,0.72527472527472525,null,"The highest possible grade for this datum is acceptable."]
["Answers","4 d + 21 d observation","Growth","LC49","49 percent","Control + acetone solvent control (no dioxin)","Duplicates","Not provided","Eggs - 5 min post fertilisation","Dechlorinated tap water","Static -2d renewal then 24 h","Not measured","Not conducted","Clearer gradient with mortality","Details on all concentrations","Not provided",6.90,"7.0 - 7.1","14 degrees","98.6% Dow Chemicals"]
["Category","Freshwater/non-metal/non- plant","Paper and data unique identifier(eg. 1-1,10-150)","59-1"]
["Scores",10,5,0,5,5,5,0,5,5,4,0,0,4,4,0,3,0,1,3,54,0.59340659340659341,null,"The highest possible grade for this datum is acceptable."]
["Answers","4 d + 60 d observation","Growth","EC12","12 percent","Control + acetone solvent control (no dioxin)","Duplicates","Not provided","Juveniles","Dechlorinated tap water","Flow through","Not measured","Not conducted","Observed","Multivariate analysis","Not provided",6.90,"Not reported","16 +/- 2 ","98.6% Dow Chemicals"]
["Category","Freshwater/non-metal/non- plant","Paper and data unique identifier(eg. 1-1,10-150)","59-2"]
["Scores",10,5,0,5,5,5,0,5,5,4,0,0,4,4,0,3,0,1,3,54,0.59340659340659341,null,"The highest possible grade for this datum is acceptable."]
["Answers","4 d + 60 d observation","Growth","EC55","55 percent","Control + acetone solvent control (no dioxin)","Duplicates","Not provided","Juveniles","Dechlorinated tap water","Flow through","Not measured","Not conducted","Observed","Multivariate analysis","Not provided",6.90,"Not reported","16 +/- 2 ","98.6% Dow Chemicals"]
["Category","Freshwater/non-metal/non- plant","Paper and data unique identifier(eg. 1-1,10-150)","59-3"]
["Scores",10,5,0,0,5,5,0,5,5,4,0,0,4,4,0,3,0,1,3,54,0.59340659340659341,null,"The highest possible grade for this datum is acceptable."]
["Answers","4 + 114 d observation","Growth","NOEC","Not stated","Control + acetone solvent control (no dioxin)","Duplicates","Not provided","Juveniles","Dechlorinated tap water","Flow through","Not measured","Not conducted","Observed","Multivariate analysis","Not provided",6.90,"Not reported","16 +/- 2 ","98.6% Dow Chemicals"]
["Category","Freshwater/non-metal/non- plant","Paper and data unique identifier(eg. 1-1,10-150)","59-4"]
["Scores",10,5,0,0,5,5,0,5,5,4,0,0,4,4,0,3,0,1,3,54,0.59340659340659341,null,"The highest possible grade for this datum is acceptable."]
["Answers","4 + 114 d observation","Growth","LOEC","Not stated","Control + acetone solvent control (no dioxin)","Duplicates","Not provided","Juveniles","Dechlorinated tap water","Flow through","Not measured","Not conducted","Observed","Multivariate analysis","Not provided",6.90,"Not reported","16 +/- 2 ","98.6% Dow Chemicals"]
["Category","Freshwater/non-metal/non- plant","Paper and data unique identifier(eg. 1-1,10-150)","59-5"]
["Scores",10,5,0,0,5,5,0,5,5,4,0,0,4,4,0,3,0,1,3,54,0.59340659340659341,null,"The highest possible grade for this datum is acceptable."]
["Answers","4 + 114 d observation","Mortality","LOEC","Not stated","Control + acetone solvent control (no dioxin)","Duplicates","Not provided","Juveniles","Dechlorinated tap water","Flow through","Not measured","Not conducted","Observed","Multivariate analysis","Not provided",6.90,"Not reported","16 +/- 2 ","98.6% Dow Chemicals"]
["Category","Freshwater/non-metal/non- plant","Paper and data unique identifier(eg. 1-1,10-150)","59-6"]
["Scores",10,5,0,0,5,5,0,5,5,4,0,0,4,4,0,3,0,1,3,54,0.59340659340659341,null,"The highest possible grade for this datum is acceptable."]
["Answers","4 + 114 d observation","Mortality","NOEC","Not stated","Control + acetone solvent control (no dioxin)","Duplicates","Not provided","Juveniles","Dechlorinated tap water","Flow through","Not measured","Not conducted","Observed","Multivariate analysis","Not provided",6.90,"Not reported","16 +/- 2 ","98.6% Dow Chemicals"]
["Category","Freshwater/non-metal/non- plant","Paper and data unique identifier(eg. 1-1,10-150)","59-7"]
["Scores",10,5,0,0,5,5,0,5,5,4,0,0,4,4,0,3,0,1,3,54,0.59340659340659341,null,"The highest possible grade for this datum is acceptable."]
["Answers","4 + 60 d observation","Mortality","NOEC","Not stated","Control + acetone solvent control (no dioxin)","Duplicates","Not provided","Juveniles","Dechlorinated tap water","Flow through","Not measured","Not conducted","Observed","Multivariate analysis","Not provided",6.90,"Not reported","16 +/- 2 ","98.6% Dow Chemicals"]
["Category","Freshwater/non-metal/non- plant","Paper and data unique identifier(eg. 1-1,10-150)","59-8"]
["Scores",10,5,0,0,5,5,0,5,5,4,0,0,4,4,0,3,0,1,3,54,0.59340659340659341,null,"The highest possible grade for this datum is acceptable."]
["Answers","4 + 60 d observation","Mortality","LOEC","Not stated","Control + acetone solvent control (no dioxin)","Duplicates","Not provided","Juveniles","Dechlorinated tap water","Flow through","Not measured","Not conducted","Observed","Multivariate analysis","Not provided",6.90,"Not reported","16 +/- 2 ","98.6% Dow Chemicals"]
["Category","Freshwater/non-metal/non- plant","Paper and data unique identifier(eg. 1-1,10-150)","59-9"]
["Scores",10,5,0,0,5,5,0,5,5,4,0,0,4,4,0,3,0,1,3,54,0.59340659340659341,null,"The highest possible grade for this datum is acceptable."]
["Answers","1 d + 42 d observation","Fin necrosis","NOEC","Not stated","Control + acetone solvent control (no dioxin)","Duplicates","Not provided","Juveniles","Dechlorinated tap water","Static","Not measured","Not conducted","Observed","Multivariate analysis","Not provided",6.90,"Not reported",20,"98.6% Dow Chemicals"]
["Category","Freshwater/non-metal/non- plant","Paper and data unique identifier(eg. 1-1,10-150)","59-10"]
["Scores",10,5,0,0,5,5,0,5,5,4,0,0,4,4,0,3,0,1,3,54,0.59340659340659341,null,"The highest possible grade for this datum is acceptable."]
["Answers","1 d + 42 d observation","Fin necrosis","LOEC","Not stated","Control + acetone solvent control (no dioxin)","Duplicates","Not provided","Juveniles","Dechlorinated tap water","Static","Not measured","Not conducted","Observed","Multivariate analysis","Not provided",6.90,"Not reported",20,"98.6% Dow Chemicals"]
["Category","Freshwater/non-metal/non- plant","Paper and data unique identifier(eg. 1-1,10-150)","60-1"]
["Scores",10,5,5,0,5,5,0,5,5,4,0,0,4,4,0,3,0,3,3,61,0.67032967032967028,null,"The highest possible grade for this datum is acceptable."]
["Answers","4 d + 72 d observation","Mortality","NOEC","Not stated","Control + acetone solvent control (no dioxin)","Triplicates","Not provided","Eggs","Dechlorinated tap water","24 h renewal during exposure, then flow through","Not measured","Not conducted","Observed","P < 0.001","Not provided","7.4 +/- 0.05","Not reported","10 +/- 0.5","98.6% Dow Chemicals"]
["Category","Freshwater/non-metal/non- plant","Paper and data unique identifier(eg. 1-1,10-150)","60-2"]
["Scores",10,5,5,0,5,5,0,5,5,4,0,0,4,4,0,3,0,3,3,61,0.67032967032967028,null,"The highest possible grade for this datum is acceptable."]
["Answers","4 d + 72 d observation","Mortality","LOEC","Not stated","Control + acetone solvent control (no dioxin)","Triplicates","Not provided","Eggs","Dechlorinated tap water","24 h renewal during exposure, then flow through","Not measured","Not conducted","Observed","P < 0.001","Not provided","7.4 +/- 0.05","Not reported","10 +/- 0.5","98.6% Dow Chemicals"]
["Category","Freshwater/non-metal/non- plant","Paper and data unique identifier(eg. 1-1,10-150)","60-3"]
["Scores",10,5,5,0,5,5,0,5,5,4,0,0,4,4,0,3,0,3,3,61,0.67032967032967028,null,"The highest possible grade for this datum is acceptable."]
["Answers","4 d + 72 d observation","Growth (wet weight)","LOEC","Not stated","Control + acetone solvent control (no dioxin)","Triplicates","Not provided","Eggs","Dechlorinated tap water","24 h renewal during exposure, then flow through","Not measured","Not conducted","Observed","Grraphical","Not provided","7.4 +/- 0.05","Not reported","10 +/- 0.5","98.6% Dow Chemicals"]
["Category","Freshwater/non-metal/non- plant","Paper and data unique identifier(eg. 1-1,10-150)","60-4"]
["Scores",10,5,5,0,5,5,0,5,5,4,0,0,4,4,0,3,0,3,3,61,0.67032967032967028,null,"The highest possible grade for this datum is acceptable."]
["Answers","4 d + 160 d observation","Growth (wet weight)","EC20","20% effect","Control + acetone solvent control (no dioxin)","Triplicates","Not provided","Eggs","Dechlorinated tap water","24 h renewal during exposure, then flow through","Not measured","Not conducted","Observed","Grraphical","Not provided","7.4 +/- 0.05","Not reported","10 +/- 0.5","98.6% Dow Chemicals"]
["Category","Freshwater/non-metal/non- plant","Paper and data unique identifier(eg. 1-1,10-150)","60-5"]
["Scores",10,5,5,5,5,5,0,5,5,4,0,0,4,4,0,3,0,3,3,66,0.72527472527472525,null,"The highest possible grade for this datum is acceptable."]
["Answers","4 d + 160 d observation","Growth (wet weight)","NOEC","Not quantified","Control + acetone solvent control (no dioxin)","Triplicates","Not provided","Yolk-sac fry","Dechlorinated tap water","24 h renewal during exposure, then flow through","Not measured","Not conducted","Observed","P values","Not provided","7.4 +/- 0.05","Not reported","10 +/- 0.5","98.6% Dow Chemicals"]
["Category","Freshwater/non-metal/non- plant","Paper and data unique identifier(eg. 1-1,10-150)","60-6"]
["Scores",10,5,5,0,5,5,0,5,5,4,0,0,4,4,0,3,0,3,3,61,0.67032967032967028,null,"The highest possible grade for this datum is acceptable."]
["Answers","4 d + 160 d observation","Growth (wet weight)","NOEC","Not quantified","Control + acetone solvent control (no dioxin)","Triplicates","Not provided","Juveniles","Dechlorinated tap water","24 h renewal during exposure, then flow through","Not measured","Not conducted","Observed","P values","Not provided","7.4 +/- 0.05","Not reported","10 +/- 0.5","98.6% Dow Chemicals"]
["Category","Freshwater/non-metal/non- plant","Paper and data unique identifier(eg. 1-1,10-150)","60-6"]
["Scores",10,5,5,0,5,5,0,5,5,4,0,0,4,4,0,3,0,3,3,61,0.67032967032967028,null,"The highest possible grade for this datum is acceptable."]
["Answers","4 d + 168 d observation","Growth (wet weight)","EC37","Not quantified - by interpolation from graph","Control + acetone solvent control (no dioxin)","Triplicates","Not provided","Juveniles","Dechlorinated tap water","24 h renewal during exposure, then flow through","Not measured","Not conducted","Observed","P values","Not provided","7.4 +/- 0.05","Not reported","10 +/- 0.5","98.6% Dow Chemicals"]
["Category","Freshwater/non-metal/non- plant","Paper and data unique identifier(eg. 1-1,10-150)","61-1"]
["Scores",10,5,5,5,5,5,5,5,5,4,0,0,4,0,0,3,0,3,3,67,0.73626373626373631,null,"The highest possible grade for this datum is acceptable."]
["Answers","4 d + 21 d observation","Mortality","NOEC","Not quantified - by interpolation from graph","Control + acetone solvent control (no dioxin)","Triplicates","Not provided","Yolk-sac fry","Dechlorinated tap water","24 h renewal during exposure, then flow through","Not measured","Not conducted","Observed","P values","Not provided","7.4 +/- 0.05","Not reported","10 +/- 0.5","98.6% Dow Chemicals"]
["Category","Freshwater/non-metal/non- plant","Paper and data unique identifier(eg. 1-1,10-150)","61-2"]
["Scores",10,5,5,5,5,5,5,5,5,4,0,0,4,4,0,3,0,3,3,71,0.78021978021978022,null,"The highest possible grade for this datum is acceptable."]
["Answers","4 d + 21 d observation","Mortality","NOEC","40% mortality","Control + acetone solvent control (no dioxin)","Triplicates","Not provided","Yolk-sac fry","Dechlorinated tap water","24 h renewal during exposure, then flow through","Not measured","Not conducted","Observed","Logit scatterplots & linear regression","Not provided","7.4 +/- 0.05","Not reported","10 +/- 0.5","98.6% Dow Chemicals"]
["Category","Freshwater/non-metal/non- plant","Paper and data unique identifier(eg. 1-1,10-150)","61-3"]
["Scores",10,5,5,5,5,0,5,5,5,4,0,0,4,4,0,3,0,3,3,66,0.72527472527472525,null,"The highest possible grade for this datum is acceptable."]
["Answers","4 d + 13 d observation - mortality continuing","Mortality","LC50","50% mortality","Control + acetone solvent control (no dioxin)","Not stated","Not provided","Yolk-sac fry","Dechlorinated tap water","24 h renewal during exposure, then flow through","Not measured","Not conducted","Observed","Logit scatterplots & linear regression","Not provided","7.4 +/- 0.05","Not reported","10 +/- 0.5","98.6% Dow Chemicals"]
["Category","Freshwater/non-metal/non- plant","Paper and data unique identifier(eg. 1-1,10-150)","61-4"]
["Scores",10,5,5,5,5,0,5,5,5,4,0,0,4,4,0,3,0,3,3,66,0.72527472527472525,null,"The highest possible grade for this datum is acceptable."]
["Answers","4 d + 21 d observation ","Mortality","LC50","50% mortality","Control + acetone solvent control (no dioxin)","Not stated","Not provided","Yolk-sac fry","Dechlorinated tap water","24 h renewal during exposure, then flow through","Not measured","Not conducted","Observed","Logit scatterplots & linear regression","Not provided","7.4 +/- 0.05","Not reported","10 +/- 0.5","98.6% Dow Chemicals"]
["Category","Freshwater/non-metal/non- plant","Paper and data unique identifier(eg. 1-1,10-150)","62-1"]
["Scores",10,5,5,0,5,5,0,5,5,4,4,0,4,4,0,3,0,3,3,70,0.71399999999999997,null,""]
["Answers","28 d","Mortality","NOEC","Not quantified","Control + acetone solvent control (no dioxin)","Duplicates","Not provided","Swim up fry - 0.038 +/- 0.09 g","Reconstituted water","Flow through","Measured each week during 28d","Not conducted","Observed and graphed","1-wat ANOVA & Fishers LSD","Not provided","7.7 +/- 0.2","Not reported","11 +/- 2","> 99% tritiated"]
["Category","Freshwater/non-metal/non- plant","Paper and data unique identifier(eg. 1-1,10-150)","62-2"]
["Scores",10,5,5,0,5,5,0,5,5,4,4,0,4,4,0,3,0,3,3,65,0.7142857142857143,null,""]
["Answers","28 d","Growth (wet weight)","LOEC","Not quantified","Control + acetone solvent control (no dioxin)","Duplicates","Not provided","Swim up fry - 0.038 +/- 0.09 g","Reconstituted water","Flow through","Measured each week during 28d","Not conducted","Observed and graphed","1-wat ANOVA & Fishers LSD","Not provided","7.7 +/- 0.2","Not reported","11 +/- 2","> 99% tritiated"]
["Category","Freshwater/non-metal/non- plant","Paper and data unique identifier(eg. 1-1,10-150)","62-3"]
["Scores",10,5,5,0,5,5,0,5,5,4,4,0,4,4,0,3,0,3,3,65,0.7142857142857143,null,""]
["Answers","28 d + 28 d observation in clean water","Mortality","LOEC","Not quantified","Control + acetone solvent control (no dioxin)","Duplicates","Not provided","Swim up fry - 0.038 +/- 0.09 g","Reconstituted water","Flow through","Measured each week during 28d","Not conducted","Observed and graphed","1-wat ANOVA & Fishers LSD","Not provided","7.7 +/- 0.2","Not reported","11 +/- 2","> 99% tritiated"]
["Category","Freshwater/non-metal/non- plant","Paper and data unique identifier(eg. 1-1,10-150)","62-4"]
["Scores",10,5,5,5,5,5,0,5,5,4,4,0,4,4,0,3,0,3,3,70,0.76923076923076927,null,""]
["Answers","28 d + 28 d observation in clean water","Mortality","LC50","50% effect","Control + acetone solvent control (no dioxin)","Duplicates","Not provided","Swim up fry - 0.038 +/- 0.09 g","Reconstituted water","Flow through","Measured each week during 28d","Not conducted","Observed and graphed","1-wat ANOVA & Fishers LSD","Not provided","7.7 +/- 0.2","Not reported","11 +/- 2","> 99% tritiated"]
["Category","Freshwater/non-metal/non- plant","Paper and data unique identifier(eg. 1-1,10-150)","63-1"]
["Scores",10,5,5,0,5,5,0,5,5,4,4,0,4,4,0,3,3,3,3,68,0.74725274725274726,null,""]
["Answers","2d + 22 d observation","Mortality","LOEC","Effect at llowest concentration tested","Control + acetone solvent control (no dioxin)","Duplicates","Not provided","Swim up fry - 0.038 +/- 0.09 g","Reconstituted water","Flow through","Measured each week during 28d","Not conducted","Observed and graphed","Probit corrected for control; SAS 1988","Not provided",7.50,10,"11 +/- 1","> 99% tritiated"]
["Category","Freshwater/non-metal/non- plant","Paper and data unique identifier(eg. 1-1,10-150)","64-1"]
["Scores",10,10,5,5,5,5,0,5,5,4,0,0,4,4,0,3,3,3,3,74,0.81318681318681318,null,"The highest possible grade for this datum is acceptable."]
["Answers","4 d + 20 d observation in clean water","Mortality cureves with NOEC; LOEC & EC values defined","NOEC","No effect at lowest concentration tested; effect at 2.7 ng/L","Control + acetone solvent control (no dioxin)","Duplicates","Not provided","Newly hatched yolk-sac fry","Dechlorinated tap water","Static with 24 h renewal, then flow through observation period","Not stated - nominal","Not conducted","Observed and graphed","Chi-square test for differences; Logit scatterplots & regressions","Not provided","7.4 +/- 0.05",10,"10 +/- 0.5","98.6 % - Dow Chemicals"]
["Category","Freshwater/non-metal/non- plant","Paper and data unique identifier(eg. 1-1,10-150)","64-2"]
["Scores",10,10,5,5,5,5,0,5,5,4,0,0,4,4,0,3,3,3,3,74,0.81318681318681318,null,"The highest possible grade for this datum is acceptable."]
["Answers","4 d + 20 d observation in clean water","Mortality cureves with NOEC; LOEC & EC values defined","LC20","20% effect corresponds to 2nd lowest tTCDD concentration; interpolated from graph","Control + acetone solvent control (no dioxin)","Duplicates","Not provided","Newly hatched yolk-sac fry","Dechlorinated tap water","Static with 24 h renewal, then flow through observation period","Not stated - nominal","Not conducted","Observed and graphed","Chi-square test for differences; Logit scatterplots & regressions","Not provided","7.4 +/- 0.05",10,"10 +/- 0.5","98.6 % - Dow Chemicals"]
["Category","Freshwater/non-metal/non- plant","Paper and data unique identifier(eg. 1-1,10-150)","64-3"]
["Scores",10,10,5,5,5,5,0,5,5,4,0,0,4,4,0,3,3,3,3,74,0.81318681318681318,null,"The highest possible grade for this datum is acceptable."]
["Answers","4 d + 20 d observation in clean water","Mortality cureves with NOEC; LOEC & EC values defined","LC50","50 % effect","Control + acetone solvent control (no dioxin)","Duplicates","Not provided","Newly hatched yolk-sac fry","Dechlorinated tap water","Static with 24 h renewal, then flow through observation period","Not stated - nominal","Not conducted","Observed and graphed","Chi-square test for differences; Logit scatterplots & regressions","Not provided","7.4 +/- 0.05",10,"10 +/- 0.5","98.6 % - Dow Chemicals"]
["Category","Freshwater/non-metal/non- plant","Paper and data unique identifier(eg. 1-1,10-150)","65-1"]
["Scores",10,10,5,5,5,5,0,5,5,4,4,0,4,4,0,0,0,3,3,72,0.79120879120879117,null,""]
["Answers","14-17 (3d post-hatch)","Mortality","LC50","50 % effect","Control + acetone solvent control (no dioxin)","Duplicates","Not provided","Eggs","Deionised with added salts (g/L) : NaCl (1); KCl (0.3); CaCl2 (0.4); MgCl2 (1.6): ","Static","Liquid scintillation counting - daily","Not conducted","Observed and tabulated","Litchfield & Wilcoxon for L/EC50; ANOVA for NOEC & LOEC","CLs +/- 3 ng/L","Not stated","Not stated",25,"98% - Tritiated"]
["Category","Freshwater/non-metal/non- plant","Paper and data unique identifier(eg. 1-1,10-150)","65-2"]
["Scores",10,10,5,5,5,5,0,5,5,4,4,0,4,4,0,0,0,3,3,72,0.79120879120879117,null,""]
["Answers","14-17 (3d post-hatch)","Reproduction - prevention of hatch","EC50","50 % effect","Control + acetone solvent control (no dioxin)","Duplicates","Not provided","Eggs","Deionised with added salts (g/L) : NaCl (1); KCl (0.3); CaCl2 (0.4); MgCl2 (1.6): ","Static","Liquid scintillation counting - daily","Not conducted","Observed and tabulated","Litchfield & Wilcoxon for L/EC50; ANOVA for NOEC & LOEC","CLs +/- 3 ng/L","Not stated","Not stated","25 degress","98% - Tritiated"]
["Category","Freshwater/non-metal/non- plant","Paper and data unique identifier(eg. 1-1,10-150)","65-3"]
["Scores",10,10,5,5,5,5,0,5,5,4,4,0,4,4,0,0,0,3,3,72,0.79120879120879117,null,""]
["Answers","14-17 (3d post-hatch)","Life-threatening lesions","EC50","50 % effect","Control + acetone solvent control (no dioxin)","Duplicates","Not provided","Eggs","Deionised with added salts (g/L) : NaCl (1); KCl (0.3); CaCl2 (0.4); MgCl2 (1.6): ","Static","Liquid scintillation counting - daily","Not conducted","Observed and tabulated","Litchfield & Wilcoxon for L/EC50; ANOVA for NOEC & LOEC","CLs +/- 3 ng/L","Not stated","Not stated","25 degress","98% - Tritiated"]
["Category","Freshwater/non-metal/non- plant","Paper and data unique identifier(eg. 1-1,10-150)","66-1"]
["Scores",10,10,5,5,5,5,0,5,5,4,4,0,4,4,0,0,0,3,3,72,0.79120879120879117,null,""]
["Answers","14-17 (3d post-hatch)","Mortality","LC50","50 % effect","Control + acetone solvent control (no dioxin)","Triplicates","Not provided","Eggs","Deionised with added salts (g/L) : NaCl (1); KCl (0.3); CaCl2 (0.4); MgCl2 (1.6): ","Static","Liquid scintillation counting - daily","Not conducted","Observed and tabulated","Litchfield & Wilcoxon for L/EC50; ANOVA for NOEC & LOEC","CLs +/- 1.2 ng/L","Not stated","Not stated","25 +/- 0.5","98% - Tritiated"]
["Category","Freshwater/non-metal/non- plant","Paper and data unique identifier(eg. 1-1,10-150)","66-2"]
["Scores",10,10,5,5,5,5,0,5,5,4,4,0,4,4,0,0,0,3,3,72,0.79120879120879117,null,""]
["Answers","14-17 (3d post-hatch)","Life-threatening lesions","EC50","50 % effect","Control + acetone solvent control (no dioxin)","Triplicates","Not provided","Eggs","Deionised with added salts (g/L) : NaCl (1); KCl (0.3); CaCl2 (0.4); MgCl2 (1.6): ","Static","Liquid scintillation counting - daily","Not conducted","Observed and tabulated","Litchfield & Wilcoxon for L/EC50; ANOVA for NOEC & LOEC","CLs +/- 1.2 ng/L","Not stated","Not stated","25 +/- 0.5","98% - Tritiated"]
["Category","Freshwater/non-metal/non- plant","Paper and data unique identifier(eg. 1-1,10-150)","66-3"]
["Scores",10,10,5,5,5,5,0,5,5,4,4,0,4,4,0,0,0,3,3,72,0.79120879120879117,null,""]
["Answers","14-17 (3d post-hatch)","Reproduction; Non-hatch","EC50","50 % effect","Control + acetone solvent control (no dioxin)","Triplicates","Not provided","Eggs","Deionised with added salts (g/L) : NaCl (1); KCl (0.3); CaCl2 (0.4); MgCl2 (1.6): ","Static","Liquid scintillation counting - daily","Not conducted","Observed and tabulated","Litchfield & Wilcoxon for L/EC50; ANOVA for NOEC & LOEC","CLs +/- 1.2 ng/L","Not stated","Not stated","25 +/- 0.5","98% - Tritiated"]
["Category","Freshwater/non-metal/non- plant","Paper and data unique identifier(eg. 1-1,10-150)","66-4"]
["Scores",10,10,5,5,5,5,0,5,5,4,4,0,4,0,0,0,0,3,3,68,0.74725274725274726,null,""]
["Answers","14-17 (3d post-hatch)","Mortality","LC10","10 % effect","Control + acetone solvent control (no dioxin)","Triplicates","Not provided","Eggs","Deionised with added salts (g/L) : NaCl (1); KCl (0.3); CaCl2 (0.4); MgCl2 (1.6): ","Static","Liquid scintillation counting - daily","Not conducted","Observed and tabulated","Graphical interpolation","","Not stated","Not stated","25 +/- 0.5","98% - Tritiated"]
["Category","Freshwater/non-metal/non- plant","Paper and data unique identifier(eg. 1-1,10-150)","66-5"]
["Scores",10,10,5,0,5,5,0,5,5,4,4,0,4,0,0,0,0,3,3,63,0.69230769230769229,null,""]
["Answers","14-17 (3d post-hatch)","Mortality","NOEC","No details","Control + acetone solvent control (no dioxin)","Triplicates","Not provided","Eggs","Deionised with added salts (g/L) : NaCl (1); KCl (0.3); CaCl2 (0.4); MgCl2 (1.6): ","Static","Liquid scintillation counting - daily","Not conducted","Observed and tabulated","Graphical interpolation","","Not stated","Not stated","25 +/- 0.5","98% - Tritiated"]
["Category","Freshwater/non-metal/non- plant","Paper and data unique identifier(eg. 1-1,10-150)","66-6"]
["Scores",10,10,5,0,5,5,0,5,5,4,4,0,4,0,0,0,0,3,3,63,0.69230769230769229,null,""]
["Answers","14-17 (3d post-hatch)","Mortality","NOEC","No details","Control + acetone solvent control (no dioxin)","Triplicates","Not provided","Eggs","Deionised with added salts (g/L) : NaCl (1); KCl (0.3); CaCl2 (0.4); MgCl2 (1.6): ","Static","Liquid scintillation counting - daily","Not conducted","Observed and tabulated","Graphical interpolation","","Not stated","Not stated","25 +/- 0.5","98% - Tritiated"]
["Category","Freshwater/non-metal/non- plant","Paper and data unique identifier(eg. 1-1,10-150)","67-1"]
["Scores",10,10,5,0,5,0,0,5,5,4,0,0,4,0,4,0,0,3,3,58,0.63736263736263732,null,"The highest possible grade for this datum is acceptable."]
["Answers","7 d","Mortality","LC50","50% effect","Control + acetone solvent control (no dioxin)","Not stated","Not provided","Embryos <6h","Dechlorinated tap water - act carbon filtered","Static","Nominal - measured in organisms","Not conducted","Observed and tabulated","USEPA Probit","Based in tiussue residues","Not stated","Not stated","23 +/- 0.5","98% - Tritiated"]
["Category","Freshwater/non-metal/non- plant","Paper and data unique identifier(eg. 1-1,10-150)","67-2"]
["Scores",10,10,5,0,5,0,0,5,5,4,0,0,4,4,4,0,0,3,3,62,0.68131868131868134,null,"The highest possible grade for this datum is acceptable."]
["Answers","7 d","Mortality","NOEC","Not stated","Control + acetone solvent control (no dioxin)","Not stated","Not provided","Embryos <6h","Dechlorinated tap water - act carbon filtered","Static","Nominal - measured in organisms","Not conducted","Observed and tabulated","ANOVA & Chi-square comparison","Based 0n tissue residues","Not stated","Not stated","23 +/- 0.5","98% - Tritiated"]
["Category","Freshwater/non-metal/non- plant","Paper and data unique identifier(eg. 1-1,10-150)","67-3"]
["Scores",10,10,5,0,5,0,0,5,5,4,0,0,4,4,4,0,0,3,3,62,0.68131868131868134,null,"The highest possible grade for this datum is acceptable."]
["Answers","7 d","Mortality","LOEC","Not stated","Control + acetone solvent control (no dioxin)","Not stated","Not provided","Embryos <6h","Dechlorinated tap water - act carbon filtered","Static","Nominal - measured in organisms","Not conducted","Observed and tabulated","ANOVA & Chi-square comparison","Based 0n tissue residues","Not stated","Not stated","23 +/- 0.5","98% - Tritiated"]
["Category","Freshwater/non-metal/non- plant","Paper and data unique identifier(eg. 1-1,10-150)","67-4"]
["Scores",10,10,5,5,5,5,0,5,5,4,0,0,4,4,4,0,0,3,3,72,0.79120879120879117,null,"The highest possible grade for this datum is acceptable."]
["Answers","1 d + 64 d observation in clean water","Growth","EC56 ","56% with decrease in growth","Control + acetone solvent control (no dioxin)","Inferred by +/- figures for ea concentration","Not provided","1 mo old larvae","Dechlorinated tap water - act carbon filtered","Static","Nominal - measured in organisms","Not conducted","Observed and tabulated","ANOVA & Scheffe F-test","Extrapolated from tissue residues","Not stated","Not stated","23 +/- 0.5","98% - Tritiated"]
["Category","Freshwater/non-metal/non- plant","Paper and data unique identifier(eg. 1-1,10-150)","67-5"]
["Scores",10,10,5,0,5,5,0,5,5,4,0,0,4,4,4,0,0,3,3,67,0.73626373626373631,null,"The highest possible grade for this datum is acceptable."]
["Answers","1 d + 64 d observation in clean water","Growth","NOEC","Not stated","Control + acetone solvent control (no dioxin)","Inferred by +/- figures for ea concentration","Not provided","1 mo old larvae","Dechlorinated tap water - act carbon filtered","Static","Nominal - measured in organisms","Not conducted","Observed and tabulated","ANOVA & Scheffe F-test","Extrapolated from tissue residues","Not stated","Not stated","23 +/- 0.5","98% - Tritiated"]
["Category","Freshwater/non-metal/non- plant","Paper and data unique identifier(eg. 1-1,10-150)","68-1"]
["Scores",10,10,5,0,5,5,0,5,5,4,0,0,4,4,4,0,0,3,3,67,0.73626373626373631,null,"The highest possible grade for this datum is acceptable."]
["Answers","2 d + 80 d observation in clean water","Mortality","LC50","50% - interpolated form tissue conc'ns","Control + acetone solvent control (no dioxin)","Duplicated","Not provided","Eggs 2h post-fertilisation","Not stated","Static - 12 h renewals","Nominal - measured in organisms","Not conducted","Observed and tabulated","Chi square & probit","Extrapolated from tissue residues","Not stated","Not stated","7 +/- 1",">99% - Tritiated"]
["Category","Freshwater/non-metal/non- plant","Paper and data unique identifier(eg. 1-1,10-150)","68-2"]
["Scores",10,10,5,0,5,5,0,5,5,4,0,0,4,4,4,0,0,3,3,67,0.73626373626373631,null,"The highest possible grade for this datum is acceptable."]
["Answers","2 d + 80 d observation in clean water","Mortality","NOEC","Not stated","Control + acetone solvent control (no dioxin)","Duplicated","Not provided","Eggs 2h post-fertilisation","Not stated","Static - 12 h renewals","Nominal - measured in organisms","Not conducted","Observed and tabulated","Chi square & probit","Extrapolated from tissue residues","Not stated","Not stated","7 +/- 1",">99% - Tritiated"]
["Category","Freshwater/non-metal/non- plant","Paper and data unique identifier(eg. 1-1,10-150)","70-1"]
["Scores",10,10,5,5,5,5,0,5,5,4,0,0,4,4,4,3,3,3,3,78,0.8571428571428571,null,"The highest possible grade for this datum is acceptable."]
["Answers","2 d + 119 d observation in clean water","Mortality","LC50","50% effect","Control + acetone solvent control (no dioxin)","4 replicates","Not provided","Eggs 4h post-fertilisation","Dechlorinated tap water","Static - 12 h renewals","Nominal - measured in organisms","Not conducted","Observed and tabulated","ANOVA + Bonferoni's inequality test","Extrapolated from tissue residues","Not stated","Not stated","7 +/- 1",">99% - Tritiated"]
["Category","Freshwater/non-metal/non- plant","Paper and data unique identifier(eg. 1-1,10-150)","70-2"]
["Scores",10,10,5,0,5,5,0,5,5,4,0,0,4,4,4,3,3,3,3,73,0.80219780219780223,null,"The highest possible grade for this datum is acceptable."]
["Answers","2 d + 119 d observation in clean water","Mortality","NOEC","Not stated","Control + acetone solvent control (no dioxin)","4 replicates","Not provided","Eggs 4h post-fertilisation","Dechlorinated tap water","Static - 12 h renewals","Nominal - measured in organisms","Not conducted","Observed and tabulated","ANOVA + Bonferoni's inequality test","Extrapolated from tissue residues","Not stated","Not stated","7 +/- 1",">99% - Tritiated"]
["Category","Freshwater/non-metal/non- plant","Paper and data unique identifier(eg. 1-1,10-150)","70-3"]
["Scores",10,10,5,0,5,5,0,5,5,4,0,0,4,4,4,3,3,3,3,73,0.80219780219780223,null,"The highest possible grade for this datum is acceptable."]
["Answers","2 d + 119 d observation in clean water","Mortality","LOEC","Not stated","Control + acetone solvent control (no dioxin)","4 replicates","Not provided","Eggs 4h post-fertilisation","Dechlorinated tap water","Static - 12 h renewals","Nominal - measured in organisms","Not conducted","Observed and tabulated","ANOVA + Bonferoni's inequality test","Extrapolated from tissue residues","Not stated","Not stated","7 +/- 1",">99% - Tritiated"]
["Category","Freshwater/non-metal/non- plant","Paper and data unique identifier(eg. 1-1,10-150)","71-1"]
["Scores",10,10,5,0,5,0,0,5,5,4,0,0,4,4,0,3,0,3,3,61,0.67032967032967028,null,"The highest possible grade for this datum is acceptable."]
["Answers","2 d + 95 d observation in clean water","Mortality","NOEC","Not stated","Control + acetone solvent control (no dioxin)","5000 eggs","Not provided","Eggs 4-7h post-fertilisation","Dechlorinated tap water","Static - 12 h renewals","Nominal - measured in organisms","Not conducted","Observed and tabulated","Chi squared","Not stated",7.40,"Not stated","8 +/- 0.5",">99% - Tritiated"]
["Category","Freshwater/non-metal/non- plant","Paper and data unique identifier(eg. 1-1,10-150)","71-2"]
["Scores",10,10,5,0,5,0,0,5,5,4,0,0,4,4,0,3,0,3,3,61,0.67032967032967028,null,"The highest possible grade for this datum is acceptable."]
["Answers","2 d + 95 d observation in clean water","Mortality","LC22.5","22.5% mortality","Control + acetone solvent control (no dioxin)","5000 eggs","Not provided","Eggs 4-7h post-fertilisation","Dechlorinated tap water","Static - 12 h renewals","Nominal - measured in organisms","Not conducted","Observed and tabulated","Chi squared","Not stated",7.40,"Not stated","8 +/- 0.5",">99% - Tritiated"]
["Category","Freshwater/non-metal/non- plant","Paper and data unique identifier(eg. 1-1,10-150)","69-1"]
["Scores",10,10,5,0,5,0,0,5,5,4,0,0,4,4,0,3,0,3,3,61,0.67032967032967028,null,"The highest possible grade for this datum is acceptable."]
["Answers","1 d + 33 d observation in clean water","Mortality","NOEC","22.5% mortality","Control + acetone solvent control (no dioxin)","3000 eggs","Not provided","Eggs <12h post-fertilisation","Dechlorinated tap water","Static - 12 h renewals","Nominal - measured in organisms","Not conducted","Based on egg concentratrions","Chi squared & Probit analysis","Not stated",7.50,"Not stated","7 +/- 1",">99% - Tritiated"]
["Category","Freshwater/non-metal/non- plant","Paper and data unique identifier(eg. 1-1,10-150)","69-2"]
["Scores",10,10,5,0,5,0,0,5,5,4,0,0,4,4,0,3,0,3,3,61,0.67032967032967028,null,"The highest possible grade for this datum is acceptable."]
["Answers","1 d + 33 d observation in clean water","Mortality","LOEC","No details","Control + acetone solvent control (no dioxin)","3000 eggs","Not provided","Eggs <12h post-fertilisation","Dechlorinated tap water","Static - 12 h renewals","Nominal - measured in organisms","Not conducted","Based on egg concentratrions","Chi squared & Probit analysis","Not stated",7.50,"Not stated","7 +/- 1",">99% - Tritiated"]
["Category","Freshwater/non-metal/non- plant","Paper and data unique identifier(eg. 1-1,10-150)","69-3"]
["Scores",10,10,5,5,5,0,0,5,5,4,0,0,4,4,0,3,0,3,3,66,0.72527472527472525,null,"The highest possible grade for this datum is acceptable."]
["Answers","1 d + 33 d observation in clean water","Mortality","LC50","50% mortality - interpolated from graph of egg concs vs mortality","Control + acetone solvent control (no dioxin)","3000 eggs","Not provided","Eggs <12h post-fertilisation","Dechlorinated tap water","Static - 12 h renewals","Nominal - measured in organisms","Not conducted","Based on egg concentratrions","Chi squared & Probit analysis","Not stated",7.50,"Not stated","7 +/- 1",">99% - Tritiated"]
["Category","Freshwater/non-metal/non- plant","Paper and data unique identifier(eg. 1-1,10-150)","72-1"]
["Scores",10,5,5,0,5,0,0,5,5,4,0,0,0,4,0,3,3,3,3,55,0.60439560439560436,null,"The highest possible grade for this datum is acceptable."]
["Answers","1 d + 67 d observation in clean water","Mortality","NOEC","No details","Control + acetone solvent control (no dioxin)","Replicates","Not provided","1-2 d old eggs","Dechlorinated tap water","Static ","Nominal ","Not conducted","No effect at highest concentration","ANOVA & ANCOVA","Not stated",7.70,"11.5 ppm",7.70,">99% - Tritiated"]
["Category","Freshwater/non-metal/non- plant","Paper and data unique identifier(eg. 1-1,10-150)","72-2"]
["Scores",10,5,5,0,5,0,0,5,5,4,0,0,0,4,0,3,3,3,3,55,0.60439560439560436,null,"The highest possible grade for this datum is acceptable."]
["Answers","1 d + 28 d observation in clean water","Mortality","LOEC","No details","Control + acetone solvent control (no dioxin)","Not stated","Not provided","9 h old eggs","Dechlorinated tap water","Static ","Nominal ","Not conducted","No effect at highest concentration","ANOVA & ANCOVA","Not stated",7.70,"11.5 ppm","24 - 25.5",">99% - Tritiated"]
["Category","Freshwater/non-metal/non- plant","Paper and data unique identifier(eg. 1-1,10-150)","72-2"]
["Scores",10,5,5,0,5,0,0,0,5,4,0,0,0,4,0,3,3,3,3,50,0.5494505494505495,null,"The highest possible grade for this datum is acceptable."]
["Answers","1 d + 48 d observation in clean water","Mortality","NOEC","No details","Control + acetone solvent control (no dioxin)","Not stated","Not provided","Eggs","Dechlorinated tap water","Static ","Nominal ","Not conducted","No effect at highest concentration","ANOVA & ANCOVA","Not stated",7.70,"11.5 ppm","23 - 23.4",">99% - Tritiated"]
["Category","Freshwater/non-metal/non- plant","Paper and data unique identifier(eg. 1-1,10-150)","72-3"]
["Scores",10,5,5,0,5,0,0,0,5,4,0,0,0,4,0,3,3,3,3,50,0.5494505494505495,null,"The highest possible grade for this datum is acceptable."]
["Answers","1 d + 48 d observation in clean water","Mortality","NOEC","No details","Control + acetone solvent control (no dioxin)","Not stated","Not provided","Eggs","Dechlorinated tap water","Static ","Nominal ","Not conducted","No effect at highest concentration","ANOVA & ANCOVA","Not stated",7.70,"11.5 ppm","23 - 23.4",">99% - Tritiated"]
["Category","Freshwater/non-metal/non- plant","Paper and data unique identifier(eg. 1-1,10-150)","73-1"]
["Scores",10,5,5,0,5,5,0,5,5,4,0,0,4,4,0,0,0,3,3,58,0.63736263736263732,null,"The highest possible grade for this datum is acceptable."]
["Answers","20 d + 21 d observation in clean water","Mortality at metamorphosis","LOEC","No details","Control + corn-oil solvent control (no dioxin)","Duplicated","Not provided","Tadpoles stage 48-55","Well water","Static ","Nominal ","Not conducted","Effects at all concentrations","Linear regression, ANOVA & T-tests","Not stated","Not stated","Not stated","20 degrees",">99% "]

{"sheet":"FW nonmetal plant","index":7,"n_rows":79,"n_cols":53,"rows_kept":79,"cut":false,"hidden":false,"merged":[[3,4,7,4],[9,2,9,4],[11,2,13,2],[11,7,13,7],[14,2,16,2],[14,7,16,7],[17,2,19,2],[17,7,19,7],[20,2,21,2],[20,7,21,7],[22,2,24,2],[22,7,24,7],[25,2,27,2],[25,7,27,7],[28,2,30,2],[28,7,30,7],[31,2,33,2],[31,7,33,7],[34,2,36,2],[34,7,36,7],[37,2,39,2],[37,7,39,7],[40,2,42,2],[40,7,42,7],[43,2,45,2],[43,7,45,7],[46,2,48,2],[46,7,48,7],[49,2,51,2],[49,7,51,7],[60,2,62,2],[60,7,62,7],[63,2,66,2],[63,7,66,7],[52,2,54,2],[52,7,54,7],[56,2,59,2],[56,7,59,7]]}
[null,1,"Fill in the blank cells below, based on information provided in the paper being assessed. You can either pick an option from the dropdown list or add the appropriate detail using the 'Add to list' button. ",null,null,null,null,null,null,null,null,null,null,null,"* All the text in RED are used for drop down list ,make changes with caution."]
[null,null,"Category",{"$f":"IF(AF3=\"\",0,1)","v":1},"Freshwater/non-metal/plant",{"$f":"IF(E3=\"\",0,1)","v":1},"Citation No.",{"$f":"IF(ISERROR(FIND(\"-\",E3)),E3,LEFT(E3,FIND(\"-\",E3)-1))","v":"50"},null,"Taxonomic group",null,null,null,null,"Species",null,null,"Lifestage",null,null,"Exposure duration",null,null,"Measure of toxicity",null,null,"Toxicity endpoint",null,null,"Taxonomic group",null,null,"Phylum",null,null,"Class",null,null,"Media",null,null,"Temperature ",null,null,"Acute Or Chronic",null,null,"PH",null,null,"Salinity/Conductivity"]
[null,null,"Paper and data unique identifier(eg. 1-1,10-150)",{"$f":"IF(AI3=\"\",0,1)","v":1},"50-1",{"$f":"IF(#REF!=\"\",0,1)","v":{"$error":"#REF!"}},"Species (Scientific name)",null,null,"Phylum",null,null,null,null,"Aedes albopictus",5,{"$f":"IF(P3=0,\"\",INDEX(O3:O100,P3))","v":"Oedogonium cardiacum"},"1 month",5,{"$f":"IF(S3=0,\"\",INDEX(R3:R100,S3))","v":"Not stated"},"11 hours",5,{"$f":"IF(V3=0,\"\",INDEX(U3:U100,V3))","v":"33 d"},"LC50",5,{"$f":"IF(Y3=0,\"\",INDEX(X3:X100,Y3))","v":"NOEC"},"Mortality",5,{"$f":"IF(AB3=0,\"\",INDEX(AA3:AA100,AB3))","v":"Growth (fresh weight)"},"Fish",4,{"$f":"IF(AE3=0,\"\",INDEX(AD3:AD100,AE3))","v":"Green algae"},"Chlorophyta",4,{"$f":"IF(AH3=0,\"\",INDEX(AG3:AG100,AH3))","v":"Chlorophyta"},"Branchiopoda",4,{"$f":"IF(AK3=0,\"\",INDEX(AJ3:AJ102,AK3))","v":"Chlorophyceae"},"Freshwater",5,{"$f":"IF(AN3=0,\"\",INDEX(AM3:AM100,AN3))","v":"Not stated"},"15°C",5,{"$f":"IF(AQ3=0,\"\",INDEX(AP3:AP100,AQ3))","v":"Not stated"},"Acute ",2,{"$f":"IF(AT3=0,\"\",INDEX(AS3:AS100,AT3))","v":"Chronic"},"N.A.",4,{"$f":"IF(AW3=0,\"\",INDEX(AV3:AV100,AW3))","v":7.50},"30 ppt",null,"N.A."]
[null,null,"Citation",{"$f":"IF(AL3=\"\",0,1)","v":1},"Isensee AR and Jones GE (1978). Distribution of 2,3,7,8-tetrachlorodibenzo-p-dioxin (TCDD) in aquatic model ecosystem. Environmental Science and Technology, 9, 668-672.",{"$f":"IF(AX3=\"\",0,1)","v":1},"Lifestage",null,null,"Class",null,null,null,null,"Australian Bass",null,null,"1 year old",null,null,"13 days ",null,null,"N.A.",null,null,"N.A.",null,null,"Microalga",null,null,"N.A.",null,null,"Chlorophyceae",null,null,"Marinewater",null,null,"25°C",null,null,"Chronic",null,null,"PH11",null,null,"150 uS/cm"]
[null,null,null,{"$f":"IF(AO3=\"\",0,1)","v":1},null,{"$f":"IF(H8=\"\",0,1)","v":1},"Exposure duration",null,null,"Media",null,null,null,null,"N.A.",null,null,"N.A.",null,null,"N.A.",null,null,"NOEC",null,null,"Reproduction",null,null,"N.A.",null,null,"Tracheophyta",null,null,"N.A.",null,null,"N.A.",null,null,"N.A.",null,null,"N.A.",null,null,"PH7.0",null,null,"N.A."]
[null,null,null,{"$f":"IF(AR3=\"\",0,1)","v":1},null,{"$f":"IF(Q3=\"\",0,1)","v":1},"Measure of toxicity",null,null,"Temperature ",null,null,null,null,"Pseudokirchneriella subcapitata",null,null,"Exponential growth",null,null,"21 d",null,null,"EC50",null,null,"Growth (biomass)",null,null,"Green algae",null,null,"Chlorophyta",null,null,"Chlorophyceae",null,null,"AAM ",null,null,24,null,null,null,null,null,7.50]
[null,null,null,{"$f":"IF(AU3=\"\",0,1)","v":1},null,{"$f":"IF(T3=\"\",0,1)","v":1},"Toxicity endpoint",null,null,"Acute Or Chronic ",null,null,null,null,"Oedogonium cardiacum",null,null,"Not stated",null,null,"33 d",null,null,"NOEC",null,null,"Growth (fresh weight)",null,null,null,null,null,null,null,null,null,null,null,"Not stated",null,null,"Not stated"]
[null,null,null,null,null,{"$f":"IF(W3=\"\",0,1)","v":1},"Toxicity value",1330,null,"PH"]
[null,2,"Select the appropriate answer option to each question. Comments can be added to the cells in column H.",null,null,{"$f":"IF(Z3=\"\",0,1)","v":1},null,null,null,"Salinity/Conductivity","N.A."]
[null,"*","If the selected answer option does not work try clicking on any other cell first and then click back on the answer option again.",null,null,{"$f":"IF(AC3=\"\",0,1)","v":1}]
[null,"No.","Question","Marks Awarded","Answer Options","Option References","Scores","Answers"]
[null,null,"Was the duration of the exposure stated (e.g. 48 or 96 h)?",10,null,1,{"$f":"IF(F15=0,0,INDEX($D12:$D13,F12,1))","v":10},"33 d"]
[null,1,null,0]
[]
[null,null,"Was the biological endpoint (e.g., immobilization or population growth) stated and defined (10 marks)? Award 5 marks if the biological endpoint is only stated.",10,null,3,{"$f":"IF(F15=0,0,INDEX($D15:$D17,F15,1))","v":0},"Only stated that 'all organisms prospered' imdicating no effects"]
[null,2,null,5]
[null,null,null,0]
[null,null,"Was the biological effect stated (e.g. LC or NOEC)?",5,null,1,{"$f":"IF(F18=0,0,INDEX($D18:$D19,F18,1))","v":5},"NOEC"]
[null,3,null,0]
[]
[null,4,"Was the biological effect quantified (e.g. 50% effect, 25% effect)? \nNote: The effect for NOEC and LOEC data must be quantified.",5,null,2,{"$f":"IF(F21=0,0,INDEX($D21:$D22,F21,1))","v":0},"Not quantified"]
[null,null,null,0]
[null,5,"Were appropriate controls (e.g. a no-toxicant control and/or solvent control) used?",5,null,1,{"$f":"IF(F23=0,0,INDEX($D23:$D24,F23,1))","v":5},"Control - no dioxin"]
[null,null,null,0]
[]
[null,6,"Was each control and contaminant concentration at least duplicated?",5,null,1,{"$f":"IF(F26=0,0,INDEX($D26:$D27,F26,1))","v":5},"2-3 replicates"]
[null,null,null,0]
[]
[null,7,"Were test acceptability criteria stated (e.g. mortality in controls must not exceed a certain percentage) (5 marks)?\nOR Were test acceptability criteria inferred (e.g. test method used [USEPA, OECD, ASTM etc.]) (award 2 marks). \nNote: Data that fail the acceptability criteria are automatically deemed to be of unacceptable quality and must not be used. ",5,null,3,{"$f":"IF(F29=0,0,INDEX($D29:$D31,F29,1))","v":0},"Not provided"]
[null,null,null,2]
[null,null,null,0]
[null,8,"Were the characteristics of the test organism (e.g. length, mass, age) stated?",5,null,2,{"$f":"IF(F32=0,0,INDEX($D32:$D34,F32,1))","v":0},"Just added strands of algae"]
[null,null,null,0]
[]
[null,9,"Was the type of test media used stated?",5,null,2,{"$f":"IF(F35=0,0,INDEX($D35:$D37,F35,1))","v":0},"Not provided"]
[null,null,null,0]
[]
[null,null,"Was the type of exposure (e.g. static, flow through) stated? ",4,null,2,{"$f":"IF(F38=0,0,INDEX($D38:$D40,F38,1))","v":0},"Inferred (static)"]
[null,10,null,0]
[]
[null,null,"Were the contaminant concentrations measured at the beginning and end of the exposure (4 marks)? Award 2 marks if they were measured only once during the test.\nNote: If the concentrations were not measured then automatically the data cannot be high quality. ",4,null,1,{"$f":"IF(F41=0,0,INDEX($D41:$D43,F41,1))","v":4},"Measured"]
[null,11,null,2]
[null,null,null,0]
[null,null,"Were parallel reference toxicant toxicity tests conducted?",4,null,2,{"$f":"IF(F44=0,0,INDEX($D44:$D46,F44,1))","v":0},"No ref tox"]
[null,12,null,0]
[]
[null,null,"Was there a concentration–response relationship either observable or stated?",4,null,2,{"$f":"IF(F47=0,0,INDEX($D47:$D49,F47,1))","v":0},"Inferred"]
[null,13,null,0]
[]
[null,null,"Was an appropriate statistical method or model used to determine the toxicity?\nNote: They should be accepted by a recognised national or international regulatory body (e.g. USEPA, OECD, ASTM). ",4,null,2,{"$f":"IF(F50=0,0,INDEX($D50:$D52,F50,1))","v":0},"USEPA method and Turbak et al 1979"]
[null,14,null,0]
[]
[null,15,"For LC/EC/BEC data was an estimate of variability provided? \nOR \nFor NO EC/LOEC data was the significance level 0.05 or less?  \n\n",4,null,1,{"$f":"IF(F53=0,0,INDEX($D53:$D55,F53,1))","v":4},"95% CL (550-582)"]
[null,null,null,0]
[]
[null,16,"Were the following parameters measured and stated? (3 marks if measured and stated, 1 mark if just measured)."]
[null,null,"pH",3,null,3,{"$f":"IF(F57=0,0,INDEX($D57:$D59,F57,1))","v":0},"Ref to USEPA method"]
[null,16.10,null,1]
[null,null,null,0]
[]
[null,null,"Was the temperature measured and stated (3 marks)? Award 1 mark if the temperature was measured but not stated or if only the temperature settings of the room or chamber are stated.",3,null,3,{"$f":"IF(F61=0,0,INDEX($D61:$D63,F61,1))","v":0},"Ref to USEPA method"]
[null,17,null,1]
[null,null,null,0]
[null,null,"Were test solutions, blanks and/or controls tested for contamination OR were analytical reagent grade chemicals used or the highest possible purity chemicals used for the experiment? (3 marks).",3,null,1,{"$f":"IF(F64=0,0,INDEX($D64:$D65,F64,1))","v":3},"reagent grade chemical(Cr chloride)"]
[null,18,null,0]
[]
[null,null,null,null,null,null,null,null,{"$f":"COUNTIF(D2:D7,\"=0\")+COUNTIF(F2:F10,\"=0\")+COUNTIF(F12:F64,\"=0\")","v":0}]
[]
[]
[null,null,"Total score",null,null,null,{"$f":"IF(SUM(G12:G67)=0,\"\",SUM(G12:G67))","v":36}]
[null,null,"Total Max. possible score for the various types of data and contaminants ",null,{"$f":"D12+D15+D18+D21+D23+D26+D29+D32+D35+D38+D41+D44+D47+D50+D53+D57+D61+D64","v":88}]
[null,null,"Quality Score",null,{"$f":"\"= [Total score / Total possible score] * 100 = \"","v":"= [Total score / Total possible score] * 100 = "},null,{"$f":"IF(ISERROR(G70/E71),#N/A,G70/E71)","v":0.40909090909090912},{"$f":"IF(F41=3,\"The highest possible grade for this datum is acceptable.\",\"\")","v":""}]
[]
[null,null,"H = high quality                           Quality score ≥ 80%  "]
[null,null,"A = acceptable quality         > 50% Quality score < 80%     "]
[null,null,"U = unacceptable quality              Quality score ≤ 50%"]
[]
[3,null,"Click the 'Save & Update' button to save and export the answers to the 'All results' worksheet. "]
[null,null,"Select the 'Reset Answers' button if you wish to clear all answers."]

{"sheet":"FW nonmetal plant_WS","index":8,"n_rows":9,"n_cols":22,"rows_kept":9,"cut":false,"hidden":false,"merged":[]}
[]
["Question No.",1,2,3,4,5,6,7,8,9,10,11,12,13,14,15,16.10,17,18,"Total Score","Quality Score","Comment "]
["Short Questions","Duration of the exposure ","Biological endpoint","Biological effect stated or not","Biological effect quantified or not","Appropriate controls","Control & contaminant concentration","Test acceptability criteria","Characteristics of the test organism"," Type of test media","Type of exposure","Contaminant concentrations","Parallel reference toxicant toxicity tests","Concentration–response relationship","Determine the toxicity","NOEC/LOEC or LC/EC/BEC","pH","Temperature","Grade or purity"]
["Category","Freshwater/non-metal/plant","Paper and data unique identifier(eg. 1-1,10-150)","50-1"]
["Scores",10,0,5,0,5,5,0,0,0,0,4,0,0,4,4,0,0,3,40,0.45454545454545453,""]
["Answers","33 d","Only stated that 'all organisms prospered' imdicating no effects","NOEC","Not quantified","Control - no dioxin","2-3 replicates","Not provided","Just added strands of algae","Not provided","Inferred (static)","Not measured","No ref tox","Inferred","95% CL (550-582)","95% CL (550-582)","Ref to USEPA method","Ref to USEPA method","reagent grade chemical(Cr chloride)"]
["Category","Freshwater/non-metal/plant","Paper and data unique identifier(eg. 1-1,10-150)","50-1"]
["Scores",10,0,5,0,5,5,0,0,0,0,4,0,0,4,4,0,0,3,40,0.45454545454545453,""]
["Answers","33 d","Only stated that 'all organisms prospered' imdicating no effects","NOEC","Not quantified","Control - no dioxin","2-3 replicates","Not provided","Just added strands of algae","Not provided","Inferred (static)","Not measured","No ref tox","Inferred","95% CL (550-582)","95% CL (550-582)","Ref to USEPA method","Ref to USEPA method","reagent grade chemical(Cr chloride)"]

{"sheet":"Sheet2","index":9,"n_rows":0,"n_cols":0,"rows_kept":0,"cut":false,"hidden":false,"merged":[]}